{"text_format":"1","workbook":"xlsx","n_sheets":14,"sheets":["総括表","普通会計の状況","各会計、関係団体の財政状況及び健全化判断比率","財政比較分析表","経常経費分析表（経常収支比率の分析）","経常経費分析表（人件費・公債費・普通建設事業費の分析）","性質別歳出決算分析表（住民一人当たりのコスト）","目的別歳出決算分析表（住民一人当たりのコスト）","実質収支比率等に係る経年分析","連結実質赤字比率に係る赤字・黒字の構成分析","実質公債費比率（分子）の構造","将来負担比率（分子）の構造","基金残高に係る経年分析","データシート"],"not_rendered":{"charts":6,"images":0,"macros":0,"external_links":0,"defined_names":0,"comments":0,"pivot_tables":0},"unopened":[],"bounds":{"document_bytes":16777216,"sheet_cells":100000,"rows_first":2000,"rows_last":500,"rows_between":2000,"halvings":0,"cell_chars":16384,"cell_head_chars":4096},"cells_cut":0,"cells_raw":0,"read":"whole","date_system":"1900"}

{"sheet":"総括表","index":0,"n_rows":52,"n_cols":111,"rows_kept":52,"cut":false,"hidden":false,"merged":[[42,58,42,72],[42,74,42,75],[42,76,42,90],[42,92,42,93],[42,94,42,108],[41,76,41,90],[41,92,41,93],[41,94,41,108],[41,110,41,111],[42,2,42,3],[42,4,42,18],[42,20,42,21],[42,22,42,36],[42,38,42,39],[42,40,42,54],[40,110,40,111],[41,2,41,3],[41,4,41,18],[41,20,41,21],[41,22,41,36],[41,38,41,39],[41,40,41,54],[41,56,41,57],[41,58,41,72],[41,74,41,75],[40,56,40,57],[40,58,40,72],[40,74,40,75],[40,76,40,90],[40,92,40,93],[40,94,40,108],[42,110,42,111],[42,56,42,57],[39,76,39,90],[39,92,39,93],[39,94,39,108],[39,110,39,111],[40,2,40,3],[40,4,40,18],[40,20,40,21],[40,22,40,36],[40,38,40,39],[40,40,40,54],[39,2,39,3],[39,4,39,18],[39,20,39,21],[39,22,39,36],[39,38,39,39],[39,40,39,54],[39,56,39,57],[39,58,39,72],[39,74,39,75],[37,76,37,90],[37,92,37,93],[37,94,37,108],[37,110,37,111],[38,2,38,3],[38,4,38,18],[38,20,38,21],[38,22,38,36],[38,38,38,39],[38,40,38,54],[38,110,38,111],[38,56,38,57],[38,58,38,72],[38,74,38,75],[38,76,38,90],[38,92,38,93],[38,94,38,108],[37,2,37,3],[37,4,37,18],[37,20,37,21],[37,22,37,36],[37,38,37,39],[37,40,37,54],[37,56,37,57],[37,58,37,72],[37,74,37,75],[35,76,35,90],[35,92,35,93],[35,94,35,108],[35,110,35,111],[36,2,36,3],[36,4,36,18],[36,20,36,21],[36,22,36,36],[36,38,36,39],[36,40,36,54],[36,110,36,111],[36,56,36,57],[36,58,36,72],[36,74,36,75],[36,76,36,90],[36,92,36,93],[36,94,36,108],[35,2,35,3],[35,4,35,18],[35,20,35,21],[35,22,35,36],[35,38,35,39],[35,40,35,54],[35,56,35,57],[35,58,35,72],[35,74,35,75],[33,94,33,108],[33,110,33,111],[34,2,34,3],[34,4,34,18],[34,20,34,21],[34,22,34,36],[34,38,34,39],[34,40,34,54],[34,110,34,111],[34,56,34,57],[34,58,34,72],[34,74,34,75],[34,76,34,90],[34,92,34,93],[34,94,34,108],[32,110,32,111],[33,2,33,3],[33,4,33,18],[33,20,33,21],[33,22,33,36],[33,38,33,39],[33,40,33,54],[33,56,33,57],[33,58,33,72],[33,74,33,75],[32,56,32,57],[32,58,32,72],[32,74,32,75],[32,76,32,90],[32,92,32,93],[32,94,32,108],[32,2,32,3],[32,4,32,18],[32,20,32,21],[32,22,32,36],[32,38,32,39],[32,40,32,54],[33,76,33,90],[33,92,33,93],[29,33,29,49],[29,54,29,64],[27,97,28,104],[27,105,28,112],[28,4,28,10],[28,11,28,15],[28,16,28,21],[28,25,28,32],[28,33,28,37],[28,38,28,43],[28,44,28,49],[28,54,28,64],[27,44,27,49],[27,50,29,53],[27,54,27,64],[27,65,27,72],[27,73,27,80],[27,82,28,96],[28,65,28,72],[28,73,28,80],[29,65,29,72],[29,73,29,80],[27,4,27,10],[27,11,27,15],[27,33,27,37],[27,38,27,43],[25,105,26,112],[26,4,26,10],[26,11,26,15],[26,16,26,21],[26,25,26,32],[26,33,26,37],[26,38,26,43],[26,44,26,49],[26,50,26,64],[26,65,26,72],[25,44,25,49],[25,50,25,64],[25,65,25,72],[25,73,25,80],[25,82,26,96],[25,97,26,104],[26,73,26,80],[25,4,25,10],[25,11,25,15],[25,16,25,21],[25,33,25,37],[25,38,25,43],[23,105,24,112],[24,4,24,10],[24,11,24,15],[24,16,24,21],[24,25,24,32],[24,33,24,37],[24,38,24,43],[24,44,24,49],[24,50,24,64],[24,65,24,72],[23,44,23,49],[23,50,23,64],[23,65,23,72],[23,73,23,80],[23,82,24,96],[23,97,24,104],[24,73,24,80],[23,33,23,37],[23,38,23,43],[21,82,22,96],[21,97,22,104],[21,105,22,112],[22,50,22,64],[22,65,22,72],[22,73,22,80],[21,33,22,37],[21,38,22,43],[21,44,22,49],[21,50,21,64],[21,65,21,72],[21,73,21,80],[21,1,29,3],[21,4,22,10],[21,11,22,15],[21,16,22,21],[21,22,28,24],[21,25,22,32],[23,4,23,10],[23,11,23,15],[23,16,23,21],[23,25,23,32],[29,4,29,10],[29,11,29,15],[29,16,29,21],[29,22,29,32],[25,25,25,32],[27,16,27,21],[27,25,27,32],[19,50,19,64],[19,65,19,72],[19,73,19,80],[19,82,20,96],[19,97,20,104],[19,105,20,112],[18,46,18,49],[18,50,18,64],[18,65,18,72],[18,73,18,80],[20,1,20,49],[20,50,20,64],[20,65,20,72],[20,73,20,80],[17,1,17,10],[17,11,17,21],[17,28,17,32],[17,33,17,37],[17,38,17,45],[17,46,17,49],[19,1,19,10],[19,11,19,21],[19,28,19,32],[19,33,19,37],[19,38,19,45],[19,46,19,49],[18,1,18,10],[18,11,18,21],[18,22,19,27],[18,28,18,32],[18,33,18,37],[18,38,18,45],[15,105,16,112],[16,12,16,16],[16,17,16,21],[16,22,17,27],[16,28,16,32],[16,33,16,37],[16,38,16,45],[16,46,16,49],[16,50,16,64],[16,65,16,72],[15,46,15,49],[15,50,15,64],[15,65,15,72],[15,73,15,80],[15,82,16,96],[15,97,16,104],[16,73,16,80],[17,50,17,64],[17,65,17,72],[17,73,17,80],[17,82,18,96],[17,97,18,104],[17,105,18,112],[15,11,15,16],[15,17,15,21],[15,28,15,32],[15,33,15,37],[15,38,15,45],[14,12,14,16],[14,17,14,21],[14,22,15,27],[14,28,14,32],[14,33,14,37],[14,38,14,45],[13,105,13,112],[12,73,12,80],[12,81,12,96],[12,97,12,104],[12,105,12,112],[14,46,14,49],[14,50,14,64],[14,65,14,72],[14,73,14,80],[14,81,14,96],[12,50,12,64],[12,65,12,72],[11,46,11,49],[11,50,11,64],[11,65,11,72],[11,73,11,80],[11,81,11,96],[11,97,11,104],[13,50,13,64],[13,65,13,72],[13,73,13,80],[13,81,13,96],[13,97,13,104],[10,81,10,96],[10,97,10,104],[10,105,10,112],[11,1,16,10],[11,11,11,16],[11,17,11,21],[11,22,11,27],[11,28,11,32],[11,33,11,37],[11,38,11,45],[13,11,13,16],[13,17,13,21],[13,28,13,32],[13,33,13,37],[13,38,13,45],[13,46,13,49],[11,105,11,112],[12,12,12,16],[12,17,12,21],[12,22,13,27],[12,28,12,32],[12,33,12,37],[12,38,12,45],[12,46,12,49],[9,50,9,64],[9,65,9,72],[9,73,9,80],[10,11,10,16],[10,17,10,21],[10,38,10,45],[10,46,10,49],[10,50,10,64],[10,65,10,72],[10,73,10,80],[8,1,10,10],[8,11,8,16],[8,17,8,21],[8,22,10,37],[8,38,8,45],[8,46,8,49],[9,11,9,16],[9,17,9,21],[9,38,9,45],[9,46,9,49],[7,73,7,80],[7,81,7,96],[7,97,7,104],[7,105,7,112],[8,50,8,64],[8,65,8,72],[8,73,8,80],[8,81,8,96],[8,97,8,104],[8,105,8,112],[5,73,5,80],[5,81,5,96],[5,97,5,104],[5,105,5,112],[6,38,6,45],[6,46,6,49],[6,50,6,64],[6,65,6,72],[6,73,6,80],[6,81,6,96],[6,97,6,104],[6,105,6,112],[5,1,7,10],[5,11,7,21],[5,22,7,27],[5,28,7,37],[5,38,5,45],[5,46,5,49],[5,50,5,64],[5,65,5,72],[4,38,4,45],[4,46,4,49],[4,50,4,64],[4,65,4,72],[7,38,7,45],[7,46,7,49],[7,50,7,64],[7,65,7,72],[2,97,2,104],[2,105,2,112],[3,50,3,64],[3,65,3,72],[3,73,3,80],[3,81,3,96],[3,97,3,104],[3,105,3,112],[0,1,0,112],[2,1,4,10],[2,11,4,21],[2,22,4,27],[2,28,4,37],[2,38,3,49],[2,50,2,64],[2,65,2,72],[2,73,2,80],[2,81,2,96],[4,97,4,104],[4,105,4,112],[4,73,4,80],[4,81,4,96]]}
[null,"令和2年度　財政状況資料集"]
[null,"総括表（市町村）"]
[null,"都道府県名",null,null,null,null,null,null,null,null,null,"千葉県",null,null,null,null,null,null,null,null,null,null,"市町村類型",null,null,null,null,null,"Ⅲ－３",null,null,null,null,null,null,null,null,null,"指定団体等の指定状況",null,null,null,null,null,null,null,null,null,null,null,"区分",null,null,null,null,null,null,null,null,null,null,null,null,null,null,"令和2年度(千円)",null,null,null,null,null,null,null,"令和元年度(千円)",null,null,null,null,null,null,null,"区分",null,null,null,null,null,null,null,null,null,null,null,null,null,null,null,"令和2年度(千円･％)",null,null,null,null,null,null,null,"令和元年度(千円･％)"]
[null,null,null,null,null,null,null,null,null,null,null,null,null,null,null,null,null,null,null,null,null,null,null,null,null,null,null,null,null,null,null,null,null,null,null,null,null,null,null,null,null,null,null,null,null,null,null,null,null,null,"歳入総額",null,null,null,null,null,null,null,null,null,null,null,null,null,null,58423698,null,null,null,null,null,null,null,36523287,null,null,null,null,null,null,null,"実質収支比率",null,null,null,null,null,null,null,null,null,null,null,null,null,null,null,13.1,null,null,null,null,null,null,null,8.6999999999999993]
[null,null,null,null,null,null,null,null,null,null,null,null,null,null,null,null,null,null,null,null,null,null,null,null,null,null,null,null,null,null,null,null,null,null,null,null,null,null,"財政健全化等",null,null,null,null,null,null,null,"×",null,null,null,"歳出総額",null,null,null,null,null,null,null,null,null,null,null,null,null,null,54724523,null,null,null,null,null,null,null,34291340,null,null,null,null,null,null,null,"経常収支比率",null,null,null,null,null,null,null,null,null,null,null,null,null,null,null,86.8,null,null,null,null,null,null,null,87]
[null,"市町村名",null,null,null,null,null,null,null,null,null,"印西市",null,null,null,null,null,null,null,null,null,null,"地方交付税種地",null,null,null,null,null,"2-6",null,null,null,null,null,null,null,null,null,"財源超過",null,null,null,null,null,null,null,"○",null,null,null,"歳入歳出差引",null,null,null,null,null,null,null,null,null,null,null,null,null,null,3699175,null,null,null,null,null,null,null,2231947,null,null,null,null,null,null,null,"　　(※1)",null,null,null,null,null,null,null,null,null,null,null,null,null,null,null,86.8,null,null,null,null,null,null,null,87]
[null,null,null,null,null,null,null,null,null,null,null,null,null,null,null,null,null,null,null,null,null,null,null,null,null,null,null,null,null,null,null,null,null,null,null,null,null,null,"首都",null,null,null,null,null,null,null,"○",null,null,null,"翌年度に繰越すべき財源",null,null,null,null,null,null,null,null,null,null,null,null,null,null,701351,null,null,null,null,null,null,null,395529,null,null,null,null,null,null,null,"標準財政規模",null,null,null,null,null,null,null,null,null,null,null,null,null,null,null,22907364,null,null,null,null,null,null,null,21219643]
[null,null,null,null,null,null,null,null,null,null,null,null,null,null,null,null,null,null,null,null,null,null,null,null,null,null,null,null,null,null,null,null,null,null,null,null,null,null,"近畿",null,null,null,null,null,null,null,"×",null,null,null,"実質収支",null,null,null,null,null,null,null,null,null,null,null,null,null,null,2997824,null,null,null,null,null,null,null,1836418,null,null,null,null,null,null,null,"財政力指数",null,null,null,null,null,null,null,null,null,null,null,null,null,null,null,1.07,null,null,null,null,null,null,null,1.04]
[null,"人口",null,null,null,null,null,null,null,null,null,"令和2年国調(人)",null,null,null,null,null,102609,null,null,null,null,"産業構造 (※5)",null,null,null,null,null,null,null,null,null,null,null,null,null,null,null,"中部",null,null,null,null,null,null,null,"×",null,null,null,"単年度収支",null,null,null,null,null,null,null,null,null,null,null,null,null,null,1161406,null,null,null,null,null,null,null,-348450,null,null,null,null,null,null,null,"公債費負担比率",null,null,null,null,null,null,null,null,null,null,null,null,null,null,null,5.0999999999999996,null,null,null,null,null,null,null,6.8]
[null,null,null,null,null,null,null,null,null,null,null,"平成27年国調(人)",null,null,null,null,null,92670,null,null,null,null,null,null,null,null,null,null,null,null,null,null,null,null,null,null,null,null,"過疎",null,null,null,null,null,null,null,"×",null,null,null,"積立金",null,null,null,null,null,null,null,null,null,null,null,null,null,null,1002713,null,null,null,null,null,null,null,23690,null,null,null,null,null,null,null,"健全化判断比率"]
[null,null,null,null,null,null,null,null,null,null,null,"増減率  (％)",null,null,null,null,null,"10.7",null,null,null,null,null,null,null,null,null,null,null,null,null,null,null,null,null,null,null,null,"山振",null,null,null,null,null,null,null,"×",null,null,null,"繰上償還金",null,null,null,null,null,null,null,null,null,null,null,null,null,null,0,null,null,null,null,null,null,null,0,null,null,null,null,null,null,null,"　実質赤字比率",null,null,null,null,null,null,null,null,null,null,null,null,null,null,null,"-",null,null,null,null,null,null,null,"-"]
[null,"住民基本台帳人口\n (※7)",null,null,null,null,null,null,null,null,null,"令03.01.01(人)",null,null,null,null,null,105772,null,null,null,null,"区分",null,null,null,null,null,"平成27年国調",null,null,null,null,"平成22年国調",null,null,null,null,"低開発",null,null,null,null,null,null,null,"×",null,null,null,"積立金取崩し額",null,null,null,null,null,null,null,null,null,null,null,null,null,null,2237288,null,null,null,null,null,null,null,0,null,null,null,null,null,null,null,"　連結実質赤字比率",null,null,null,null,null,null,null,null,null,null,null,null,null,null,null,"-",null,null,null,null,null,null,null,"-"]
[null,null,null,null,null,null,null,null,null,null,null,null,"うち日本人(人)",null,null,null,null,103405,null,null,null,null,"第1次",null,null,null,null,null,1799,null,null,null,null,1738,null,null,null,null,"指数表選定",null,null,null,null,null,null,null,"○",null,null,null,"実質単年度収支",null,null,null,null,null,null,null,null,null,null,null,null,null,null,-73169,null,null,null,null,null,null,null,-324760,null,null,null,null,null,null,null,"　実質公債費比率",null,null,null,null,null,null,null,null,null,null,null,null,null,null,null,0.1,null,null,null,null,null,null,null,0.7]
[null,null,null,null,null,null,null,null,null,null,null,"令02.01.01(人)",null,null,null,null,null,103513,null,null,null,null,null,null,null,null,null,null,4.0999999999999996,null,null,null,null,4.2,null,null,null,null,null,null,null,null,null,null,null,null,null,null,null,null,null,null,null,null,null,null,null,null,null,null,null,null,null,null,null,null,null,null,null,null,null,null,null,null,null,null,null,null,null,null,null,"　将来負担比率",null,null,null,null,null,null,null,null,null,null,null,null,null,null,null,"-",null,null,null,null,null,null,null,"-"]
[null,null,null,null,null,null,null,null,null,null,null,null,"うち日本人(人)",null,null,null,null,101289,null,null,null,null,"第2次",null,null,null,null,null,7324,null,null,null,null,6615,null,null,null,null,null,null,null,null,null,null,null,null,null,null,null,null,"基準財政収入額",null,null,null,null,null,null,null,null,null,null,null,null,null,null,17719804,null,null,null,null,null,null,null,16155809,null,null,null,null,null,null,null,"資金不足比率 (※4)"]
[null,null,null,null,null,null,null,null,null,null,null,"増減率  (％)",null,null,null,null,null,"2.2",null,null,null,null,null,null,null,null,null,null,16.899999999999999,null,null,null,null,16.100000000000001,null,null,null,null,null,null,null,null,null,null,null,null,null,null,null,null,"基準財政需要額",null,null,null,null,null,null,null,null,null,null,null,null,null,null,16353876,null,null,null,null,null,null,null,15438858]
[null,null,null,null,null,null,null,null,null,null,null,null,"うち日本人(％)",null,null,null,null,"2.1",null,null,null,null,"第3次",null,null,null,null,null,34308,null,null,null,null,32645,null,null,null,null,null,null,null,null,null,null,null,null,null,null,null,null,"標準税収入額等",null,null,null,null,null,null,null,null,null,null,null,null,null,null,22907364,null,null,null,null,null,null,null,20952997]
[null,"面積 (k㎡)",null,null,null,null,null,null,null,null,null,123.79,null,null,null,null,null,null,null,null,null,null,null,null,null,null,null,null,79,null,null,null,null,79.599999999999994,null,null,null,null,null,null,null,null,null,null,null,null,null,null,null,null,"経常経費充当一般財源等",null,null,null,null,null,null,null,null,null,null,null,null,null,null,20265820,null,null,null,null,null,null,null,19462213]
[null,"人口密度 (人/k㎡)",null,null,null,null,null,null,null,null,null,829,null,null,null,null,null,null,null,null,null,null,null,null,null,null,null,null,null,null,null,null,null,null,null,null,null,null,null,null,null,null,null,null,null,null,null,null,null,null,"歳入一般財源等",null,null,null,null,null,null,null,null,null,null,null,null,null,null,33439869,null,null,null,null,null,null,null,26887281]
[null,"世帯数 (世帯)",null,null,null,null,null,null,null,null,null,38349]
[null,"職員の状況"]
[null,"特別職等",null,null,"区分",null,null,null,null,null,null,"定数",null,null,null,null,"1人あたり平均\n給料月額(百円)",null,null,null,null,null,"一般職員等(※6)",null,null,"区分",null,null,null,null,null,null,null,"職員数\n(人)",null,null,null,null,"給料月額\n(百円)",null,null,null,null,null,"1人あたり平均\n給料月額(百円)"]
[null,null,null,null,null,null,null,null,null,null,null,null,null,null,null,null,null,null,null,null,null,null,null,null,null,null,null,null,null,null,null,null,null,null,null,null,null,null,null,null,null,null,null,null,null,null,null,null,null,null,"地方債現在高",null,null,null,null,null,null,null,null,null,null,null,null,null,null,13368032,null,null,null,null,null,null,null,13462059]
[null,null,null,null,"市区町村長",null,null,null,null,null,null,1,null,null,null,null,8500,null,null,null,null,null,null,null,null,"一般職員",null,null,null,null,null,null,null,610,null,null,null,null,1985550,null,null,null,null,null,3255,null,null,null,null,null,"　うち公的資金",null,null,null,null,null,null,null,null,null,null,null,null,null,null,12426643,null,null,null,null,null,null,null,12439087]
[null,null,null,null,"副市区町村長",null,null,null,null,null,null,1,null,null,null,null,7100,null,null,null,null,null,null,null,null,"　うち消防職員",null,null,null,null,null,null,null,"-",null,null,null,null,"-",null,null,null,null,null,"-",null,null,null,null,null,"債務負担行為額（支出予定額）",null,null,null,null,null,null,null,null,null,null,null,null,null,null,9182104,null,null,null,null,null,null,null,7506384]
[null,null,null,null,"教育長",null,null,null,null,null,null,1,null,null,null,null,6830,null,null,null,null,null,null,null,null,"　うち技能労務職員",null,null,null,null,null,null,null,10,null,null,null,null,29200,null,null,null,null,null,2920,null,null,null,null,null,"収益事業収入",null,null,null,null,null,null,null,null,null,null,null,null,null,null,"-",null,null,null,null,null,null,null,"-"]
[null,null,null,null,"議会議長",null,null,null,null,null,null,1,null,null,null,null,4600,null,null,null,null,null,null,null,null,"教育公務員",null,null,null,null,null,null,null,26,null,null,null,null,87642,null,null,null,null,null,3371,null,null,null,null,null,"土地開発基金現在高",null,null,null,null,null,null,null,null,null,null,null,null,null,null,950000,null,null,null,null,null,null,null,950000]
[null,null,null,null,"議会副議長",null,null,null,null,null,null,1,null,null,null,null,3900,null,null,null,null,null,null,null,null,"臨時職員",null,null,null,null,null,null,null,"-",null,null,null,null,"-",null,null,null,null,null,"-",null,null,null,null,null,"積立金\n現在高",null,null,null,"財政調整基金",null,null,null,null,null,null,null,null,null,null,9277603,null,null,null,null,null,null,null,10512178]
[null,null,null,null,"議会議員",null,null,null,null,null,null,20,null,null,null,null,3700,null,null,null,null,null,null,null,null,"合計",null,null,null,null,null,null,null,636,null,null,null,null,2073192,null,null,null,null,null,3260,null,null,null,null,null,null,null,null,null,"減債基金",null,null,null,null,null,null,null,null,null,null,103908,null,null,null,null,null,null,null,119650]
[null,null,null,null,null,null,null,null,null,null,null,null,null,null,null,null,null,null,null,null,null,null,"ラスパイレス指数",null,null,null,null,null,null,null,null,null,null,99.6,null,null,null,null,null,null,null,null,null,null,null,null,null,null,null,null,null,null,null,null,"その他特定目的基金",null,null,null,null,null,null,null,null,null,null,6533580,null,null,null,null,null,null,null,5741268]
[]
[null,null,"一般会計等の一覧",null,null,null,null,null,null,null,null,null,null,null,null,null,null,null,null,null,"事業会計の一覧",null,null,null,null,null,null,null,null,null,null,null,null,null,null,null,null,null,"公営企業（法適）の一覧",null,null,null,null,null,null,null,null,null,null,null,null,null,null,null,null,null,"公営企業（法非適）の一覧",null,null,null,null,null,null,null,null,null,null,null,null,null,null,null,null,null,"関係する一部事務組合等一覧",null,null,null,null,null,null,null,null,null,null,null,null,null,null,null,null,null,"地方公社・第三セクター等一覧"]
[null,null,"項番",null,"会計名",null,null,null,null,null,null,null,null,null,null,null,null,null,null,null,"項番",null,"会計名",null,null,null,null,null,null,null,null,null,null,null,null,null,null,null,"項番",null,"会計名",null,null,null,null,null,null,null,null,null,null,null,null,null,null,null,"項番",null,"会計名",null,null,null,null,null,null,null,null,null,null,null,null,null,null,null,"項番",null,"組合等名",null,null,null,null,null,null,null,null,null,null,null,null,null,null,null,"項番",null,"団体名",null,null,null,null,null,null,null,null,null,null,null,null,null,null,null,"(※3)"]
[null,null,{"$f":"IF(E34=\"\",\"\",1)","v":1},null,{"$f":"IF('各会計、関係団体の財政状況及び健全化判断比率'!B7=\"\",\"\",'各会計、関係団体の財政状況及び健全化判断比率'!B7)","v":"一般会計"},null,null,null,null,null,null,null,null,null,null,null,null,null,null,null,{"$f":"IF(W34=\"\",\"\",MAX(C34:D43)+1)","v":2},null,{"$f":"IF('各会計、関係団体の財政状況及び健全化判断比率'!B28=\"\",\"\",'各会計、関係団体の財政状況及び健全化判断比率'!B28)","v":"国民健康保険特別会計"},null,null,null,null,null,null,null,null,null,null,null,null,null,null,null,{"$f":"IF(AO34=\"\",\"\",MAX(C34:D43,U34:V43)+1)","v":5},null,{"$f":"IF('各会計、関係団体の財政状況及び健全化判断比率'!B31=\"\",\"\",'各会計、関係団体の財政状況及び健全化判断比率'!B31)","v":"水道事業会計"},null,null,null,null,null,null,null,null,null,null,null,null,null,null,null,{"$f":"IF(BG34=\"\",\"\",MAX(C34:D43,U34:V43,AM34:AN43)+1)","v":""},null,null,null,null,null,null,null,null,null,null,null,null,null,null,null,null,null,{"$f":"IF(BY34=\"\",\"\",MAX(C34:D43,U34:V43,AM34:AN43,BE34:BF43)+1)","v":7},null,{"$f":"IF('各会計、関係団体の財政状況及び健全化判断比率'!B68=\"\",\"\",'各会計、関係団体の財政状況及び健全化判断比率'!B68)","v":"千葉県市町村総合事務組合（一般会計）"},null,null,null,null,null,null,null,null,null,null,null,null,null,null,null,{"$f":"IF(CQ34=\"\",\"\",MAX(C34:D43,U34:V43,AM34:AN43,BE34:BF43,BW34:BX43)+1)","v":""},null,{"$f":"IF('各会計、関係団体の財政状況及び健全化判断比率'!BS7=\"\",\"\",'各会計、関係団体の財政状況及び健全化判断比率'!BS7)","v":""},null,null,null,null,null,null,null,null,null,null,null,null,null,null,null,{"$f":"IF('各会計、関係団体の財政状況及び健全化判断比率'!BR7=\"\",\"\",'各会計、関係団体の財政状況及び健全化判断比率'!BR7)","v":""}]
[null,null,{"$f":"IF(E35=\"\",\"\",C34+1)","v":""},null,{"$f":"IF('各会計、関係団体の財政状況及び健全化判断比率'!B8=\"\",\"\",'各会計、関係団体の財政状況及び健全化判断比率'!B8)","v":""},null,null,null,null,null,null,null,null,null,null,null,null,null,null,null,{"$f":"IF(W35=\"\",\"\",U34+1)","v":3},null,{"$f":"IF('各会計、関係団体の財政状況及び健全化判断比率'!B29=\"\",\"\",'各会計、関係団体の財政状況及び健全化判断比率'!B29)","v":"介護保険特別会計"},null,null,null,null,null,null,null,null,null,null,null,null,null,null,null,{"$f":"IF(AO35=\"\",\"\",AM34+1)","v":6},null,{"$f":"IF('各会計、関係団体の財政状況及び健全化判断比率'!B32=\"\",\"\",'各会計、関係団体の財政状況及び健全化判断比率'!B32)","v":"下水道事業会計"},null,null,null,null,null,null,null,null,null,null,null,null,null,null,null,{"$f":"IF(BG35=\"\",\"\",BE34+1)","v":""},null,null,null,null,null,null,null,null,null,null,null,null,null,null,null,null,null,{"$f":"IF(BY35=\"\",\"\",BW34+1)","v":8},null,{"$f":"IF('各会計、関係団体の財政状況及び健全化判断比率'!B69=\"\",\"\",'各会計、関係団体の財政状況及び健全化判断比率'!B69)","v":"千葉県市町村総合事務組合（千葉県自治会館管理運営特別会計）"},null,null,null,null,null,null,null,null,null,null,null,null,null,null,null,{"$f":"IF(CQ35=\"\",\"\",CO34+1)","v":""},null,{"$f":"IF('各会計、関係団体の財政状況及び健全化判断比率'!BS8=\"\",\"\",'各会計、関係団体の財政状況及び健全化判断比率'!BS8)","v":""},null,null,null,null,null,null,null,null,null,null,null,null,null,null,null,{"$f":"IF('各会計、関係団体の財政状況及び健全化判断比率'!BR8=\"\",\"\",'各会計、関係団体の財政状況及び健全化判断比率'!BR8)","v":""}]
[null,null,{"$f":"IF(E36=\"\",\"\",C35+1)","v":""},null,{"$f":"IF('各会計、関係団体の財政状況及び健全化判断比率'!B9=\"\",\"\",'各会計、関係団体の財政状況及び健全化判断比率'!B9)","v":""},null,null,null,null,null,null,null,null,null,null,null,null,null,null,null,{"$f":"IF(W36=\"\",\"\",U35+1)","v":4},null,{"$f":"IF('各会計、関係団体の財政状況及び健全化判断比率'!B30=\"\",\"\",'各会計、関係団体の財政状況及び健全化判断比率'!B30)","v":"後期高齢者医療特別会計"},null,null,null,null,null,null,null,null,null,null,null,null,null,null,null,"",null,null,null,null,null,null,null,null,null,null,null,null,null,null,null,null,null,"",null,null,null,null,null,null,null,null,null,null,null,null,null,null,null,null,null,9,null,{"$f":"IF('各会計、関係団体の財政状況及び健全化判断比率'!B70=\"\",\"\",'各会計、関係団体の財政状況及び健全化判断比率'!B70)","v":"千葉県市町村総合事務組合（千葉県自治研修センター特別会計）"},null,null,null,null,null,null,null,null,null,null,null,null,null,null,null,"",null,{"$f":"IF('各会計、関係団体の財政状況及び健全化判断比率'!BS9=\"\",\"\",'各会計、関係団体の財政状況及び健全化判断比率'!BS9)","v":""},null,null,null,null,null,null,null,null,null,null,null,null,null,null,null,{"$f":"IF('各会計、関係団体の財政状況及び健全化判断比率'!BR9=\"\",\"\",'各会計、関係団体の財政状況及び健全化判断比率'!BR9)","v":""}]
[null,null,{"$f":"IF(E37=\"\",\"\",C36+1)","v":""},null,{"$f":"IF('各会計、関係団体の財政状況及び健全化判断比率'!B10=\"\",\"\",'各会計、関係団体の財政状況及び健全化判断比率'!B10)","v":""},null,null,null,null,null,null,null,null,null,null,null,null,null,null,null,"",null,null,null,null,null,null,null,null,null,null,null,null,null,null,null,null,null,"",null,null,null,null,null,null,null,null,null,null,null,null,null,null,null,null,null,"",null,null,null,null,null,null,null,null,null,null,null,null,null,null,null,null,null,10,null,{"$f":"IF('各会計、関係団体の財政状況及び健全化判断比率'!B71=\"\",\"\",'各会計、関係団体の財政状況及び健全化判断比率'!B71)","v":"千葉県市町村総合事務組合（千葉県市町村交通災害共済特別会計）"},null,null,null,null,null,null,null,null,null,null,null,null,null,null,null,"",null,{"$f":"IF('各会計、関係団体の財政状況及び健全化判断比率'!BS10=\"\",\"\",'各会計、関係団体の財政状況及び健全化判断比率'!BS10)","v":""},null,null,null,null,null,null,null,null,null,null,null,null,null,null,null,{"$f":"IF('各会計、関係団体の財政状況及び健全化判断比率'!BR10=\"\",\"\",'各会計、関係団体の財政状況及び健全化判断比率'!BR10)","v":""}]
[null,null,{"$f":"IF(E38=\"\",\"\",C37+1)","v":""},null,{"$f":"IF('各会計、関係団体の財政状況及び健全化判断比率'!B11=\"\",\"\",'各会計、関係団体の財政状況及び健全化判断比率'!B11)","v":""},null,null,null,null,null,null,null,null,null,null,null,null,null,null,null,"",null,null,null,null,null,null,null,null,null,null,null,null,null,null,null,null,null,"",null,null,null,null,null,null,null,null,null,null,null,null,null,null,null,null,null,"",null,null,null,null,null,null,null,null,null,null,null,null,null,null,null,null,null,11,null,{"$f":"IF('各会計、関係団体の財政状況及び健全化判断比率'!B72=\"\",\"\",'各会計、関係団体の財政状況及び健全化判断比率'!B72)","v":"千葉県後期高齢者医療広域連合（一般会計）"},null,null,null,null,null,null,null,null,null,null,null,null,null,null,null,"",null,{"$f":"IF('各会計、関係団体の財政状況及び健全化判断比率'!BS11=\"\",\"\",'各会計、関係団体の財政状況及び健全化判断比率'!BS11)","v":""},null,null,null,null,null,null,null,null,null,null,null,null,null,null,null,{"$f":"IF('各会計、関係団体の財政状況及び健全化判断比率'!BR11=\"\",\"\",'各会計、関係団体の財政状況及び健全化判断比率'!BR11)","v":""}]
[null,null,"",null,{"$f":"IF('各会計、関係団体の財政状況及び健全化判断比率'!B12=\"\",\"\",'各会計、関係団体の財政状況及び健全化判断比率'!B12)","v":""},null,null,null,null,null,null,null,null,null,null,null,null,null,null,null,"",null,null,null,null,null,null,null,null,null,null,null,null,null,null,null,null,null,"",null,null,null,null,null,null,null,null,null,null,null,null,null,null,null,null,null,"",null,null,null,null,null,null,null,null,null,null,null,null,null,null,null,null,null,12,null,{"$f":"IF('各会計、関係団体の財政状況及び健全化判断比率'!B73=\"\",\"\",'各会計、関係団体の財政状況及び健全化判断比率'!B73)","v":"千葉県後期高齢者医療広域連合（後期高齢者医療特別会計）"},null,null,null,null,null,null,null,null,null,null,null,null,null,null,null,"",null,{"$f":"IF('各会計、関係団体の財政状況及び健全化判断比率'!BS12=\"\",\"\",'各会計、関係団体の財政状況及び健全化判断比率'!BS12)","v":""},null,null,null,null,null,null,null,null,null,null,null,null,null,null,null,{"$f":"IF('各会計、関係団体の財政状況及び健全化判断比率'!BR12=\"\",\"\",'各会計、関係団体の財政状況及び健全化判断比率'!BR12)","v":""}]
[null,null,"",null,{"$f":"IF('各会計、関係団体の財政状況及び健全化判断比率'!B13=\"\",\"\",'各会計、関係団体の財政状況及び健全化判断比率'!B13)","v":""},null,null,null,null,null,null,null,null,null,null,null,null,null,null,null,"",null,null,null,null,null,null,null,null,null,null,null,null,null,null,null,null,null,"",null,null,null,null,null,null,null,null,null,null,null,null,null,null,null,null,null,"",null,null,null,null,null,null,null,null,null,null,null,null,null,null,null,null,null,13,null,{"$f":"IF('各会計、関係団体の財政状況及び健全化判断比率'!B74=\"\",\"\",'各会計、関係団体の財政状況及び健全化判断比率'!B74)","v":"印西地区消防組合（一般会計）"},null,null,null,null,null,null,null,null,null,null,null,null,null,null,null,"",null,{"$f":"IF('各会計、関係団体の財政状況及び健全化判断比率'!BS13=\"\",\"\",'各会計、関係団体の財政状況及び健全化判断比率'!BS13)","v":""},null,null,null,null,null,null,null,null,null,null,null,null,null,null,null,{"$f":"IF('各会計、関係団体の財政状況及び健全化判断比率'!BR13=\"\",\"\",'各会計、関係団体の財政状況及び健全化判断比率'!BR13)","v":""}]
[null,null,"",null,{"$f":"IF('各会計、関係団体の財政状況及び健全化判断比率'!B14=\"\",\"\",'各会計、関係団体の財政状況及び健全化判断比率'!B14)","v":""},null,null,null,null,null,null,null,null,null,null,null,null,null,null,null,"",null,null,null,null,null,null,null,null,null,null,null,null,null,null,null,null,null,"",null,null,null,null,null,null,null,null,null,null,null,null,null,null,null,null,null,"",null,null,null,null,null,null,null,null,null,null,null,null,null,null,null,null,null,14,null,{"$f":"IF('各会計、関係団体の財政状況及び健全化判断比率'!B75=\"\",\"\",'各会計、関係団体の財政状況及び健全化判断比率'!B75)","v":"印西地区衛生組合（一般会計）"},null,null,null,null,null,null,null,null,null,null,null,null,null,null,null,"",null,{"$f":"IF('各会計、関係団体の財政状況及び健全化判断比率'!BS14=\"\",\"\",'各会計、関係団体の財政状況及び健全化判断比率'!BS14)","v":""},null,null,null,null,null,null,null,null,null,null,null,null,null,null,null,{"$f":"IF('各会計、関係団体の財政状況及び健全化判断比率'!BR14=\"\",\"\",'各会計、関係団体の財政状況及び健全化判断比率'!BR14)","v":""}]
[null,null,"",null,{"$f":"IF('各会計、関係団体の財政状況及び健全化判断比率'!B15=\"\",\"\",'各会計、関係団体の財政状況及び健全化判断比率'!B15)","v":""},null,null,null,null,null,null,null,null,null,null,null,null,null,null,null,"",null,null,null,null,null,null,null,null,null,null,null,null,null,null,null,null,null,"",null,null,null,null,null,null,null,null,null,null,null,null,null,null,null,null,null,"",null,null,null,null,null,null,null,null,null,null,null,null,null,null,null,null,null,15,null,{"$f":"IF('各会計、関係団体の財政状況及び健全化判断比率'!B76=\"\",\"\",'各会計、関係団体の財政状況及び健全化判断比率'!B76)","v":"印旛利根川水防事務組合（一般会計）"},null,null,null,null,null,null,null,null,null,null,null,null,null,null,null,"",null,{"$f":"IF('各会計、関係団体の財政状況及び健全化判断比率'!BS15=\"\",\"\",'各会計、関係団体の財政状況及び健全化判断比率'!BS15)","v":""},null,null,null,null,null,null,null,null,null,null,null,null,null,null,null,{"$f":"IF('各会計、関係団体の財政状況及び健全化判断比率'!BR15=\"\",\"\",'各会計、関係団体の財政状況及び健全化判断比率'!BR15)","v":""}]
[null,null,"",null,{"$f":"IF('各会計、関係団体の財政状況及び健全化判断比率'!B16=\"\",\"\",'各会計、関係団体の財政状況及び健全化判断比率'!B16)","v":""},null,null,null,null,null,null,null,null,null,null,null,null,null,null,null,"",null,null,null,null,null,null,null,null,null,null,null,null,null,null,null,null,null,"",null,null,null,null,null,null,null,null,null,null,null,null,null,null,null,null,null,"",null,null,null,null,null,null,null,null,null,null,null,null,null,null,null,null,null,16,null,{"$f":"IF('各会計、関係団体の財政状況及び健全化判断比率'!B77=\"\",\"\",'各会計、関係団体の財政状況及び健全化判断比率'!B77)","v":"印西地区環境整備事業組合（一般会計）"},null,null,null,null,null,null,null,null,null,null,null,null,null,null,null,"",null,{"$f":"IF('各会計、関係団体の財政状況及び健全化判断比率'!BS16=\"\",\"\",'各会計、関係団体の財政状況及び健全化判断比率'!BS16)","v":""},null,null,null,null,null,null,null,null,null,null,null,null,null,null,null,{"$f":"IF('各会計、関係団体の財政状況及び健全化判断比率'!BR16=\"\",\"\",'各会計、関係団体の財政状況及び健全化判断比率'!BR16)","v":""}]
[]
[]
[null,"（注釈）",null,null,"※1：経常収支比率の( )内の数値は、令和元年度は「減収補塡債（特例分）」及び「臨時財政対策債」を、令和2年度は「減収補塡債（特例分）」「猶予特例債」及び「臨時財政対策債」を除いて算出したものである。"]
[null,null,null,null,"※2：各会計の一覧は主な会計（10会計まで）を記載している。"]
[null,null,null,null,"※3：地方公共団体が損失補塡等を行っている出資法人で、健全化法の算出対象となっている団体については、「地方公社・第三セクター等」の団体名に○印を付与している。"]
[null,null,null,null,"※4：資金不足比率欄には、資金が不足している会計のみ記載している。"]
[null,null,null,null,"※5：産業構造の比率は、分母を就業人口総数とし、分類不能の産業を除いて算出。"]
[null,null,null,null,"※6：個人情報保護の観点から、対象となる職員数が1人又は2人の場合は、｢給料月額(百円)｣と｢一人当たり給料月額（百円）｣を｢アスタリスク（＊）｣としている。（その他、数値のない欄については、すべてハイフン（－）としている）。"]
[null,null,null,null,"※7：人口については、調査対象年度の1月1日現在の住民基本台帳に登載されている人口に基づいている。"]

{"sheet":"普通会計の状況","index":1,"n_rows":49,"n_cols":127,"rows_kept":49,"cut":false,"hidden":false,"merged":[[48,81,48,94],[48,95,48,102],[48,103,48,106],[48,107,48,114],[48,115,48,125],[48,126,48,132],[47,83,47,94],[47,95,47,102],[47,103,47,106],[47,107,47,114],[47,115,47,125],[47,126,47,132],[43,81,47,82],[46,83,46,94],[46,95,46,102],[46,103,46,106],[46,107,46,114],[46,115,46,125],[46,126,46,132],[45,83,45,94],[45,95,45,102],[45,103,45,106],[45,107,45,114],[45,115,45,125],[45,126,45,132],[43,126,43,132],[44,83,44,94],[44,95,44,102],[44,103,44,106],[44,107,44,114],[44,115,44,125],[44,126,44,132],[42,103,42,106],[42,107,42,114],[42,115,42,125],[42,126,42,132],[43,83,43,94],[43,95,43,102],[43,103,43,106],[43,107,43,114],[43,115,43,125],[42,1,42,16],[42,17,42,24],[42,25,42,28],[42,29,42,36],[42,37,42,40],[42,81,42,94],[42,95,42,102],[41,51,41,57],[41,64,41,72],[41,73,41,79],[41,81,41,94],[41,95,41,102],[41,1,41,16],[41,17,41,24],[41,25,41,28],[41,29,41,36],[41,37,41,40],[41,42,41,50],[37,58,37,72],[39,126,39,132],[40,1,40,16],[40,17,40,24],[40,25,40,28],[40,29,40,36],[40,37,40,40],[40,42,40,50],[40,51,40,57],[40,64,40,72],[40,73,40,79],[39,73,39,79],[39,81,39,94],[39,95,39,102],[39,103,39,106],[39,107,39,114],[39,115,39,125],[39,1,39,16],[39,17,39,24],[39,25,39,28],[39,29,39,36],[39,37,39,40],[39,42,39,50],[39,51,39,57],[37,115,37,125],[37,126,37,132],[37,73,37,79],[37,81,37,94],[37,95,37,102],[37,103,37,106],[37,107,37,114],[38,126,38,132],[38,73,38,79],[38,81,38,94],[38,95,38,102],[38,103,38,106],[38,107,38,114],[38,115,38,125],[40,81,40,94],[40,95,40,102],[40,103,40,106],[40,107,40,114],[40,115,40,125],[40,126,40,132],[38,1,38,16],[38,17,38,24],[38,25,38,28],[38,29,38,36],[38,37,38,40],[38,42,38,50],[38,51,38,57],[38,58,38,72],[39,64,39,72],[39,58,41,62],[41,107,41,114],[41,115,41,125],[41,126,41,132],[41,103,41,106],[34,1,34,16],[34,17,34,24],[36,107,36,114],[36,115,36,125],[36,126,36,132],[37,1,37,16],[37,17,37,24],[37,25,37,28],[37,29,37,36],[37,37,37,40],[37,42,37,50],[37,51,37,57],[36,51,36,57],[36,58,36,72],[36,73,36,79],[36,81,36,94],[36,95,36,102],[36,103,36,106],[36,1,36,16],[36,17,36,24],[36,25,36,28],[36,29,36,36],[36,37,36,40],[36,42,36,50],[35,1,35,16],[35,17,35,24],[35,25,35,28],[35,29,35,36],[35,37,35,40],[35,42,35,50],[35,51,35,57],[35,58,35,72],[35,73,35,79],[35,81,35,94],[35,95,35,102],[35,103,35,106],[35,107,35,114],[35,115,35,125],[35,126,35,132],[34,126,34,132],[34,81,34,94],[34,95,34,102],[34,103,34,106],[34,107,34,114],[34,115,34,125],[34,25,34,28],[34,29,34,36],[34,37,34,40],[34,42,34,57],[33,81,33,94],[33,95,33,102],[34,58,34,79],[33,103,33,106],[33,107,33,114],[33,126,33,132],[32,95,32,102],[32,103,32,106],[32,107,32,114],[32,115,32,125],[32,126,32,132],[33,1,33,16],[33,17,33,24],[33,25,33,28],[33,29,33,36],[33,37,33,40],[32,49,32,57],[32,58,32,63],[32,64,32,68],[32,69,32,74],[32,75,32,79],[32,81,32,94],[32,1,32,16],[32,17,32,24],[32,25,32,28],[32,29,32,36],[32,37,32,40],[33,115,33,125],[29,1,29,16],[29,17,29,24],[29,25,29,28],[29,29,29,36],[29,37,29,40],[31,95,31,102],[31,103,31,106],[31,107,31,114],[31,115,31,125],[31,75,31,79],[31,83,31,94],[30,49,30,57],[30,58,30,63],[30,64,30,68],[30,69,30,74],[30,95,30,102],[31,49,31,57],[31,58,31,63],[31,64,31,68],[31,69,31,74],[30,1,30,16],[30,17,30,24],[30,25,30,28],[30,103,30,106],[31,126,31,132],[29,69,29,79],[29,83,29,94],[29,95,29,102],[29,103,29,106],[29,107,29,114],[29,115,29,125],[29,41,29,57],[29,58,29,68],[30,107,30,114],[30,115,30,125],[30,126,30,132],[30,75,30,79],[30,83,30,94],[30,41,32,44],[30,45,32,45],[29,126,29,132],[28,29,28,36],[28,37,28,40],[28,41,28,57],[28,58,28,65],[27,58,27,65],[27,66,27,69],[31,25,31,28],[31,29,31,36],[31,37,31,40],[30,29,30,36],[30,37,30,40],[28,126,28,132],[28,81,31,82],[31,1,31,16],[31,17,31,24],[25,17,25,24],[25,25,25,28],[25,29,25,36],[25,37,25,40],[25,41,25,57],[25,58,25,65],[25,66,25,69],[27,107,27,114],[27,115,27,125],[26,81,26,94],[26,95,26,102],[26,103,26,106],[26,107,26,114],[26,115,26,125],[28,66,28,69],[28,70,28,79],[27,126,27,132],[27,70,27,79],[27,81,27,94],[27,95,27,102],[24,115,24,125],[26,126,26,132],[25,126,25,132],[25,70,25,79],[25,81,25,94],[25,95,25,102],[25,103,25,106],[25,107,25,114],[25,115,25,125],[28,107,28,114],[28,115,28,125],[26,1,26,16],[26,17,26,24],[26,25,26,28],[26,29,26,36],[26,37,26,40],[26,41,26,57],[26,58,26,65],[26,66,26,69],[26,70,26,79],[27,103,27,106],[27,1,27,16],[27,17,27,24],[27,25,27,28],[27,29,27,36],[27,37,27,40],[27,41,27,57],[28,83,28,94],[28,95,28,102],[28,103,28,106],[28,1,28,16],[28,17,28,24],[28,25,28,28],[25,1,25,16],[24,66,24,69],[24,81,24,94],[24,95,24,102],[24,103,24,106],[24,107,24,114],[23,107,23,114],[23,115,23,125],[23,126,23,132],[24,1,24,16],[24,17,24,24],[24,25,24,28],[24,29,24,36],[24,37,24,40],[24,41,24,57],[24,58,24,65],[23,58,23,65],[23,66,23,69],[23,70,23,79],[23,81,23,94],[23,95,23,102],[23,103,23,106],[23,1,23,16],[23,17,23,24],[23,25,23,28],[23,29,23,36],[23,37,23,40],[23,41,23,57],[24,126,24,132],[24,70,24,79],[22,126,22,132],[21,81,21,132],[22,1,22,16],[22,17,22,24],[22,25,22,28],[22,29,22,36],[22,37,22,40],[22,41,22,57],[22,58,22,65],[22,66,22,69],[22,70,22,79],[21,1,21,16],[21,17,21,24],[21,25,21,28],[21,29,21,36],[21,37,21,40],[21,41,21,57],[21,58,21,65],[21,66,21,69],[21,70,21,79],[20,81,20,94],[20,95,20,102],[20,103,20,106],[20,107,20,119],[22,81,22,94],[22,95,22,102],[22,103,22,106],[22,107,22,114],[22,115,22,125],[19,1,19,16],[19,17,19,24],[19,25,19,28],[19,29,19,36],[19,37,19,40],[19,103,19,106],[19,107,19,119],[19,120,19,132],[20,1,20,16],[20,17,20,24],[20,25,20,28],[20,29,20,36],[20,37,20,40],[20,41,20,57],[20,58,20,65],[19,41,19,57],[19,58,19,65],[19,66,19,69],[19,70,19,79],[19,81,19,94],[19,95,19,102],[20,120,20,132],[20,66,20,69],[20,70,20,79],[17,81,17,94],[17,95,17,102],[17,103,17,106],[17,107,17,119],[18,81,18,94],[18,95,18,102],[18,103,18,106],[18,107,18,119],[18,120,18,132],[18,1,18,16],[18,17,18,24],[18,25,18,28],[18,29,18,36],[18,37,18,40],[18,41,18,57],[18,58,18,65],[18,66,18,69],[18,70,18,79],[16,1,16,16],[16,17,16,24],[16,25,16,28],[16,29,16,36],[16,37,16,40],[16,103,16,106],[16,107,16,119],[16,120,16,132],[17,1,17,16],[17,17,17,24],[17,25,17,28],[17,29,17,36],[17,37,17,40],[17,41,17,57],[17,58,17,65],[16,41,16,57],[16,58,16,65],[16,66,16,69],[16,70,16,79],[16,81,16,94],[16,95,16,102],[17,120,17,132],[17,66,17,69],[17,70,17,79],[14,81,14,94],[14,95,14,102],[14,103,14,106],[14,107,14,119],[15,81,15,94],[15,95,15,102],[15,103,15,106],[15,107,15,119],[15,120,15,132],[15,1,15,16],[15,17,15,24],[15,25,15,28],[15,29,15,36],[15,37,15,40],[15,41,15,57],[15,58,15,65],[15,66,15,69],[15,70,15,79],[13,1,13,16],[13,17,13,24],[13,25,13,28],[13,29,13,36],[13,37,13,40],[13,103,13,106],[13,107,13,119],[13,120,13,132],[14,1,14,16],[14,17,14,24],[14,25,14,28],[14,29,14,36],[14,37,14,40],[14,41,14,57],[14,58,14,65],[13,41,13,57],[13,58,13,65],[13,66,13,69],[13,70,13,79],[13,81,13,94],[13,95,13,102],[14,120,14,132],[14,66,14,69],[14,70,14,79],[11,81,11,94],[11,95,11,102],[11,103,11,106],[11,107,11,119],[12,81,12,94],[12,95,12,102],[12,103,12,106],[12,107,12,119],[12,120,12,132],[12,1,12,16],[12,17,12,24],[12,25,12,28],[12,29,12,36],[12,37,12,40],[12,41,12,57],[12,58,12,65],[12,66,12,69],[12,70,12,79],[10,1,10,16],[10,17,10,24],[10,25,10,28],[10,29,10,36],[10,37,10,40],[10,103,10,106],[10,107,10,119],[10,120,10,132],[11,1,11,16],[11,17,11,24],[11,25,11,28],[11,29,11,36],[11,37,11,40],[11,41,11,57],[11,58,11,65],[10,41,10,57],[10,58,10,65],[10,66,10,69],[10,70,10,79],[10,81,10,94],[10,95,10,102],[11,120,11,132],[11,66,11,69],[11,70,11,79],[8,81,8,94],[8,95,8,102],[8,103,8,106],[8,107,8,119],[9,81,9,94],[9,95,9,102],[9,103,9,106],[9,107,9,119],[9,120,9,132],[9,1,9,16],[9,17,9,24],[9,25,9,28],[9,29,9,36],[9,37,9,40],[9,41,9,57],[9,58,9,65],[9,66,9,69],[9,70,9,79],[7,1,7,16],[7,17,7,24],[7,25,7,28],[7,29,7,36],[7,37,7,40],[7,103,7,106],[7,107,7,119],[7,120,7,132],[8,1,8,16],[8,17,8,24],[8,25,8,28],[8,29,8,36],[8,37,8,40],[8,41,8,57],[8,58,8,65],[7,41,7,57],[7,58,7,65],[7,66,7,69],[7,70,7,79],[7,81,7,94],[7,95,7,102],[8,120,8,132],[8,66,8,69],[8,70,8,79],[5,81,5,94],[5,95,5,102],[5,103,5,106],[5,107,5,119],[6,81,6,94],[6,95,6,102],[6,103,6,106],[6,107,6,119],[6,120,6,132],[6,1,6,16],[6,17,6,24],[6,25,6,28],[6,29,6,36],[6,37,6,40],[6,41,6,57],[6,58,6,65],[6,66,6,69],[6,70,6,79],[4,1,4,16],[4,17,4,24],[4,25,4,28],[4,29,4,36],[4,37,4,40],[4,103,4,106],[4,107,4,119],[4,120,4,132],[5,1,5,16],[5,17,5,24],[5,25,5,28],[5,29,5,36],[5,37,5,40],[5,41,5,57],[5,58,5,65],[4,41,4,57],[4,58,4,65],[4,66,4,69],[4,70,4,79],[4,81,4,94],[4,95,4,102],[5,120,5,132],[5,66,5,69],[5,70,5,79],[0,111,0,117],[0,119,0,132],[2,1,2,40],[2,41,2,79],[2,81,2,132],[3,1,3,16],[3,17,3,24],[3,25,3,28],[3,29,3,36],[3,37,3,40],[3,41,3,57],[3,58,3,65],[3,66,3,69],[3,70,3,79],[3,81,3,132]]}
[null,null,null,null,null,null,null,null,null,null,null,null,null,null,null,null,null,null,null,null,null,null,null,null,null,null,null,null,null,null,null,null,null,null,null,null,null,null,null,null,null,null,null,null,null,null,null,null,null,null,null,null,null,null,null,null,null,null,null,null,null,null,null,null,null,null,null,null,null,null,null,null,null,null,null,null,null,null,null,null,null,null,null,null,null,null,null,null,null,null,null,null,null,null,null,null,null,null,null,null,null,null,null,null,null,null,null,null,null,null,null,"令和2年度",null,null,null,null,null,null,null,"千葉県印西市"]
[null,"(1) 普通会計の状況（市町村）"]
[null,"歳入の状況（単位 千円・％）",null,null,null,null,null,null,null,null,null,null,null,null,null,null,null,null,null,null,null,null,null,null,null,null,null,null,null,null,null,null,null,null,null,null,null,null,null,null,null,"地方税の状況（単位 千円・％）",null,null,null,null,null,null,null,null,null,null,null,null,null,null,null,null,null,null,null,null,null,null,null,null,null,null,null,null,null,null,null,null,null,null,null,null,null,null,null,"歳出の状況（単位 千円・％）"]
[null,"区分",null,null,null,null,null,null,null,null,null,null,null,null,null,null,null,"決算額",null,null,null,null,null,null,null,"構成比",null,null,null,"経常一般財源等",null,null,null,null,null,null,null,"構成比",null,null,null,"区分",null,null,null,null,null,null,null,null,null,null,null,null,null,null,null,null,"収入済額",null,null,null,null,null,null,null,"構成比",null,null,null,"超過課税分",null,null,null,null,null,null,null,null,null,null,"目的別歳出の状況（単位 千円・％）"]
[null,"地方税",null,null,null,null,null,null,null,null,null,null,null,null,null,null,null,21477597,null,null,null,null,null,null,null,36.799999999999997,null,null,null,19929402,null,null,null,null,null,null,null,85.4,null,null,null,"普通税",null,null,null,null,null,null,null,null,null,null,null,null,null,null,null,null,19929402,null,null,null,null,null,null,null,92.8,null,null,null,"-",null,null,null,null,null,null,null,null,null,null,"区分",null,null,null,null,null,null,null,null,null,null,null,null,null,"決算額 (A)",null,null,null,null,null,null,null,"構成比",null,null,null,"(A)のうち普通建設事業費",null,null,null,null,null,null,null,null,null,null,null,null,"(A)のうち充当一般財源等"]
[null,"地方譲与税",null,null,null,null,null,null,null,null,null,null,null,null,null,null,null,356096,null,null,null,null,null,null,null,0.6,null,null,null,356096,null,null,null,null,null,null,null,1.5,null,null,null,"　法定普通税",null,null,null,null,null,null,null,null,null,null,null,null,null,null,null,null,19929402,null,null,null,null,null,null,null,92.8,null,null,null,"-",null,null,null,null,null,null,null,null,null,null,"議会費",null,null,null,null,null,null,null,null,null,null,null,null,null,303226,null,null,null,null,null,null,null,0.6,null,null,null,42554,null,null,null,null,null,null,null,null,null,null,null,null,303226]
[null,"利子割交付金",null,null,null,null,null,null,null,null,null,null,null,null,null,null,null,12520,null,null,null,null,null,null,null,0,null,null,null,12520,null,null,null,null,null,null,null,0.1,null,null,null,"　　市町村民税",null,null,null,null,null,null,null,null,null,null,null,null,null,null,null,null,7900791,null,null,null,null,null,null,null,36.799999999999997,null,null,null,"-",null,null,null,null,null,null,null,null,null,null,"総務費",null,null,null,null,null,null,null,null,null,null,null,null,null,21246742,null,null,null,null,null,null,null,38.799999999999997,null,null,null,1154758,null,null,null,null,null,null,null,null,null,null,null,null,6482829]
[null,"配当割交付金",null,null,null,null,null,null,null,null,null,null,null,null,null,null,null,75077,null,null,null,null,null,null,null,0.1,null,null,null,75077,null,null,null,null,null,null,null,0.3,null,null,null,"　　　個人均等割",null,null,null,null,null,null,null,null,null,null,null,null,null,null,null,null,183332,null,null,null,null,null,null,null,0.9,null,null,null,"-",null,null,null,null,null,null,null,null,null,null,"民生費",null,null,null,null,null,null,null,null,null,null,null,null,null,14496681,null,null,null,null,null,null,null,26.5,null,null,null,449589,null,null,null,null,null,null,null,null,null,null,null,null,7521613]
[null,"株式等譲渡所得割交付金",null,null,null,null,null,null,null,null,null,null,null,null,null,null,null,91629,null,null,null,null,null,null,null,0.2,null,null,null,91629,null,null,null,null,null,null,null,0.4,null,null,null,"　　　所得割",null,null,null,null,null,null,null,null,null,null,null,null,null,null,null,null,6650537,null,null,null,null,null,null,null,31,null,null,null,"-",null,null,null,null,null,null,null,null,null,null,"衛生費",null,null,null,null,null,null,null,null,null,null,null,null,null,3474630,null,null,null,null,null,null,null,6.3,null,null,null,93350,null,null,null,null,null,null,null,null,null,null,null,null,3275252]
[null,"分離課税所得割交付金",null,null,null,null,null,null,null,null,null,null,null,null,null,null,null,"-",null,null,null,null,null,null,null,"-",null,null,null,"-",null,null,null,null,null,null,null,"-",null,null,null,"　　　法人均等割",null,null,null,null,null,null,null,null,null,null,null,null,null,null,null,null,297183,null,null,null,null,null,null,null,1.4,null,null,null,"-",null,null,null,null,null,null,null,null,null,null,"労働費",null,null,null,null,null,null,null,null,null,null,null,null,null,"-",null,null,null,null,null,null,null,"-",null,null,null,"-",null,null,null,null,null,null,null,null,null,null,null,null,"-"]
[null,"地方消費税交付金",null,null,null,null,null,null,null,null,null,null,null,null,null,null,null,1946205,null,null,null,null,null,null,null,3.3,null,null,null,1946205,null,null,null,null,null,null,null,8.3000000000000007,null,null,null,"　　　法人税割",null,null,null,null,null,null,null,null,null,null,null,null,null,null,null,null,769739,null,null,null,null,null,null,null,3.6,null,null,null,"-",null,null,null,null,null,null,null,null,null,null,"農林水産業費",null,null,null,null,null,null,null,null,null,null,null,null,null,426517,null,null,null,null,null,null,null,0.8,null,null,null,4075,null,null,null,null,null,null,null,null,null,null,null,null,245410]
[null,"ゴルフ場利用税交付金",null,null,null,null,null,null,null,null,null,null,null,null,null,null,null,121706,null,null,null,null,null,null,null,0.2,null,null,null,121706,null,null,null,null,null,null,null,0.5,null,null,null,"　　固定資産税",null,null,null,null,null,null,null,null,null,null,null,null,null,null,null,null,11270032,null,null,null,null,null,null,null,52.5,null,null,null,"-",null,null,null,null,null,null,null,null,null,null,"商工費",null,null,null,null,null,null,null,null,null,null,null,null,null,819921,null,null,null,null,null,null,null,1.5,null,null,null,"-",null,null,null,null,null,null,null,null,null,null,null,null,93898]
[null,"特別地方消費税交付金",null,null,null,null,null,null,null,null,null,null,null,null,null,null,null,"-",null,null,null,null,null,null,null,"-",null,null,null,"-",null,null,null,null,null,null,null,"-",null,null,null,"　　　うち純固定資産税",null,null,null,null,null,null,null,null,null,null,null,null,null,null,null,null,11193527,null,null,null,null,null,null,null,52.1,null,null,null,"-",null,null,null,null,null,null,null,null,null,null,"土木費",null,null,null,null,null,null,null,null,null,null,null,null,null,2741143,null,null,null,null,null,null,null,5,null,null,null,990255,null,null,null,null,null,null,null,null,null,null,null,null,2278670]
[null,"自動車取得税交付金",null,null,null,null,null,null,null,null,null,null,null,null,null,null,null,10,null,null,null,null,null,null,null,0,null,null,null,10,null,null,null,null,null,null,null,0,null,null,null,"　　軽自動車税",null,null,null,null,null,null,null,null,null,null,null,null,null,null,null,null,192990,null,null,null,null,null,null,null,0.9,null,null,null,"-",null,null,null,null,null,null,null,null,null,null,"消防費",null,null,null,null,null,null,null,null,null,null,null,null,null,1946067,null,null,null,null,null,null,null,3.6,null,null,null,79583,null,null,null,null,null,null,null,null,null,null,null,null,1919601]
[null,"軽油引取税交付金",null,null,null,null,null,null,null,null,null,null,null,null,null,null,null,"-",null,null,null,null,null,null,null,"-",null,null,null,"-",null,null,null,null,null,null,null,"-",null,null,null,"　　市町村たばこ税",null,null,null,null,null,null,null,null,null,null,null,null,null,null,null,null,565589,null,null,null,null,null,null,null,2.6,null,null,null,"-",null,null,null,null,null,null,null,null,null,null,"教育費",null,null,null,null,null,null,null,null,null,null,null,null,null,7550677,null,null,null,null,null,null,null,13.8,null,null,null,2443162,null,null,null,null,null,null,null,null,null,null,null,null,5920354]
[null,"自動車税環境性能割交付金",null,null,null,null,null,null,null,null,null,null,null,null,null,null,null,43767,null,null,null,null,null,null,null,0.1,null,null,null,43767,null,null,null,null,null,null,null,0.2,null,null,null,"　　鉱産税",null,null,null,null,null,null,null,null,null,null,null,null,null,null,null,null,"-",null,null,null,null,null,null,null,"-",null,null,null,"-",null,null,null,null,null,null,null,null,null,null,"災害復旧費",null,null,null,null,null,null,null,null,null,null,null,null,null,19078,null,null,null,null,null,null,null,0,null,null,null,"-",null,null,null,null,null,null,null,null,null,null,null,null,"-"]
[null,"法人事業税交付金",null,null,null,null,null,null,null,null,null,null,null,null,null,null,null,126377,null,null,null,null,null,null,null,0.2,null,null,null,126377,null,null,null,null,null,null,null,0.5,null,null,null,"　　特別土地保有税",null,null,null,null,null,null,null,null,null,null,null,null,null,null,null,null,"-",null,null,null,null,null,null,null,"-",null,null,null,"-",null,null,null,null,null,null,null,null,null,null,"公債費",null,null,null,null,null,null,null,null,null,null,null,null,null,1699841,null,null,null,null,null,null,null,3.1,null,null,null,"-",null,null,null,null,null,null,null,null,null,null,null,null,1699841]
[null,"地方特例交付金",null,null,null,null,null,null,null,null,null,null,null,null,null,null,null,214334,null,null,null,null,null,null,null,0.4,null,null,null,214334,null,null,null,null,null,null,null,0.9,null,null,null,"　法定外普通税",null,null,null,null,null,null,null,null,null,null,null,null,null,null,null,null,"-",null,null,null,null,null,null,null,"-",null,null,null,"-",null,null,null,null,null,null,null,null,null,null,"諸支出金",null,null,null,null,null,null,null,null,null,null,null,null,null,"-",null,null,null,null,null,null,null,"-",null,null,null,"-",null,null,null,null,null,null,null,null,null,null,null,null,"-"]
[null,"　個人住民税減収補塡特例交付金",null,null,null,null,null,null,null,null,null,null,null,null,null,null,null,188783,null,null,null,null,null,null,null,0.3,null,null,null,188783,null,null,null,null,null,null,null,0.8,null,null,null,"目的税",null,null,null,null,null,null,null,null,null,null,null,null,null,null,null,null,1548195,null,null,null,null,null,null,null,7.2,null,null,null,"-",null,null,null,null,null,null,null,null,null,null,"前年度繰上充用金",null,null,null,null,null,null,null,null,null,null,null,null,null,"-",null,null,null,null,null,null,null,"-",null,null,null,"-",null,null,null,null,null,null,null,null,null,null,null,null,"-"]
[null,"　自動車税減収補塡特例交付金",null,null,null,null,null,null,null,null,null,null,null,null,null,null,null,20742,null,null,null,null,null,null,null,0,null,null,null,20742,null,null,null,null,null,null,null,0.1,null,null,null,"　法定目的税",null,null,null,null,null,null,null,null,null,null,null,null,null,null,null,null,1548195,null,null,null,null,null,null,null,7.2,null,null,null,"-",null,null,null,null,null,null,null,null,null,null,"歳出合計",null,null,null,null,null,null,null,null,null,null,null,null,null,54724523,null,null,null,null,null,null,null,100,null,null,null,5257326,null,null,null,null,null,null,null,null,null,null,null,null,29740694]
[null,"　軽自動車税減収補塡特例交付金",null,null,null,null,null,null,null,null,null,null,null,null,null,null,null,4809,null,null,null,null,null,null,null,0,null,null,null,4809,null,null,null,null,null,null,null,0,null,null,null,"　　入湯税",null,null,null,null,null,null,null,null,null,null,null,null,null,null,null,null,"-",null,null,null,null,null,null,null,"-",null,null,null,"-"]
[null,"地方交付税",null,null,null,null,null,null,null,null,null,null,null,null,null,null,null,123427,null,null,null,null,null,null,null,0.2,null,null,null,"-",null,null,null,null,null,null,null,"-",null,null,null,"　　事業所税",null,null,null,null,null,null,null,null,null,null,null,null,null,null,null,null,"-",null,null,null,null,null,null,null,"-",null,null,null,"-",null,null,null,null,null,null,null,null,null,null,"性質別歳出の状況（単位 千円・％）"]
[null,"　普通交付税",null,null,null,null,null,null,null,null,null,null,null,null,null,null,null,"-",null,null,null,null,null,null,null,"-",null,null,null,"-",null,null,null,null,null,null,null,"-",null,null,null,"　　都市計画税",null,null,null,null,null,null,null,null,null,null,null,null,null,null,null,null,1548195,null,null,null,null,null,null,null,7.2,null,null,null,"-",null,null,null,null,null,null,null,null,null,null,"区分",null,null,null,null,null,null,null,null,null,null,null,null,null,"決算額",null,null,null,null,null,null,null,"構成比",null,null,null,"充当一般財源等",null,null,null,null,null,null,null,"経常経費充当一般財源等",null,null,null,null,null,null,null,null,null,null,"経常収支比率"]
[null,"　特別交付税",null,null,null,null,null,null,null,null,null,null,null,null,null,null,null,117366,null,null,null,null,null,null,null,0.2,null,null,null,"-",null,null,null,null,null,null,null,"-",null,null,null,"　　水利地益税等",null,null,null,null,null,null,null,null,null,null,null,null,null,null,null,null,"-",null,null,null,null,null,null,null,"-",null,null,null,"-",null,null,null,null,null,null,null,null,null,null,"義務的経費計",null,null,null,null,null,null,null,null,null,null,null,null,null,17806039,null,null,null,null,null,null,null,32.5,null,null,null,10672573,null,null,null,null,null,null,null,10012241,null,null,null,null,null,null,null,null,null,null,42.9]
[null,"　震災復興特別交付税",null,null,null,null,null,null,null,null,null,null,null,null,null,null,null,6061,null,null,null,null,null,null,null,0,null,null,null,"-",null,null,null,null,null,null,null,"-",null,null,null,"　法定外目的税",null,null,null,null,null,null,null,null,null,null,null,null,null,null,null,null,"-",null,null,null,null,null,null,null,"-",null,null,null,"-",null,null,null,null,null,null,null,null,null,null,"　人件費",null,null,null,null,null,null,null,null,null,null,null,null,null,6163712,null,null,null,null,null,null,null,11.3,null,null,null,5458788,null,null,null,null,null,null,null,5421258,null,null,null,null,null,null,null,null,null,null,23.2]
[null,"(一般財源計)",null,null,null,null,null,null,null,null,null,null,null,null,null,null,null,24588745,null,null,null,null,null,null,null,42.1,null,null,null,22917123,null,null,null,null,null,null,null,98.2,null,null,null,"旧法による税",null,null,null,null,null,null,null,null,null,null,null,null,null,null,null,null,"-",null,null,null,null,null,null,null,"-",null,null,null,"-",null,null,null,null,null,null,null,null,null,null,"　　うち職員給",null,null,null,null,null,null,null,null,null,null,null,null,null,4278480,null,null,null,null,null,null,null,7.8,null,null,null,3668927,null,null,null,null,null,null,null,"-",null,null,null,null,null,null,null,null,null,null,"-"]
[null,"交通安全対策特別交付金",null,null,null,null,null,null,null,null,null,null,null,null,null,null,null,12293,null,null,null,null,null,null,null,0,null,null,null,12293,null,null,null,null,null,null,null,0.1,null,null,null,"合計",null,null,null,null,null,null,null,null,null,null,null,null,null,null,null,null,21477597,null,null,null,null,null,null,null,100,null,null,null,"-",null,null,null,null,null,null,null,null,null,null,"　扶助費",null,null,null,null,null,null,null,null,null,null,null,null,null,9942486,null,null,null,null,null,null,null,18.2,null,null,null,3513944,null,null,null,null,null,null,null,2891142,null,null,null,null,null,null,null,null,null,null,12.4]
[null,"分担金・負担金",null,null,null,null,null,null,null,null,null,null,null,null,null,null,null,61587,null,null,null,null,null,null,null,0.1,null,null,null,20904,null,null,null,null,null,null,null,0.1,null,null,null,null,null,null,null,null,null,null,null,null,null,null,null,null,null,null,null,null,null,null,null,null,null,null,null,null,null,null,null,null,null,null,null,null,null,null,null,null,null,null,null,"　公債費",null,null,null,null,null,null,null,null,null,null,null,null,null,1699841,null,null,null,null,null,null,null,3.1,null,null,null,1699841,null,null,null,null,null,null,null,1699841,null,null,null,null,null,null,null,null,null,null,7.3]
[null,"使用料",null,null,null,null,null,null,null,null,null,null,null,null,null,null,null,451658,null,null,null,null,null,null,null,0.8,null,null,null,352104,null,null,null,null,null,null,null,1.5,null,null,null,null,null,null,null,null,null,null,null,null,null,null,null,null,null,null,null,null,null,null,null,null,null,null,null,null,null,null,null,null,null,null,null,null,null,null,null,null,null,null,null,"内訳",null,"元利償還金",null,null,null,null,null,null,null,null,null,null,null,1699841,null,null,null,null,null,null,null,3.1,null,null,null,1699841,null,null,null,null,null,null,null,1699841,null,null,null,null,null,null,null,null,null,null,7.3]
[null,"手数料",null,null,null,null,null,null,null,null,null,null,null,null,null,null,null,66029,null,null,null,null,null,null,null,0.1,null,null,null,"-",null,null,null,null,null,null,null,"-",null,null,null,"区分",null,null,null,null,null,null,null,null,null,null,null,null,null,null,null,null,"令和2年度",null,null,null,null,null,null,null,null,null,null,"令和元年度",null,null,null,null,null,null,null,null,null,null,null,null,null,"　うち元金",null,null,null,null,null,null,null,null,null,null,null,1594727,null,null,null,null,null,null,null,2.9,null,null,null,1594727,null,null,null,null,null,null,null,1594727,null,null,null,null,null,null,null,null,null,null,6.8]
[null,"国庫支出金",null,null,null,null,null,null,null,null,null,null,null,null,null,null,null,17586055,null,null,null,null,null,null,null,30.1,null,null,null,"-",null,null,null,null,null,null,null,"-",null,null,null,"徴収率\n(％)",null,null,null,"現年",null,null,null,"合計",null,null,null,null,null,null,null,null,99.2,null,null,null,null,null,97.6,null,null,null,null,99.1,null,null,null,null,null,97.4,null,null,null,null,null,null,null,"　うち利子",null,null,null,null,null,null,null,null,null,null,null,105114,null,null,null,null,null,null,null,0.2,null,null,null,105114,null,null,null,null,null,null,null,105114,null,null,null,null,null,null,null,null,null,null,0.5]
[null,"国有提供交付金(特別区財調交付金)",null,null,null,null,null,null,null,null,null,null,null,null,null,null,null,"-",null,null,null,null,null,null,null,"-",null,null,null,"-",null,null,null,null,null,null,null,"-",null,null,null,null,null,null,null,null,"・計",null,null,"市町村民税",null,null,null,null,null,null,null,null,98.9,null,null,null,null,null,97.1,null,null,null,null,98.8,null,null,null,null,null,97.2,null,null,null,null,null,null,null,"一時借入金利子",null,null,null,null,null,null,null,null,null,null,null,"-",null,null,null,null,null,null,null,"-",null,null,null,"-",null,null,null,null,null,null,null,"-",null,null,null,null,null,null,null,null,null,null,"-"]
[null,"都道府県支出金",null,null,null,null,null,null,null,null,null,null,null,null,null,null,null,2908563,null,null,null,null,null,null,null,5,null,null,null,"-",null,null,null,null,null,null,null,"-",null,null,null,null,null,null,null,null,null,null,null,"純固定資産税",null,null,null,null,null,null,null,null,99.4,null,null,null,null,null,97.9,null,null,null,null,99.2,null,null,null,null,null,97.6,null,null,null,null,null,"その他の経費",null,null,null,null,null,null,null,null,null,null,null,null,null,31642080,null,null,null,null,null,null,null,57.8,null,null,null,16063609,null,null,null,null,null,null,null,10253579,null,null,null,null,null,null,null,null,null,null,43.9]
[null,"財産収入",null,null,null,null,null,null,null,null,null,null,null,null,null,null,null,38299,null,null,null,null,null,null,null,0.1,null,null,null,33480,null,null,null,null,null,null,null,0.1,null,null,null,null,null,null,null,null,null,null,null,null,null,null,null,null,null,null,null,null,null,null,null,null,null,null,null,null,null,null,null,null,null,null,null,null,null,null,null,null,null,null,null,"　物件費",null,null,null,null,null,null,null,null,null,null,null,null,null,6760686,null,null,null,null,null,null,null,12.4,null,null,null,5431762,null,null,null,null,null,null,null,4339170,null,null,null,null,null,null,null,null,null,null,18.600000000000001]
[null,"寄附金",null,null,null,null,null,null,null,null,null,null,null,null,null,null,null,56345,null,null,null,null,null,null,null,0.1,null,null,null,"-",null,null,null,null,null,null,null,"-",null,null,null,null,"公営事業等への繰出",null,null,null,null,null,null,null,null,null,null,null,null,null,null,null,"国民健康保険事業会計の状況",null,null,null,null,null,null,null,null,null,null,null,null,null,null,null,null,null,null,null,null,null,null,"　維持補修費",null,null,null,null,null,null,null,null,null,null,null,null,null,174893,null,null,null,null,null,null,null,0.3,null,null,null,171284,null,null,null,null,null,null,null,170899,null,null,null,null,null,null,null,null,null,null,0.7]
[null,"繰入金",null,null,null,null,null,null,null,null,null,null,null,null,null,null,null,7037064,null,null,null,null,null,null,null,12,null,null,null,"-",null,null,null,null,null,null,null,"-",null,null,null,null,"合計",null,null,null,null,null,null,null,null,2695915,null,null,null,null,null,null,"実質収支",null,null,null,null,null,null,null,null,null,null,null,null,null,null,87410,null,null,null,null,null,null,null,"　補助費等",null,null,null,null,null,null,null,null,null,null,null,null,null,15802088,null,null,null,null,null,null,null,28.9,null,null,null,4997528,null,null,null,null,null,null,null,3955453,null,null,null,null,null,null,null,null,null,null,16.899999999999999]
[null,"繰越金",null,null,null,null,null,null,null,null,null,null,null,null,null,null,null,2231947,null,null,null,null,null,null,null,3.8,null,null,null,"-",null,null,null,null,null,null,null,"-",null,null,null,null,"下水道",null,null,null,null,null,null,null,null,237375,null,null,null,null,null,null,"再差引収支",null,null,null,null,null,null,null,null,null,null,null,null,null,null,56214,null,null,null,null,null,null,null,"　　うち一部事務組合負担金",null,null,null,null,null,null,null,null,null,null,null,null,null,3124692,null,null,null,null,null,null,null,5.7,null,null,null,3124692,null,null,null,null,null,null,null,2945670,null,null,null,null,null,null,null,null,null,null,12.6]
[null,"諸収入",null,null,null,null,null,null,null,null,null,null,null,null,null,null,null,1884413,null,null,null,null,null,null,null,3.2,null,null,null,12665,null,null,null,null,null,null,null,0.1,null,null,null,null,"上水道",null,null,null,null,null,null,null,null,187931,null,null,null,null,null,null,"加入世帯数(世帯)",null,null,null,null,null,null,null,null,null,null,null,null,null,null,12044,null,null,null,null,null,null,null,"　繰出金",null,null,null,null,null,null,null,null,null,null,null,null,null,2270609,null,null,null,null,null,null,null,4.0999999999999996,null,null,null,1846481,null,null,null,null,null,null,null,1788057,null,null,null,null,null,null,null,null,null,null,7.7]
[null,"地方債",null,null,null,null,null,null,null,null,null,null,null,null,null,null,null,1500700,null,null,null,null,null,null,null,2.6,null,null,null,"-",null,null,null,null,null,null,null,"-",null,null,null,null,"工業用水道",null,null,null,null,null,null,null,null,"-",null,null,null,null,null,null,"被保険者数(人)",null,null,null,null,null,null,null,null,null,null,null,null,null,null,19416,null,null,null,null,null,null,null,"　積立金",null,null,null,null,null,null,null,null,null,null,null,null,null,6569059,null,null,null,null,null,null,null,12,null,null,null,3576809,null,null,null,null,null,null,null,"-",null,null,null,null,null,null,null,null,null,null,"-"]
[null,"　うち減収補塡債(特例分)",null,null,null,null,null,null,null,null,null,null,null,null,null,null,null,"-",null,null,null,null,null,null,null,"-",null,null,null,"-",null,null,null,null,null,null,null,"-",null,null,null,null,"交通",null,null,null,null,null,null,null,null,"-",null,null,null,null,null,null,"被保険者\n1人当り",null,null,null,null,null,"保険税(料)収入額",null,null,null,null,null,null,null,null,106,null,null,null,null,null,null,null,"　投資・出資金・貸付金",null,null,null,null,null,null,null,null,null,null,null,null,null,64745,null,null,null,null,null,null,null,0.1,null,null,null,39745,null,null,null,null,null,null,null,"-",null,null,null,null,null,null,null,null,null,null,"-"]
[null,"　うち猶予特例債",null,null,null,null,null,null,null,null,null,null,null,null,null,null,null,"-",null,null,null,null,null,null,null,"-",null,null,null,"-",null,null,null,null,null,null,null,"-",null,null,null,null,"国民健康保険",null,null,null,null,null,null,null,null,573664,null,null,null,null,null,null,null,null,null,null,null,null,"国庫支出金",null,null,null,null,null,null,null,null,"-",null,null,null,null,null,null,null,"　前年度繰上充用金",null,null,null,null,null,null,null,null,null,null,null,null,null,"-",null,null,null,null,null,null,null,"-",null,null,null,"-"]
[null,"　うち臨時財政対策債",null,null,null,null,null,null,null,null,null,null,null,null,null,null,null,"-",null,null,null,null,null,null,null,"-",null,null,null,"-",null,null,null,null,null,null,null,"-",null,null,null,null,"その他",null,null,null,null,null,null,null,null,1696945,null,null,null,null,null,null,null,null,null,null,null,null,"保険給付費",null,null,null,null,null,null,null,null,309,null,null,null,null,null,null,null,"投資的経費計",null,null,null,null,null,null,null,null,null,null,null,null,null,5276404,null,null,null,null,null,null,null,9.6,null,null,null,3004512]
[null,"歳入合計",null,null,null,null,null,null,null,null,null,null,null,null,null,null,null,58423698,null,null,null,null,null,null,null,100,null,null,null,23348569,null,null,null,null,null,null,null,100,null,null,null,null,null,null,null,null,null,null,null,null,null,null,null,null,null,null,null,null,null,null,null,null,null,null,null,null,null,null,null,null,null,null,null,null,null,null,null,null,null,null,null,"　　うち人件費",null,null,null,null,null,null,null,null,null,null,null,null,null,157710,null,null,null,null,null,null,null,0.3,null,null,null,157710]
[null,null,null,null,null,null,null,null,null,null,null,null,null,null,null,null,null,null,null,null,null,null,null,null,null,null,null,null,null,null,null,null,null,null,null,null,null,null,null,null,null,null,null,null,null,null,null,null,null,null,null,null,null,null,null,null,null,null,null,null,null,null,null,null,null,null,null,null,null,null,null,null,null,null,null,null,null,null,null,null,null,"内訳",null,"普通建設事業費",null,null,null,null,null,null,null,null,null,null,null,5257326,null,null,null,null,null,null,null,9.6,null,null,null,3004512]
[null,"(注釈)",null,null,null,null,null,null,null,null,null,null,null,null,null,null,null,null,null,null,null,null,null,null,null,null,null,null,null,null,null,null,null,null,null,null,null,null,null,null,null,null,null,null,null,null,null,null,null,null,null,null,null,null,null,null,null,null,null,null,null,null,null,null,null,null,null,null,null,null,null,null,null,null,null,null,null,null,null,null,null,null,null,"　うち補助",null,null,null,null,null,null,null,null,null,null,null,1044783,null,null,null,null,null,null,null,1.9,null,null,null,522887]
[null,"　　普通建設事業費の補助事業費には受託事業費のうちの補助事業費を含み、",null,null,null,null,null,null,null,null,null,null,null,null,null,null,null,null,null,null,null,null,null,null,null,null,null,null,null,null,null,null,null,null,null,null,null,null,null,null,null,null,null,null,null,null,null,null,null,null,null,null,null,null,null,null,null,null,null,null,null,null,null,null,null,null,null,null,null,null,null,null,null,null,null,null,null,null,null,null,null,null,null,"　うち単独",null,null,null,null,null,null,null,null,null,null,null,4199780,null,null,null,null,null,null,null,7.7,null,null,null,2473506]
[null,"　単独事業費には同級他団体施行事業負担金及び受託事業費のうちの単独事業費を含む。",null,null,null,null,null,null,null,null,null,null,null,null,null,null,null,null,null,null,null,null,null,null,null,null,null,null,null,null,null,null,null,null,null,null,null,null,null,null,null,null,null,null,null,null,null,null,null,null,null,null,null,null,null,null,null,null,null,null,null,null,null,null,null,null,null,null,null,null,null,null,null,null,null,null,null,null,null,null,null,null,null,"災害復旧事業費",null,null,null,null,null,null,null,null,null,null,null,19078,null,null,null,null,null,null,null,0,null,null,null,"-"]
[null,null,null,null,null,null,null,null,null,null,null,null,null,null,null,null,null,null,null,null,null,null,null,null,null,null,null,null,null,null,null,null,null,null,null,null,null,null,null,null,null,null,null,null,null,null,null,null,null,null,null,null,null,null,null,null,null,null,null,null,null,null,null,null,null,null,null,null,null,null,null,null,null,null,null,null,null,null,null,null,null,null,null,"失業対策事業費",null,null,null,null,null,null,null,null,null,null,null,"-",null,null,null,null,null,null,null,"-",null,null,null,"-"]
[null,null,null,null,null,null,null,null,null,null,null,null,null,null,null,null,null,null,null,null,null,null,null,null,null,null,null,null,null,null,null,null,null,null,null,null,null,null,null,null,null,null,null,null,null,null,null,null,null,null,null,null,null,null,null,null,null,null,null,null,null,null,null,null,null,null,null,null,null,null,null,null,null,null,null,null,null,null,null,null,null,"歳出合計",null,null,null,null,null,null,null,null,null,null,null,null,null,54724523,null,null,null,null,null,null,null,100,null,null,null,29740694]

{"sheet":"各会計、関係団体の財政状況及び健全化判断比率","index":2,"n_rows":133,"n_cols":126,"rows_kept":133,"cut":false,"hidden":false,"merged":[[132,21,132,25],[132,26,132,30],[132,31,132,35],[132,36,132,40],[132,41,132,45],[130,49,130,56],[130,57,130,63],[130,64,130,70],[130,71,130,77],[131,0,132,20],[131,21,131,25],[131,26,131,30],[131,31,131,35],[131,36,131,40],[131,41,131,45],[129,49,129,56],[129,57,129,63],[129,64,129,70],[129,71,129,77],[130,0,130,21],[130,22,130,25],[130,26,130,30],[130,31,130,35],[130,36,130,40],[130,41,130,45],[128,49,128,56],[128,57,128,63],[128,64,128,70],[128,71,128,77],[129,0,129,21],[129,22,129,25],[129,26,129,30],[129,31,129,35],[129,36,129,40],[129,41,129,45],[128,0,128,21],[128,22,128,25],[128,26,128,30],[128,31,128,35],[128,36,128,40],[128,41,128,45],[127,71,127,77],[127,93,127,109],[127,110,127,114],[127,115,127,119],[127,120,127,124],[127,125,127,129],[126,125,126,129],[127,0,127,21],[127,22,127,25],[127,26,127,30],[127,31,127,35],[127,36,127,40],[127,41,127,45],[127,49,127,56],[127,57,127,63],[127,64,127,70],[126,64,126,70],[126,71,126,77],[126,93,126,109],[126,110,126,114],[126,115,126,119],[126,120,126,124],[118,0,126,1],[123,2,123,25],[123,26,123,30],[123,31,123,35],[123,36,123,40],[123,41,123,45],[123,46,123,67],[123,68,123,72],[122,68,122,72],[122,73,122,77],[122,78,122,82],[122,83,122,87],[122,93,122,109],[122,110,122,114],[125,115,125,119],[125,120,125,124],[125,125,125,129],[126,2,126,25],[126,26,126,30],[126,31,126,35],[126,36,126,40],[126,41,126,45],[126,49,126,56],[126,57,126,63],[124,115,124,119],[124,120,124,124],[124,125,124,129],[125,2,125,25],[125,26,125,30],[125,31,125,35],[125,36,125,40],[125,41,125,45],[125,93,125,109],[125,110,125,114],[121,78,121,82],[121,83,121,87],[121,93,121,109],[120,93,120,109],[120,110,120,114],[120,115,120,119],[120,120,120,124],[120,125,120,129],[121,2,121,25],[121,26,121,30],[121,31,121,35],[121,36,121,40],[121,41,121,45],[123,120,123,124],[123,125,123,129],[124,2,124,25],[124,26,124,30],[124,31,124,35],[124,36,124,40],[124,41,124,45],[124,88,127,92],[124,93,124,109],[124,110,124,114],[123,73,123,77],[123,78,123,82],[123,83,123,87],[123,93,123,109],[123,110,123,114],[123,115,123,119],[122,115,122,119],[122,120,122,124],[122,125,122,129],[119,115,119,119],[119,120,119,124],[119,125,119,129],[120,2,120,25],[120,26,120,30],[120,31,120,35],[120,36,120,40],[120,41,120,45],[120,51,120,67],[119,68,119,72],[119,73,119,77],[119,78,119,82],[119,83,119,87],[119,88,123,92],[119,93,119,109],[120,68,120,72],[120,73,120,77],[120,78,120,82],[120,83,120,87],[121,110,121,114],[121,115,121,119],[121,120,121,124],[121,125,121,129],[122,2,122,25],[122,26,122,30],[122,31,122,35],[122,36,122,40],[122,41,122,45],[122,66,122,67],[121,51,121,67],[121,68,121,72],[121,73,121,77],[118,115,118,119],[118,120,118,124],[118,125,118,129],[119,2,119,25],[119,26,119,30],[119,31,119,35],[119,36,119,40],[119,41,119,45],[119,46,122,50],[119,51,119,67],[118,68,118,72],[118,73,118,77],[118,78,118,82],[118,83,118,87],[118,90,118,109],[118,110,118,114],[117,115,117,119],[117,120,117,124],[117,125,117,129],[118,2,118,25],[118,26,118,30],[118,31,118,35],[118,36,118,40],[118,41,118,45],[118,66,118,67],[117,68,117,72],[117,73,117,77],[117,78,117,82],[117,83,117,87],[117,90,117,109],[117,110,117,114],[119,110,119,114],[116,125,116,129],[117,0,117,25],[117,26,117,30],[117,31,117,35],[117,36,117,40],[117,41,117,45],[117,51,117,67],[116,51,116,67],[116,68,116,72],[116,73,116,77],[116,78,116,82],[116,83,116,87],[116,90,116,109],[116,0,116,23],[116,24,116,25],[116,26,116,30],[116,31,116,35],[116,36,116,40],[116,41,116,45],[115,2,115,25],[115,26,115,30],[115,31,115,35],[115,36,115,40],[115,41,115,45],[115,51,115,67],[115,68,115,72],[115,73,115,77],[115,78,115,82],[114,78,114,82],[114,83,114,87],[114,90,114,109],[114,110,114,114],[114,115,114,119],[114,120,114,124],[116,110,116,114],[116,115,116,119],[116,120,116,124],[113,36,113,40],[113,41,113,45],[113,51,113,67],[113,68,113,72],[112,68,112,72],[112,73,112,77],[112,78,112,82],[112,83,112,87],[112,90,112,109],[112,110,112,114],[115,83,115,87],[115,90,115,109],[115,110,115,114],[115,115,115,119],[115,120,115,124],[115,125,115,129],[114,125,114,129],[111,73,111,77],[111,78,111,82],[111,83,111,87],[111,90,111,109],[111,0,115,1],[111,2,111,25],[111,26,111,30],[111,31,111,35],[111,36,111,40],[111,41,111,45],[113,120,113,124],[113,125,113,129],[114,2,114,25],[114,26,114,30],[114,31,114,35],[114,36,114,40],[114,41,114,45],[114,51,114,67],[114,68,114,72],[114,73,114,77],[113,73,113,77],[113,78,113,82],[113,83,113,87],[113,90,113,109],[113,110,113,114],[113,115,113,119],[112,115,112,119],[112,120,112,124],[112,125,112,129],[113,2,113,25],[113,26,113,30],[113,31,113,35],[109,90,109,109],[109,110,109,114],[109,115,109,119],[109,120,109,124],[109,125,109,129],[110,0,110,25],[110,26,110,30],[110,31,110,35],[110,36,110,40],[110,41,110,45],[109,51,109,67],[109,68,109,72],[109,73,109,77],[109,78,109,82],[109,83,109,87],[109,88,118,89],[110,51,110,67],[110,68,110,72],[110,73,110,77],[110,78,110,82],[111,110,111,114],[111,115,111,119],[111,120,111,124],[111,125,111,129],[112,2,112,25],[112,26,112,30],[112,31,112,35],[112,36,112,40],[112,41,112,45],[112,51,112,67],[111,51,111,67],[111,68,111,72],[108,110,108,114],[108,115,108,119],[108,120,108,124],[108,125,108,129],[109,0,109,25],[109,26,109,30],[109,31,109,35],[109,36,109,40],[109,41,109,45],[109,46,118,50],[108,46,108,67],[108,68,108,72],[108,73,108,77],[108,78,108,82],[108,83,108,87],[108,88,108,109],[101,125,101,129],[102,68,102,129],[103,68,103,129],[107,0,107,45],[107,46,107,129],[108,0,108,25],[108,26,108,30],[108,31,108,35],[108,36,108,40],[108,41,108,45],[110,83,110,87],[110,90,110,109],[110,110,110,114],[110,115,110,119],[110,120,110,124],[110,125,110,129],[100,125,100,129],[101,69,101,84],[101,85,101,89],[101,90,101,94],[101,95,101,99],[101,100,101,104],[101,105,101,109],[101,110,101,114],[101,115,101,119],[101,120,101,124],[99,125,99,129],[100,70,100,84],[100,85,100,89],[100,90,100,94],[100,95,100,99],[100,100,100,104],[100,105,100,109],[100,110,100,114],[100,115,100,119],[100,120,100,124],[98,125,98,129],[99,70,99,84],[99,85,99,89],[99,90,99,94],[99,95,99,99],[99,100,99,104],[99,105,99,109],[99,110,99,114],[99,115,99,119],[99,120,99,124],[97,125,97,129],[98,70,98,84],[98,85,98,89],[98,90,98,94],[98,95,98,99],[98,100,98,104],[98,105,98,109],[98,110,98,114],[98,115,98,119],[98,120,98,124],[96,125,96,129],[97,70,97,84],[97,85,97,89],[97,90,97,94],[97,95,97,99],[97,100,97,104],[97,105,97,109],[97,110,97,114],[97,115,97,119],[97,120,97,124],[95,125,95,129],[96,70,96,84],[96,85,96,89],[96,90,96,94],[96,95,96,99],[96,100,96,104],[96,105,96,109],[96,110,96,114],[96,115,96,119],[96,120,96,124],[94,125,94,129],[95,70,95,84],[95,85,95,89],[95,90,95,94],[95,95,95,99],[95,100,95,104],[95,105,95,109],[95,110,95,114],[95,115,95,119],[95,120,95,124],[93,125,93,129],[94,70,94,84],[94,85,94,89],[94,90,94,94],[94,95,94,99],[94,100,94,104],[94,105,94,109],[94,110,94,114],[94,115,94,119],[94,120,94,124],[92,125,92,129],[93,70,93,84],[93,85,93,89],[93,90,93,94],[93,95,93,99],[93,100,93,104],[93,105,93,109],[93,110,93,114],[93,115,93,119],[93,120,93,124],[91,125,91,129],[92,70,92,84],[92,85,92,89],[92,90,92,94],[92,95,92,99],[92,100,92,104],[92,105,92,109],[92,110,92,114],[92,115,92,119],[92,120,92,124],[90,125,90,129],[91,70,91,84],[91,85,91,89],[91,90,91,94],[91,95,91,99],[91,100,91,104],[91,105,91,109],[91,110,91,114],[91,115,91,119],[91,120,91,124],[89,125,89,129],[90,70,90,84],[90,85,90,89],[90,90,90,94],[90,95,90,99],[90,100,90,104],[90,105,90,109],[90,110,90,114],[90,115,90,119],[90,120,90,124],[88,125,88,129],[89,70,89,84],[89,85,89,89],[89,90,89,94],[89,95,89,99],[89,100,89,104],[89,105,89,109],[89,110,89,114],[89,115,89,119],[89,120,89,124],[87,125,87,129],[88,70,88,84],[88,85,88,89],[88,90,88,94],[88,95,88,99],[88,100,88,104],[88,105,88,109],[88,110,88,114],[88,115,88,119],[88,120,88,124],[87,95,87,99],[87,100,87,104],[87,105,87,109],[87,110,87,114],[87,115,87,119],[87,120,87,124],[87,41,87,45],[87,46,87,50],[87,51,87,55],[87,70,87,84],[87,85,87,89],[87,90,87,94],[86,110,86,114],[86,115,86,119],[86,120,86,124],[86,125,86,129],[87,1,87,15],[87,16,87,20],[87,21,87,25],[87,26,87,30],[87,31,87,35],[87,36,87,40],[86,70,86,84],[86,85,86,89],[86,90,86,94],[86,95,86,99],[86,100,86,104],[86,105,86,109],[85,125,85,129],[86,1,86,15],[86,16,86,20],[86,21,86,25],[86,26,86,30],[86,31,86,35],[86,36,86,40],[86,41,86,45],[86,46,86,50],[86,51,86,55],[85,95,85,99],[85,100,85,104],[85,105,85,109],[85,110,85,114],[85,115,85,119],[85,120,85,124],[85,41,85,45],[85,46,85,50],[85,51,85,55],[85,70,85,84],[85,85,85,89],[85,90,85,94],[84,110,84,114],[84,115,84,119],[84,120,84,124],[84,125,84,129],[85,1,85,15],[85,16,85,20],[85,21,85,25],[85,26,85,30],[85,31,85,35],[85,36,85,40],[84,70,84,84],[84,85,84,89],[84,90,84,94],[84,95,84,99],[84,100,84,104],[84,105,84,109],[83,125,83,129],[84,1,84,15],[84,16,84,20],[84,21,84,25],[84,26,84,30],[84,31,84,35],[84,36,84,40],[84,41,84,45],[84,46,84,50],[84,51,84,55],[83,95,83,99],[83,100,83,104],[83,105,83,109],[83,110,83,114],[83,115,83,119],[83,120,83,124],[83,41,83,45],[83,46,83,50],[83,51,83,55],[83,70,83,84],[83,85,83,89],[83,90,83,94],[82,110,82,114],[82,115,82,119],[82,120,82,124],[82,125,82,129],[83,1,83,15],[83,16,83,20],[83,21,83,25],[83,26,83,30],[83,31,83,35],[83,36,83,40],[82,70,82,84],[82,85,82,89],[82,90,82,94],[82,95,82,99],[82,100,82,104],[82,105,82,109],[81,125,81,129],[82,1,82,15],[82,16,82,20],[82,21,82,25],[82,26,82,30],[82,31,82,35],[82,36,82,40],[82,41,82,45],[82,46,82,50],[82,51,82,55],[81,95,81,99],[81,100,81,104],[81,105,81,109],[81,110,81,114],[81,115,81,119],[81,120,81,124],[81,41,81,45],[81,46,81,50],[81,51,81,55],[81,70,81,84],[81,85,81,89],[81,90,81,94],[80,110,80,114],[80,115,80,119],[80,120,80,124],[80,125,80,129],[81,1,81,15],[81,16,81,20],[81,21,81,25],[81,26,81,30],[81,31,81,35],[81,36,81,40],[80,70,80,84],[80,85,80,89],[80,90,80,94],[80,95,80,99],[80,100,80,104],[80,105,80,109],[79,125,79,129],[80,1,80,15],[80,16,80,20],[80,21,80,25],[80,26,80,30],[80,31,80,35],[80,36,80,40],[80,41,80,45],[80,46,80,50],[80,51,80,55],[79,95,79,99],[79,100,79,104],[79,105,79,109],[79,110,79,114],[79,115,79,119],[79,120,79,124],[79,41,79,45],[79,46,79,50],[79,51,79,55],[79,70,79,84],[79,85,79,89],[79,90,79,94],[78,110,78,114],[78,115,78,119],[78,120,78,124],[78,125,78,129],[79,1,79,15],[79,16,79,20],[79,21,79,25],[79,26,79,30],[79,31,79,35],[79,36,79,40],[78,70,78,84],[78,85,78,89],[78,90,78,94],[78,95,78,99],[78,100,78,104],[78,105,78,109],[77,125,77,129],[78,1,78,15],[78,16,78,20],[78,21,78,25],[78,26,78,30],[78,31,78,35],[78,36,78,40],[78,41,78,45],[78,46,78,50],[78,51,78,55],[77,95,77,99],[77,100,77,104],[77,105,77,109],[77,110,77,114],[77,115,77,119],[77,120,77,124],[77,41,77,45],[77,46,77,50],[77,51,77,55],[77,70,77,84],[77,85,77,89],[77,90,77,94],[76,110,76,114],[76,115,76,119],[76,120,76,124],[76,125,76,129],[77,1,77,15],[77,16,77,20],[77,21,77,25],[77,26,77,30],[77,31,77,35],[77,36,77,40],[76,70,76,84],[76,85,76,89],[76,90,76,94],[76,95,76,99],[76,100,76,104],[76,105,76,109],[75,125,75,129],[76,1,76,15],[76,16,76,20],[76,21,76,25],[76,26,76,30],[76,31,76,35],[76,36,76,40],[76,41,76,45],[76,46,76,50],[76,51,76,55],[75,95,75,99],[75,100,75,104],[75,105,75,109],[75,110,75,114],[75,115,75,119],[75,120,75,124],[75,41,75,45],[75,46,75,50],[75,51,75,55],[75,70,75,84],[75,85,75,89],[75,90,75,94],[74,110,74,114],[74,115,74,119],[74,120,74,124],[74,125,74,129],[75,1,75,15],[75,16,75,20],[75,21,75,25],[75,26,75,30],[75,31,75,35],[75,36,75,40],[74,70,74,84],[74,85,74,89],[74,90,74,94],[74,95,74,99],[74,100,74,104],[74,105,74,109],[73,125,73,129],[74,1,74,15],[74,16,74,20],[74,21,74,25],[74,26,74,30],[74,31,74,35],[74,36,74,40],[74,41,74,45],[74,46,74,50],[74,51,74,55],[73,95,73,99],[73,100,73,104],[73,105,73,109],[73,110,73,114],[73,115,73,119],[73,120,73,124],[73,41,73,45],[73,46,73,50],[73,51,73,55],[73,70,73,84],[73,85,73,89],[73,90,73,94],[72,110,72,114],[72,115,72,119],[72,120,72,124],[72,125,72,129],[73,1,73,15],[73,16,73,20],[73,21,73,25],[73,26,73,30],[73,31,73,35],[73,36,73,40],[72,70,72,84],[72,85,72,89],[72,90,72,94],[72,95,72,99],[72,100,72,104],[72,105,72,109],[71,125,71,129],[72,1,72,15],[72,16,72,20],[72,21,72,25],[72,26,72,30],[72,31,72,35],[72,36,72,40],[72,41,72,45],[72,46,72,50],[72,51,72,55],[71,95,71,99],[71,100,71,104],[71,105,71,109],[71,110,71,114],[71,115,71,119],[71,120,71,124],[71,41,71,45],[71,46,71,50],[71,51,71,55],[71,70,71,84],[71,85,71,89],[71,90,71,94],[70,110,70,114],[70,115,70,119],[70,120,70,124],[70,125,70,129],[71,1,71,15],[71,16,71,20],[71,21,71,25],[71,26,71,30],[71,31,71,35],[71,36,71,40],[70,70,70,84],[70,85,70,89],[70,90,70,94],[70,95,70,99],[70,100,70,104],[70,105,70,109],[67,100,67,104],[67,105,67,109],[67,110,67,114],[67,115,67,119],[67,120,67,124],[69,125,69,129],[70,1,70,15],[70,16,70,20],[70,21,70,25],[70,26,70,30],[70,31,70,35],[70,36,70,40],[70,41,70,45],[70,46,70,50],[70,51,70,55],[69,95,69,99],[69,100,69,104],[69,105,69,109],[69,110,69,114],[69,115,69,119],[69,120,69,124],[69,41,69,45],[69,46,69,50],[69,51,69,55],[69,70,69,84],[69,85,69,89],[69,90,69,94],[66,100,66,104],[66,105,66,109],[66,110,66,114],[66,115,66,119],[66,120,66,124],[68,110,68,114],[68,115,68,119],[68,120,68,124],[68,125,68,129],[69,1,69,15],[69,16,69,20],[69,21,69,25],[69,26,69,30],[69,31,69,35],[69,36,69,40],[68,70,68,84],[68,85,68,89],[68,90,68,94],[68,95,68,99],[68,100,68,104],[68,105,68,109],[67,125,67,129],[68,1,68,15],[68,16,68,20],[68,21,68,25],[68,26,68,30],[68,31,68,35],[68,36,68,40],[68,41,68,45],[68,46,68,50],[68,51,68,55],[67,95,67,99],[65,95,65,99],[66,70,66,84],[66,85,66,89],[66,90,66,94],[66,95,66,99],[67,41,67,45],[67,46,67,50],[67,51,67,55],[67,70,67,84],[67,85,67,89],[67,90,67,94],[67,1,67,15],[67,16,67,20],[67,21,67,25],[67,26,67,30],[67,31,67,35],[67,36,67,40],[64,115,64,119],[64,120,64,124],[64,125,64,129],[65,0,66,15],[65,16,66,20],[65,21,66,25],[65,26,66,30],[65,31,66,35],[65,36,66,40],[65,41,66,45],[63,115,63,119],[63,120,63,124],[63,125,63,129],[64,70,64,84],[64,85,64,89],[64,90,64,94],[64,95,64,99],[64,100,64,104],[64,105,64,109],[64,110,64,114],[66,125,66,129],[65,100,65,104],[65,105,65,109],[65,110,65,114],[65,115,65,119],[65,120,65,124],[65,125,65,129],[65,46,66,50],[65,51,66,55],[65,70,65,84],[65,85,65,89],[65,90,65,94],[61,31,61,35],[61,36,61,40],[61,41,61,45],[61,46,61,50],[61,51,61,55],[60,21,60,25],[63,70,63,84],[63,85,63,89],[63,90,63,94],[63,95,63,99],[63,100,63,104],[63,105,63,109],[63,110,63,114],[62,85,62,89],[62,90,62,94],[62,95,62,99],[62,100,62,104],[62,105,62,109],[62,110,62,114],[62,41,62,45],[62,46,62,50],[62,51,62,55],[62,56,62,60],[62,61,62,65],[62,70,62,84],[60,95,60,99],[60,100,60,104],[60,105,60,109],[60,110,60,114],[58,125,58,129],[59,125,59,129],[58,36,58,40],[58,41,58,45],[58,46,58,50],[58,51,58,55],[60,125,60,129],[62,1,62,15],[62,16,62,20],[62,21,62,25],[62,26,62,30],[62,31,62,35],[62,36,62,40],[61,100,61,104],[61,105,61,109],[61,110,61,114],[61,115,61,119],[61,120,61,124],[61,125,61,129],[61,56,61,60],[61,61,61,65],[61,70,61,84],[61,85,61,89],[61,90,61,94],[61,95,61,99],[62,115,62,119],[62,120,62,124],[62,125,62,129],[61,1,61,15],[61,16,61,20],[61,21,61,25],[61,26,61,30],[60,115,60,119],[60,120,60,124],[60,46,60,50],[60,51,60,55],[60,56,60,60],[60,70,60,84],[60,85,60,89],[60,90,60,94],[59,115,59,119],[58,1,58,15],[58,16,58,20],[58,21,58,25],[59,120,59,124],[60,1,60,15],[60,16,60,20],[58,26,58,30]],"merged_total":2033,"flags":["merged_cut"]}
[]
["(2)各会計、関係団体の財政状況及び健全化判断比率（市町村）",null,null,null,null,null,null,null,null,null,null,null,null,null,null,null,null,null,null,null,null,null,null,null,null,null,null,null,null,null,null,null,null,null,null,null,null,null,null,null,null,null,null,null,null,null,null,null,null,null,null,null,null,null,null,null,null,null,null,null,null,null,null,null,null,null,null,null,null,null,null,null,null,null,null,null,null,null,null,null,null,null,null,null,null,null,null,null,null,null,null,null,null,null,null,null,null,null,null,null,null,null,null,null,null,null,null,null,null,null,null,null,null,"令和2年度",null,null,null,null,null,null,"千葉県印西市"]
[]
["一般会計等の財政状況（単位：百万円）",null,null,null,null,null,null,null,null,null,null,null,null,null,null,null,null,null,null,null,null,null,null,null,null,null,null,null,null,null,null,null,null,null,null,null,null,null,null,null,null,null,null,null,null,null,null,null,null,null,null,null,null,null,null,null,null,null,null,null,null,null,null,null,null,null,null,null,"地方公社・第三セクター等の経営状況及び地方公共団体の財政的支援の状況（単位：百万円）"]
["会計名",null,null,null,null,null,null,null,null,null,null,null,null,null,null,null,"歳入",null,null,null,null,"歳出",null,null,null,null,"形式収支",null,null,null,null,"実質収支",null,null,null,null,"他会計等\nからの\n繰入金",null,null,null,null,"地方債\n現在高",null,null,null,null,"備考",null,null,null,null,null,null,null,null,null,null,null,null,null,null,null,null,null,null,null,null,null,"地方公社・第三セクター等名",null,null,null,null,null,null,null,null,null,null,null,null,null,null,null,null,"経常損益",null,null,null,null,"純資産又は\n正味財産",null,null,null,null,"当該団体\nからの\n出資金",null,null,null,null,"当該団体\nからの\n補助金",null,null,null,null,"当該団体\nからの\n貸付金",null,null,null,null,"当該団体からの債務保証に係る債務残高",null,null,null,null,"当該団体からの損失補償に係る債務残高",null,null,null,null,"一般会計等\n負担見込額",null,null,null,null,"備考"]
[]
[1,"一般会計",null,null,null,null,null,null,null,null,null,null,null,null,null,null,58431,null,null,null,null,54732,null,null,null,null,3699,null,null,null,null,2998,null,null,null,null,7037,null,null,null,null,13368,null,null,null,null,null,null,null,null,null,null,null,null,null,null,null,null,null,null,null,null,null,null,null,null,null,null,1]
[2,null,null,null,null,null,null,null,null,null,null,null,null,null,null,null,null,null,null,null,null,null,null,null,null,null,null,null,null,null,null,null,null,null,null,null,null,null,null,null,null,null,null,null,null,null,null,null,null,null,null,null,null,null,null,null,null,null,null,null,null,null,null,null,null,null,null,null,2]
[3,null,null,null,null,null,null,null,null,null,null,null,null,null,null,null,null,null,null,null,null,null,null,null,null,null,null,null,null,null,null,null,null,null,null,null,null,null,null,null,null,null,null,null,null,null,null,null,null,null,null,null,null,null,null,null,null,null,null,null,null,null,null,null,null,null,null,null,3]
[4,null,null,null,null,null,null,null,null,null,null,null,null,null,null,null,null,null,null,null,null,null,null,null,null,null,null,null,null,null,null,null,null,null,null,null,null,null,null,null,null,null,null,null,null,null,null,null,null,null,null,null,null,null,null,null,null,null,null,null,null,null,null,null,null,null,null,null,4]
[5,null,null,null,null,null,null,null,null,null,null,null,null,null,null,null,null,null,null,null,null,null,null,null,null,null,null,null,null,null,null,null,null,null,null,null,null,null,null,null,null,null,null,null,null,null,null,null,null,null,null,null,null,null,null,null,null,null,null,null,null,null,null,null,null,null,null,null,5]
[6,null,null,null,null,null,null,null,null,null,null,null,null,null,null,null,null,null,null,null,null,null,null,null,null,null,null,null,null,null,null,null,null,null,null,null,null,null,null,null,null,null,null,null,null,null,null,null,null,null,null,null,null,null,null,null,null,null,null,null,null,null,null,null,null,null,null,null,6]
[7,null,null,null,null,null,null,null,null,null,null,null,null,null,null,null,null,null,null,null,null,null,null,null,null,null,null,null,null,null,null,null,null,null,null,null,null,null,null,null,null,null,null,null,null,null,null,null,null,null,null,null,null,null,null,null,null,null,null,null,null,null,null,null,null,null,null,null,7]
[8,null,null,null,null,null,null,null,null,null,null,null,null,null,null,null,null,null,null,null,null,null,null,null,null,null,null,null,null,null,null,null,null,null,null,null,null,null,null,null,null,null,null,null,null,null,null,null,null,null,null,null,null,null,null,null,null,null,null,null,null,null,null,null,null,null,null,null,8]
[9,null,null,null,null,null,null,null,null,null,null,null,null,null,null,null,null,null,null,null,null,null,null,null,null,null,null,null,null,null,null,null,null,null,null,null,null,null,null,null,null,null,null,null,null,null,null,null,null,null,null,null,null,null,null,null,null,null,null,null,null,null,null,null,null,null,null,null,9]
[10,null,null,null,null,null,null,null,null,null,null,null,null,null,null,null,null,null,null,null,null,null,null,null,null,null,null,null,null,null,null,null,null,null,null,null,null,null,null,null,null,null,null,null,null,null,null,null,null,null,null,null,null,null,null,null,null,null,null,null,null,null,null,null,null,null,null,null,10]
[11,null,null,null,null,null,null,null,null,null,null,null,null,null,null,null,null,null,null,null,null,null,null,null,null,null,null,null,null,null,null,null,null,null,null,null,null,null,null,null,null,null,null,null,null,null,null,null,null,null,null,null,null,null,null,null,null,null,null,null,null,null,null,null,null,null,null,null,11]
[12,null,null,null,null,null,null,null,null,null,null,null,null,null,null,null,null,null,null,null,null,null,null,null,null,null,null,null,null,null,null,null,null,null,null,null,null,null,null,null,null,null,null,null,null,null,null,null,null,null,null,null,null,null,null,null,null,null,null,null,null,null,null,null,null,null,null,null,12]
[13,null,null,null,null,null,null,null,null,null,null,null,null,null,null,null,null,null,null,null,null,null,null,null,null,null,null,null,null,null,null,null,null,null,null,null,null,null,null,null,null,null,null,null,null,null,null,null,null,null,null,null,null,null,null,null,null,null,null,null,null,null,null,null,null,null,null,null,13]
[14,null,null,null,null,null,null,null,null,null,null,null,null,null,null,null,null,null,null,null,null,null,null,null,null,null,null,null,null,null,null,null,null,null,null,null,null,null,null,null,null,null,null,null,null,null,null,null,null,null,null,null,null,null,null,null,null,null,null,null,null,null,null,null,null,null,null,null,14]
[15,null,null,null,null,null,null,null,null,null,null,null,null,null,null,null,null,null,null,null,null,null,null,null,null,null,null,null,null,null,null,null,null,null,null,null,null,null,null,null,null,null,null,null,null,null,null,null,null,null,null,null,null,null,null,null,null,null,null,null,null,null,null,null,null,null,null,null,15]
[16,null,null,null,null,null,null,null,null,null,null,null,null,null,null,null,null,null,null,null,null,null,null,null,null,null,null,null,null,null,null,null,null,null,null,null,null,null,null,null,null,null,null,null,null,null,null,null,null,null,null,"実質赤字額",null,null,null,null,null,null,null,null,null,null,null,null,null,null,null,null,16]
["計","一般会計等（純計）",null,null,null,null,null,null,null,null,null,null,null,null,null,null,58431,null,null,null,null,54732,null,null,null,null,3699,null,null,null,null,2998,null,null,null,null,null,null,null,null,null,13368,null,null,null,null,null,null,null,null,null,"-",null,null,null,null,null,null,null,null,null,null,null,null,null,null,null,null,17]
["　※一般会計等（純計）は、各会計の相互間の繰入・繰出等の重複を控除したものであり、各会計の合計と一致しない場合がある。",null,null,null,null,null,null,null,null,null,null,null,null,null,null,null,null,null,null,null,null,null,null,null,null,null,null,null,null,null,null,null,null,null,null,null,null,null,null,null,null,null,null,null,null,null,null,null,null,null,null,null,null,null,null,null,null,null,null,null,null,null,null,null,null,null,null,null,18]
["公営企業会計等の財政状況（単位：百万円）",null,null,null,null,null,null,null,null,null,null,null,null,null,null,null,null,null,null,null,null,null,null,null,null,null,null,null,null,null,null,null,null,null,null,null,null,null,null,null,null,null,null,null,null,null,null,null,null,null,null,null,null,null,null,null,null,null,null,null,null,null,null,null,null,null,null,null,19]
["会計名",null,null,null,null,null,null,null,null,null,null,null,null,null,null,null,"総収益\n（歳入）",null,null,null,null,"総費用\n（歳出）",null,null,null,null,"純損益\n（形式収支）",null,null,null,null,"資金剰余額\n/不足額\n（実質収支）",null,null,null,null,"他会計等\nからの\n繰入金",null,null,null,null,"企業債\n（地方債）\n現在高",null,null,null,null,"左のうち\n一般会計等\n繰入見込額",null,null,null,null,"資金不足\n比率",null,null,null,null,"備考",null,null,null,null,null,null,null,null,null,null,null,20]
[null,null,null,null,null,null,null,null,null,null,null,null,null,null,null,null,null,null,null,null,null,null,null,null,null,null,null,null,null,null,null,null,null,null,null,null,null,null,null,null,null,null,null,null,null,null,null,null,null,null,null,null,null,null,null,null,null,null,null,null,null,null,null,null,null,null,null,null,21]
[1,"国民健康保険特別会計",null,null,null,null,null,null,null,null,null,null,null,null,null,null,8749,null,null,null,null,8662,null,null,null,null,87,null,null,null,null,87,null,null,null,null,497,null,null,null,null,"-",null,null,null,null,"-",null,null,null,null,"-",null,null,null,null,null,null,null,null,null,null,null,null,null,null,null,null,22]
[2,"介護保険特別会計",null,null,null,null,null,null,null,null,null,null,null,null,null,null,5504,null,null,null,null,5213,null,null,null,null,291,null,null,null,null,291,null,null,null,null,730,null,null,null,null,"-",null,null,null,null,"-",null,null,null,null,"-",null,null,null,null,null,null,null,null,null,null,null,null,null,null,null,null,23]
[3,"後期高齢者医療特別会計",null,null,null,null,null,null,null,null,null,null,null,null,null,null,927,null,null,null,null,907,null,null,null,null,20,null,null,null,null,20,null,null,null,null,156,null,null,null,null,"-",null,null,null,null,"-",null,null,null,null,"-",null,null,null,null,null,null,null,null,null,null,null,null,null,null,null,null,24]
[4,"水道事業会計",null,null,null,null,null,null,null,null,null,null,null,null,null,null,643,null,null,null,null,587,null,null,null,null,56,null,null,null,null,1866,null,null,null,null,181,null,null,null,null,201,null,null,null,null,147,null,null,null,null,"-",null,null,null,null,"法適用企業",null,null,null,null,null,null,null,null,null,null,null,25]
[5,"下水道事業会計",null,null,null,null,null,null,null,null,null,null,null,null,null,null,2983,null,null,null,null,2793,null,null,null,null,190,null,null,null,null,1361,null,null,null,null,237,null,null,null,null,2156,null,null,null,null,1115,null,null,null,null,"-",null,null,null,null,"法適用企業",null,null,null,null,null,null,null,null,null,null,null,26]
[6,null,null,null,null,null,null,null,null,null,null,null,null,null,null,null,null,null,null,null,null,null,null,null,null,null,null,null,null,null,null,null,null,null,null,null,null,null,null,null,null,null,null,null,null,null,null,null,null,null,null,null,null,null,null,null,null,null,null,null,null,null,null,null,null,null,null,null,27]
[7,null,null,null,null,null,null,null,null,null,null,null,null,null,null,null,null,null,null,null,null,null,null,null,null,null,null,null,null,null,null,null,null,null,null,null,null,null,null,null,null,null,null,null,null,null,null,null,null,null,null,null,null,null,null,null,null,null,null,null,null,null,null,null,null,null,null,null,28]
[8,null,null,null,null,null,null,null,null,null,null,null,null,null,null,null,null,null,null,null,null,null,null,null,null,null,null,null,null,null,null,null,null,null,null,null,null,null,null,null,null,null,null,null,null,null,null,null,null,null,null,null,null,null,null,null,null,null,null,null,null,null,null,null,null,null,null,null,29]
[9,null,null,null,null,null,null,null,null,null,null,null,null,null,null,null,null,null,null,null,null,null,null,null,null,null,null,null,null,null,null,null,null,null,null,null,null,null,null,null,null,null,null,null,null,null,null,null,null,null,null,null,null,null,null,null,null,null,null,null,null,null,null,null,null,null,null,null,30]
[10,null,null,null,null,null,null,null,null,null,null,null,null,null,null,null,null,null,null,null,null,null,null,null,null,null,null,null,null,null,null,null,null,null,null,null,null,null,null,null,null,null,null,null,null,null,null,null,null,null,null,null,null,null,null,null,null,null,null,null,null,null,null,null,null,null,null,null,31]
[11,null,null,null,null,null,null,null,null,null,null,null,null,null,null,null,null,null,null,null,null,null,null,null,null,null,null,null,null,null,null,null,null,null,null,null,null,null,null,null,null,null,null,null,null,null,null,null,null,null,null,null,null,null,null,null,null,null,null,null,null,null,null,null,null,null,null,null,32]
[12,null,null,null,null,null,null,null,null,null,null,null,null,null,null,null,null,null,null,null,null,null,null,null,null,null,null,null,null,null,null,null,null,null,null,null,null,null,null,null,null,null,null,null,null,null,null,null,null,null,null,null,null,null,null,null,null,null,null,null,null,null,null,null,null,null,null,null,33]
[13,null,null,null,null,null,null,null,null,null,null,null,null,null,null,null,null,null,null,null,null,null,null,null,null,null,null,null,null,null,null,null,null,null,null,null,null,null,null,null,null,null,null,null,null,null,null,null,null,null,null,null,null,null,null,null,null,null,null,null,null,null,null,null,null,null,null,null,34]
[14,null,null,null,null,null,null,null,null,null,null,null,null,null,null,null,null,null,null,null,null,null,null,null,null,null,null,null,null,null,null,null,null,null,null,null,null,null,null,null,null,null,null,null,null,null,null,null,null,null,null,null,null,null,null,null,null,null,null,null,null,null,null,null,null,null,null,null,35]
[15,null,null,null,null,null,null,null,null,null,null,null,null,null,null,null,null,null,null,null,null,null,null,null,null,null,null,null,null,null,null,null,null,null,null,null,null,null,null,null,null,null,null,null,null,null,null,null,null,null,null,null,null,null,null,null,null,null,null,null,null,null,null,null,null,null,null,null,36]
[16,null,null,null,null,null,null,null,null,null,null,null,null,null,null,null,null,null,null,null,null,null,null,null,null,null,null,null,null,null,null,null,null,null,null,null,null,null,null,null,null,null,null,null,null,null,null,null,null,null,null,null,null,null,null,null,null,null,null,null,null,null,null,null,null,null,null,null,37]
[17,null,null,null,null,null,null,null,null,null,null,null,null,null,null,null,null,null,null,null,null,null,null,null,null,null,null,null,null,null,null,null,null,null,null,null,null,null,null,null,null,null,null,null,null,null,null,null,null,null,null,null,null,null,null,null,null,null,null,null,null,null,null,null,null,null,null,null,38]
[18,null,null,null,null,null,null,null,null,null,null,null,null,null,null,null,null,null,null,null,null,null,null,null,null,null,null,null,null,null,null,null,null,null,null,null,null,null,null,null,null,null,null,null,null,null,null,null,null,null,null,null,null,null,null,null,null,null,null,null,null,null,null,null,null,null,null,null,39]
[19,null,null,null,null,null,null,null,null,null,null,null,null,null,null,null,null,null,null,null,null,null,null,null,null,null,null,null,null,null,null,null,null,null,null,null,null,null,null,null,null,null,null,null,null,null,null,null,null,null,null,null,null,null,null,null,null,null,null,null,null,null,null,null,null,null,null,null,40]
[20,null,null,null,null,null,null,null,null,null,null,null,null,null,null,null,null,null,null,null,null,null,null,null,null,null,null,null,null,null,null,null,null,null,null,null,null,null,null,null,null,null,null,null,null,null,null,null,null,null,null,null,null,null,null,null,null,null,null,null,null,null,null,null,null,null,null,null,41]
[21,null,null,null,null,null,null,null,null,null,null,null,null,null,null,null,null,null,null,null,null,null,null,null,null,null,null,null,null,null,null,null,null,null,null,null,null,null,null,null,null,null,null,null,null,null,null,null,null,null,null,null,null,null,null,null,null,null,null,null,null,null,null,null,null,null,null,null,42]
[22,null,null,null,null,null,null,null,null,null,null,null,null,null,null,null,null,null,null,null,null,null,null,null,null,null,null,null,null,null,null,null,null,null,null,null,null,null,null,null,null,null,null,null,null,null,null,null,null,null,null,null,null,null,null,null,null,null,null,null,null,null,null,null,null,null,null,null,43]
[23,null,null,null,null,null,null,null,null,null,null,null,null,null,null,null,null,null,null,null,null,null,null,null,null,null,null,null,null,null,null,null,null,null,null,null,null,null,null,null,null,null,null,null,null,null,null,null,null,null,null,null,null,null,null,null,null,null,null,null,null,null,null,null,null,null,null,null,44]
[24,null,null,null,null,null,null,null,null,null,null,null,null,null,null,null,null,null,null,null,null,null,null,null,null,null,null,null,null,null,null,null,null,null,null,null,null,null,null,null,null,null,null,null,null,null,null,null,null,null,null,null,null,null,null,null,null,null,null,null,null,null,null,null,null,null,null,null,45]
[25,null,null,null,null,null,null,null,null,null,null,null,null,null,null,null,null,null,null,null,null,null,null,null,null,null,null,null,null,null,null,null,null,null,null,null,null,null,null,null,null,null,null,null,null,null,null,null,null,null,null,null,null,null,null,null,null,null,null,null,null,null,null,null,null,null,null,null,46]
[26,null,null,null,null,null,null,null,null,null,null,null,null,null,null,null,null,null,null,null,null,null,null,null,null,null,null,null,null,null,null,null,null,null,null,null,null,null,null,null,null,null,null,null,null,null,null,null,null,null,null,null,null,null,null,null,null,null,null,null,null,null,null,null,null,null,null,null,47]
[27,null,null,null,null,null,null,null,null,null,null,null,null,null,null,null,null,null,null,null,null,null,null,null,null,null,null,null,null,null,null,null,null,null,null,null,null,null,null,null,null,null,null,null,null,null,null,null,null,null,null,null,null,null,null,null,null,null,null,null,null,null,null,null,null,null,null,null,48]
[28,null,null,null,null,null,null,null,null,null,null,null,null,null,null,null,null,null,null,null,null,null,null,null,null,null,null,null,null,null,null,null,null,null,null,null,null,null,null,null,null,null,null,null,null,null,null,null,null,null,null,null,null,null,null,null,null,null,null,null,null,null,null,null,null,null,null,null,49]
[29,null,null,null,null,null,null,null,null,null,null,null,null,null,null,null,null,null,null,null,null,null,null,null,null,null,null,null,null,null,null,null,null,null,null,null,null,null,null,null,null,null,null,null,null,null,null,null,null,null,null,null,null,null,null,null,null,null,null,null,null,null,null,null,null,null,null,null,50]
[30,null,null,null,null,null,null,null,null,null,null,null,null,null,null,null,null,null,null,null,null,null,null,null,null,null,null,null,null,null,null,null,null,null,null,null,null,null,null,null,null,null,null,null,null,null,null,null,null,null,null,null,null,null,null,null,null,null,null,null,null,null,null,null,null,null,null,null,51]
[31,null,null,null,null,null,null,null,null,null,null,null,null,null,null,null,null,null,null,null,null,null,null,null,null,null,null,null,null,null,null,null,null,null,null,null,null,null,null,null,null,null,null,null,null,null,null,null,null,null,null,null,null,null,null,null,null,null,null,null,null,null,null,null,null,null,null,null,52]
[32,null,null,null,null,null,null,null,null,null,null,null,null,null,null,null,null,null,null,null,null,null,null,null,null,null,null,null,null,null,null,null,null,null,null,null,null,null,null,null,null,null,null,null,null,null,null,null,null,null,null,null,null,null,null,null,null,null,null,null,null,null,null,null,null,null,null,null,53]
[33,null,null,null,null,null,null,null,null,null,null,null,null,null,null,null,null,null,null,null,null,null,null,null,null,null,null,null,null,null,null,null,null,null,null,null,null,null,null,null,null,null,null,null,null,null,null,null,null,null,null,null,null,null,null,null,null,null,null,null,null,null,null,null,null,null,null,null,54]
[34,null,null,null,null,null,null,null,null,null,null,null,null,null,null,null,null,null,null,null,null,null,null,null,null,null,null,null,null,null,null,null,null,null,null,null,null,null,null,null,null,null,null,null,null,null,null,null,null,null,null,null,null,null,null,null,null,null,null,null,null,null,null,null,null,null,null,null,55]
[35,null,null,null,null,null,null,null,null,null,null,null,null,null,null,null,null,null,null,null,null,null,null,null,null,null,null,null,null,null,null,null,null,null,null,null,null,null,null,null,null,null,null,null,null,null,null,null,null,null,null,null,null,null,null,null,null,null,null,null,null,"連結実質赤字額",null,null,null,null,null,null,56]
["計","公営企業会計等",null,null,null,null,null,null,null,null,null,null,null,null,null,null,null,null,null,null,null,null,null,null,null,null,null,null,null,null,null,3625,null,null,null,null,null,null,null,null,null,2357,null,null,null,null,1262,null,null,null,null,null,null,null,null,null,null,null,null,null,null,"-",null,null,null,null,null,null,57]
[null,null,null,null,null,null,null,null,null,null,null,null,null,null,null,null,null,null,null,null,null,null,null,null,null,null,null,null,null,null,null,null,null,null,null,null,null,null,null,null,null,null,null,null,null,null,null,null,null,null,null,null,null,null,null,null,null,null,null,null,null,null,null,null,null,null,null,null,58]
["関係する一部事務組合等の財政状況（単位：百万円）",null,null,null,null,null,null,null,null,null,null,null,null,null,null,null,null,null,null,null,null,null,null,null,null,null,null,null,null,null,null,null,null,null,null,null,null,null,null,null,null,null,null,null,null,null,null,null,null,null,null,null,null,null,null,null,null,null,null,null,null,null,null,null,null,null,null,null,59]
["一部事務組合等名",null,null,null,null,null,null,null,null,null,null,null,null,null,null,null,"総収益\n（歳入）",null,null,null,null,"総費用\n（歳出）",null,null,null,null,"純損益\n（形式収支）",null,null,null,null,"資金剰余額\n/不足額\n（実質収支）",null,null,null,null,"他会計等\nからの\n繰入金",null,null,null,null,"企業債\n（地方債）\n現在高",null,null,null,null,"左のうち\n一般会計等\n負担見込額",null,null,null,null,"備考",null,null,null,null,null,null,null,null,null,null,null,null,null,null,null,null,60]
[null,null,null,null,null,null,null,null,null,null,null,null,null,null,null,null,null,null,null,null,null,null,null,null,null,null,null,null,null,null,null,null,null,null,null,null,null,null,null,null,null,null,null,null,null,null,null,null,null,null,null,null,null,null,null,null,null,null,null,null,null,null,null,null,null,null,null,null,61]
[1,"千葉県市町村総合事務組合（一般会計）",null,null,null,null,null,null,null,null,null,null,null,null,null,null,21968,null,null,null,null,21813,null,null,null,null,155,null,null,null,null,155,null,null,null,null,90,null,null,null,null,"-",null,null,null,null,"-",null,null,null,null,null,null,null,null,null,null,null,null,null,null,null,null,null,null,null,null,null,62]
[2,"千葉県市町村総合事務組合（千葉県自治会館管理運営特別会計）",null,null,null,null,null,null,null,null,null,null,null,null,null,null,192,null,null,null,null,133,null,null,null,null,58,null,null,null,null,58,null,null,null,null,"-",null,null,null,null,"-",null,null,null,null,"-",null,null,null,null,null,null,null,null,null,null,null,null,null,null,null,null,null,null,null,null,null,63]
[3,"千葉県市町村総合事務組合（千葉県自治研修センター特別会計）",null,null,null,null,null,null,null,null,null,null,null,null,null,null,76,null,null,null,null,71,null,null,null,null,5,null,null,null,null,5,null,null,null,null,1,null,null,null,null,"-",null,null,null,null,"-",null,null,null,null,null,null,null,null,null,null,null,null,null,null,null,null,null,null,null,null,null,64]
[4,"千葉県市町村総合事務組合（千葉県市町村交通災害共済特別会計）",null,null,null,null,null,null,null,null,null,null,null,null,null,null,111,null,null,null,null,74,null,null,null,null,38,null,null,null,null,38,null,null,null,null,"-",null,null,null,null,"-",null,null,null,null,"-",null,null,null,null,null,null,null,null,null,null,null,null,null,null,null,null,null,null,null,null,null,65]
[5,"千葉県後期高齢者医療広域連合（一般会計）",null,null,null,null,null,null,null,null,null,null,null,null,null,null,2548,null,null,null,null,2213,null,null,null,null,335,null,null,null,null,335,null,null,null,null,138,null,null,null,null,"-",null,null,null,null,"-",null,null,null,null,null,null,null,null,null,null,null,null,null,null,null,null,null,null,null,null,null,66]
[6,"千葉県後期高齢者医療広域連合（後期高齢者医療特別会計）",null,null,null,null,null,null,null,null,null,null,null,null,null,null,659115,null,null,null,null,635247,null,null,null,null,23868,null,null,null,null,23868,null,null,null,null,3257,null,null,null,null,"-",null,null,null,null,"-",null,null,null,null,null,null,null,null,null,null,null,null,null,null,null,null,null,null,null,null,null,67]
[7,"印西地区消防組合（一般会計）",null,null,null,null,null,null,null,null,null,null,null,null,null,null,2973,null,null,null,null,2894,null,null,null,null,79,null,null,null,null,78,null,null,null,null,"-",null,null,null,null,2464,null,null,null,null,1605,null,null,null,null,null,null,null,null,null,null,null,null,null,null,null,null,null,null,null,null,null,68]
[8,"印西地区衛生組合（一般会計）",null,null,null,null,null,null,null,null,null,null,null,null,null,null,190,null,null,null,null,181,null,null,null,null,9,null,null,null,null,9,null,null,null,null,"-",null,null,null,null,5,null,null,null,null,4,null,null,null,null,null,null,null,null,null,null,null,null,null,null,null,null,null,null,null,null,null,69]
[9,"印旛利根川水防事務組合（一般会計）",null,null,null,null,null,null,null,null,null,null,null,null,null,null,17,null,null,null,null,14,null,null,null,null,3,null,null,null,null,3,null,null,null,null,5,null,null,null,null,"-",null,null,null,null,"-",null,null,null,null,null,null,null,null,null,null,null,null,null,null,null,null,null,null,null,null,null,70]
[10,"印西地区環境整備事業組合（一般会計）",null,null,null,null,null,null,null,null,null,null,null,null,null,null,2835,null,null,null,null,2697,null,null,null,null,138,null,null,null,null,83,null,null,null,null,"-",null,null,null,null,"-",null,null,null,null,"-",null,null,null,null,null,null,null,null,null,null,null,null,null,null,null,null,null,null,null,null,null,71]
[11,"印西地区環境整備事業組合（一般会計）（ごみ処理）次期分",null,null,null,null,null,null,null,null,null,null,null,null,null,null,150,null,null,null,null,95,null,null,null,null,55,null,null,null,null,"-",null,null,null,null,"-",null,null,null,null,94,null,null,null,null,53,null,null,null,null,null,null,null,null,null,null,null,null,null,null,null,null,null,null,null,null,null,72]
[12,"印西地区環境整備事業組合（一般会計）（ごみ処理）次期分除く",null,null,null,null,null,null,null,null,null,null,null,null,null,null,2384,null,null,null,null,2316,null,null,null,null,68,null,null,null,null,"-",null,null,null,null,"-",null,null,null,null,1049,null,null,null,null,578,null,null,null,null,null,null,null,null,null,null,null,null,null,null,null,null,null,null,null,null,null,73]
[13,"印西地区環境整備事業組合（一般会計）（平岡自然公園分）",null,null,null,null,null,null,null,null,null,null,null,null,null,null,301,null,null,null,null,286,null,null,null,null,15,null,null,null,null,"-",null,null,null,null,"-",null,null,null,null,116,null,null,null,null,72,null,null,null,null,null,null,null,null,null,null,null,null,null,null,null,null,null,null,null,null,null,74]
[14,"印西地区環境整備事業組合（墓地事業特別会計）",null,null,null,null,null,null,null,null,null,null,null,null,null,null,78,null,null,null,null,74,null,null,null,null,4,null,null,null,null,4,null,null,null,null,"-",null,null,null,null,"-",null,null,null,null,"-",null,null,null,null,null,null,null,null,null,null,null,null,null,null,null,null,null,null,null,null,null,75]
[15,"印旛郡市広域市町村圏事務組合（一般会計）",null,null,null,null,null,null,null,null,null,null,null,null,null,null,180,null,null,null,null,175,null,null,null,null,5,null,null,null,null,5,null,null,null,null,17,null,null,null,null,"-",null,null,null,null,"-",null,null,null,null,null,null,null,null,null,null,null,null,null,null,null,null,null,null,null,null,null,76]
[16,"印旛郡市広域市町村圏事務組合（水道用水供給事業会計）",null,null,null,null,null,null,null,null,null,null,null,null,null,null,3717,null,null,null,null,3515,null,null,null,null,202,null,null,null,null,5054,null,null,null,null,"-",null,null,null,null,3358,null,null,null,null,"-",null,null,null,null,null,null,null,null,null,null,null,null,null,null,null,null,null,null,null,null,null,77]
[17,"長門川水道企業団（水道事業会計）",null,null,null,null,null,null,null,null,null,null,null,null,null,null,539,null,null,null,null,430,null,null,null,null,109,null,null,null,null,752,null,null,null,null,2,null,null,null,null,"-",null,null,null,null,"-",null,null,null,null,null,null,null,null,null,null,null,null,null,null,null,null,null,null,null,null,null,78]
[18,null,null,null,null,null,null,null,null,null,null,null,null,null,null,null,null,null,null,null,null,null,null,null,null,null,null,null,null,null,null,null,null,null,null,null,null,null,null,null,null,null,null,null,null,null,null,null,null,null,null,null,null,null,null,null,null,null,null,null,null,null,null,null,null,null,null,null,79]
[19,null,null,null,null,null,null,null,null,null,null,null,null,null,null,null,null,null,null,null,null,null,null,null,null,null,null,null,null,null,null,null,null,null,null,null,null,null,null,null,null,null,null,null,null,null,null,null,null,null,null,null,null,null,null,null,null,null,null,null,null,null,null,null,null,null,null,null,80]
[20,null,null,null,null,null,null,null,null,null,null,null,null,null,null,null,null,null,null,null,null,null,null,null,null,null,null,null,null,null,null,null,null,null,null,null,null,null,null,null,null,null,null,null,null,null,null,null,null,null,null,null,null,null,null,null,null,null,null,null,null,null,null,null,null,null,null,null,81]
["計","一部事務組合等",null,null,null,null,null,null,null,null,null,null,null,null,null,null,null,null,null,null,null,null,null,null,null,null,null,null,null,null,null,30447,null,null,null,null,null,null,null,null,null,7086,null,null,null,null,2312,null,null,null,null,null,null,null,null,null,null,null,null,null,null,null,null,null,null,null,null,null,82]
[null,null,null,null,null,null,null,null,null,null,null,null,null,null,null,null,null,null,null,null,null,null,null,null,null,null,null,null,null,null,null,null,null,null,null,null,null,null,null,null,null,null,null,null,null,null,null,null,null,null,null,null,null,null,null,null,null,null,null,null,null,null,null,null,null,null,null,null,83]
[null,null,null,null,null,null,null,null,null,null,null,null,null,null,null,null,null,null,null,null,null,null,null,null,null,null,null,null,null,null,null,null,null,null,null,null,null,null,null,null,null,null,null,null,null,null,null,null,null,null,null,null,null,null,null,null,null,null,null,null,null,null,null,null,null,null,null,null,84]
[null,null,null,null,null,null,null,null,null,null,null,null,null,null,null,null,null,null,null,null,null,null,null,null,null,null,null,null,null,null,null,null,null,null,null,null,null,null,null,null,null,null,null,null,null,null,null,null,null,null,null,null,null,null,null,null,null,null,null,null,null,null,null,null,null,null,null,null,85]
[null,null,null,null,null,null,null,null,null,null,null,null,null,null,null,null,null,null,null,null,null,null,null,null,null,null,null,null,null,null,null,null,null,null,null,null,null,null,null,null,null,null,null,null,null,null,null,null,null,null,null,null,null,null,null,null,null,null,null,null,null,null,null,null,null,null,null,null,86]
[null,null,null,null,null,null,null,null,null,null,null,null,null,null,null,null,null,null,null,null,null,null,null,null,null,null,null,null,null,null,null,null,null,null,null,null,null,null,null,null,null,null,null,null,null,null,null,null,null,null,null,null,null,null,null,null,null,null,null,null,null,null,null,null,null,null,null,null,87]
[null,null,null,null,null,null,null,null,null,null,null,null,null,null,null,null,null,null,null,null,null,null,null,null,null,null,null,null,null,null,null,null,null,null,null,null,null,null,null,null,null,null,null,null,null,null,null,null,null,null,null,null,null,null,null,null,null,null,null,null,null,null,null,null,null,null,null,null,88]
[null,null,null,null,null,null,null,null,null,null,null,null,null,null,null,null,null,null,null,null,null,null,null,null,null,null,null,null,null,null,null,null,null,null,null,null,null,null,null,null,null,null,null,null,null,null,null,null,null,null,null,null,null,null,null,null,null,null,null,null,null,null,null,null,null,null,null,null,89]
[null,null,null,null,null,null,null,null,null,null,null,null,null,null,null,null,null,null,null,null,null,null,null,null,null,null,null,null,null,null,null,null,null,null,null,null,null,null,null,null,null,null,null,null,null,null,null,null,null,null,null,null,null,null,null,null,null,null,null,null,null,null,null,null,null,null,null,null,90]
[null,null,null,null,null,null,null,null,null,null,null,null,null,null,null,null,null,null,null,null,null,null,null,null,null,null,null,null,null,null,null,null,null,null,null,null,null,null,null,null,null,null,null,null,null,null,null,null,null,null,null,null,null,null,null,null,null,null,null,null,null,null,null,null,null,null,null,null,91]
[null,null,null,null,null,null,null,null,null,null,null,null,null,null,null,null,null,null,null,null,null,null,null,null,null,null,null,null,null,null,null,null,null,null,null,null,null,null,null,null,null,null,null,null,null,null,null,null,null,null,null,null,null,null,null,null,null,null,null,null,null,null,null,null,null,null,null,null,92]
[null,null,null,null,null,null,null,null,null,null,null,null,null,null,null,null,null,null,null,null,null,null,null,null,null,null,null,null,null,null,null,null,null,null,null,null,null,null,null,null,null,null,null,null,null,null,null,null,null,null,null,null,null,null,null,null,null,null,null,null,null,null,null,null,null,null,null,null,93]
[null,null,null,null,null,null,null,null,null,null,null,null,null,null,null,null,null,null,null,null,null,null,null,null,null,null,null,null,null,null,null,null,null,null,null,null,null,null,null,null,null,null,null,null,null,null,null,null,null,null,null,null,null,null,null,null,null,null,null,null,null,null,null,null,null,null,null,null,94]
[null,null,null,null,null,null,null,null,null,null,null,null,null,null,null,null,null,null,null,null,null,null,null,null,null,null,null,null,null,null,null,null,null,null,null,null,null,null,null,null,null,null,null,null,null,null,null,null,null,null,null,null,null,null,null,null,null,null,null,null,null,null,null,null,null,null,null,null,95]
[null,null,null,null,null,null,null,null,null,null,null,null,null,null,null,null,null,null,null,null,null,null,null,null,null,null,null,null,null,null,null,null,null,null,null,null,null,null,null,null,null,null,null,null,null,null,null,null,null,null,null,null,null,null,null,null,null,null,null,null,null,null,null,null,null,null,null,null,"計","地方公社・第三セクター等"]
[null,null,null,null,null,null,null,null,null,null,null,null,null,null,null,null,null,null,null,null,null,null,null,null,null,null,null,null,null,null,null,null,null,null,null,null,null,null,null,null,null,null,null,null,null,null,null,null,null,null,null,null,null,null,null,null,null,null,null,null,null,null,null,null,null,null,null,null,"　※地方公共団体が①25%以上出資している法人又は②財政支援を行っている法人を記載している。"]
[null,null,null,null,null,null,null,null,null,null,null,null,null,null,null,null,null,null,null,null,null,null,null,null,null,null,null,null,null,null,null,null,null,null,null,null,null,null,null,null,null,null,null,null,null,null,null,null,null,null,null,null,null,null,null,null,null,null,null,null,null,null,null,null,null,null,null,null,"　※地方公共団体財政健全化法に基づき将来負担比率の算定対象となっている法人については、○印を付与している。"]
[]
[]
["公債費負担の状況",null,null,null,null,null,null,null,null,null,null,null,null,null,null,null,null,null,null,null,null,null,null,null,null,null,null,null,null,null,null,null,null,null,null,null,null,null,null,null,null,null,null,null,null,null,"将来負担の状況"]
["実質公債費比率　　（千円・％）",null,null,null,null,null,null,null,null,null,null,null,null,null,null,null,null,null,null,null,null,null,null,null,null,null,null,null,null,null,null,null,null,null,null,null,null,null,null,null,null,null,null,null,null,null,"将来負担比率　　（千円・％）"]
["区分",null,null,null,null,null,null,null,null,null,null,null,null,null,null,null,null,null,null,null,null,null,null,null,null,null,"平成30年度",null,null,null,null,"令和元年度",null,null,null,null,"令和2年度",null,null,null,null,"分母比",null,null,null,null,"区分",null,null,null,null,null,null,null,null,null,null,null,null,null,null,null,null,null,null,null,null,null,"平成30年度",null,null,null,null,"令和元年度",null,null,null,null,"令和2年度",null,null,null,null,"分母比",null,null,null,null,"内訳",null,null,null,null,null,null,null,null,null,null,null,null,null,null,null,null,null,null,null,null,null,"平成30年度",null,null,null,null,"令和元年度",null,null,null,null,"令和2年度",null,null,null,null,"分母比"]
["元利償還金",null,null,null,null,null,null,null,null,null,null,null,null,null,null,null,null,null,null,null,null,null,null,null,null,null,1928413,null,null,null,null,1707334,null,null,null,null,1594727,null,null,null,null,7.4,null,null,null,null,"将来負担額",null,null,null,null,"一般会計等に係る地方債の現在高 ",null,null,null,null,null,null,null,null,null,null,null,null,null,null,null,null,14547393,null,null,null,null,13462059,null,null,null,null,13368032,null,null,null,null,62.3,null,null,null,null,"債務負担行為",null,"PFI事業に係るもの",null,null,null,null,null,null,null,null,null,null,null,null,null,null,null,null,null,null,null,"-",null,null,null,null,"-",null,null,null,null,"-",null,null,null,null,"-"]
["減債基金積立不足算定額",null,null,null,null,null,null,null,null,null,null,null,null,null,null,null,null,null,null,null,null,null,null,null,null,null,"-",null,null,null,null,"-",null,null,null,null,"-",null,null,null,null,"-",null,null,null,null,null,null,null,null,null,"債務負担行為に基づく支出予定額 ",null,null,null,null,null,null,null,null,null,null,null,null,null,null,null,null,6624146,null,null,null,null,5547464,null,null,null,null,5175420,null,null,null,null,24.1,null,null,null,null,null,null,"いわゆる五省協定等に係るもの",null,null,null,null,null,null,null,null,null,null,null,null,null,null,null,null,null,null,null,4768796,null,null,null,null,3701611,null,null,null,null,3188154,null,null,null,null,14.8]
["準元利償還金",null,"満期一括償還地方債に係る年度割相当額",null,null,null,null,null,null,null,null,null,null,null,null,null,null,null,null,null,null,null,null,null,null,null,"-",null,null,null,null,"-",null,null,null,null,"-",null,null,null,null,"-",null,null,null,null,null,null,null,null,null,"公営企業債等繰入見込額 ",null,null,null,null,null,null,null,null,null,null,null,null,null,null,null,null,1267429,null,null,null,null,1691180,null,null,null,null,1261550,null,null,null,null,5.9,null,null,null,null,null,null,"国営土地改良事業に係るもの",null,null,null,null,null,null,null,null,null,null,null,null,null,null,null,null,null,null,null,1789469,null,null,null,null,1845853,null,null,null,null,1940279,null,null,null,null,9]
[null,null,"公営企業債の元利償還金\nに対する繰入金",null,null,null,null,null,null,null,null,null,null,null,null,null,null,null,null,null,null,null,null,null,null,null,173442,null,null,null,null,161198,null,null,null,null,56382,null,null,null,null,0.3,null,null,null,null,null,null,null,null,null,"組合等負担等見込額 ",null,null,null,null,null,null,null,null,null,null,null,null,null,null,null,null,2618914,null,null,null,null,2127290,null,null,null,null,2312480,null,null,null,null,10.8,null,null,null,null,null,null,"森林総合研究所等が行う事業に係るもの",null,null,null,null,null,null,null,null,null,null,null,null,null,null,null,null,null,null,null,65781,null,null,null,null,"-",null,null,null,null,46987,null,null,null,null,0.2]
[null,null,"組合等が起こした地方債の元利\n償還金に対する負担金等",null,null,null,null,null,null,null,null,null,null,null,null,null,null,null,null,null,null,null,null,null,null,null,223090,null,null,null,null,255593,null,null,null,null,300235,null,null,null,null,1.4,null,null,null,null,null,null,null,null,null,"退職手当負担見込額 ",null,null,null,null,null,null,null,null,null,null,null,null,null,null,null,null,3185909,null,null,null,null,3277057,null,null,null,null,3421575,null,null,null,null,15.9,null,null,null,null,null,null,"地方公務員等共済組合に係るもの",null,null,null,null,null,null,null,null,null,null,null,null,null,null,null,null,null,null,null,"-",null,null,null,null,"-",null,null,null,null,"-",null,null,null,null,"-"]
[null,null,"債務負担行為に基づく支出額（公債費に準ずるもの）",null,null,null,null,null,null,null,null,null,null,null,null,null,null,null,null,null,null,null,null,null,null,null,865362,null,null,null,null,829906,null,null,null,null,769543,null,null,null,null,3.6,null,null,null,null,null,null,null,null,null,"設立法人等の負債額等負担見込額 ",null,null,null,null,null,null,null,null,null,null,null,null,null,null,null,null,"-",null,null,null,null,"-",null,null,null,null,"-",null,null,null,null,"-",null,null,null,null,null,null,"依頼土地の買い戻しに係るもの",null,null,null,null,null,null,null,null,null,null,null,null,null,null,null,null,null,null,null,"-",null,null,null,null,"-",null,null,null,null,"-",null,null,null,null,"-"]
[null,null,"一時借入金の利子",null,null,null,null,null,null,null,null,null,null,null,null,null,null,null,null,null,null,null,null,null,null,null,"-",null,null,null,null,"-",null,null,null,null,"-",null,null,null,null,"-",null,null,null,null,null,null,null,null,null,"　うち、健全化法施行規則附則第三条に係る負担見込額",null,null,null,null,null,null,null,null,null,null,null,null,null,null,null,null,"-",null,null,null,null,"-",null,null,null,null,"-",null,null,null,null,"-",null,null,null,null,null,null,"社会福祉法人の施設建設費に係るもの",null,null,null,null,null,null,null,null,null,null,null,null,null,null,null,null,null,null,null,"-",null,null,null,null,"-",null,null,null,null,"-",null,null,null,null,"-"]
["合計",null,null,null,null,null,null,null,null,null,null,null,null,null,null,null,null,null,null,null,null,null,null,null,"(Ａ)",null,3190307,null,null,null,null,2954031,null,null,null,null,2720887,null,null,null,null,null,null,null,null,null,null,null,null,null,null,"連結実質赤字額 ",null,null,null,null,null,null,null,null,null,null,null,null,null,null,null,null,"-",null,null,null,null,"-",null,null,null,null,"-",null,null,null,null,"-",null,null,null,null,null,null,"損失補償・債務保証の履行に係るもの",null,null,null,null,null,null,null,null,null,null,null,null,null,null,null,null,null,null,null,"-",null,null,null,null,"-",null,null,null,null,"-",null,null,null,null,"-"]
["内訳",null,null,null,null,null,null,null,null,null,null,null,null,null,null,null,null,null,null,null,null,null,null,null,null,null,"平成30年度",null,null,null,null,"令和元年度",null,null,null,null,"令和2年度",null,null,null,null,"分母比",null,null,null,null,null,null,null,null,null,"組合等連結実質赤字額負担見込額 ",null,null,null,null,null,null,null,null,null,null,null,null,null,null,null,null,"-",null,null,null,null,"-",null,null,null,null,"-",null,null,null,null,"-",null,null,null,null,null,null,"引き受けた債務の履行に係るもの",null,null,null,null,null,null,null,null,null,null,null,null,null,null,null,null,null,null,null,"-",null,null,null,null,"-",null,null,null,null,"-",null,null,null,null,"-"]
["債務負担行為",null,"PFI事業に係るもの",null,null,null,null,null,null,null,null,null,null,null,null,null,null,null,null,null,null,null,null,null,null,null,"-",null,null,null,null,"-",null,null,null,null,"-",null,null,null,null,"-",null,null,null,null,null,null,null,null,null,"合計",null,null,null,null,null,null,null,null,null,null,null,null,null,null,"(Ｅ)",null,28243791,null,null,null,null,26105050,null,null,null,null,25539057,null,null,null,null,null,null,null,null,null,null,null,"その他上記に準ずるもの",null,null,null,null,null,null,null,null,null,null,null,null,null,null,null,null,null,null,null,100,null,null,null,null,"-",null,null,null,null,"-",null,null,null,null,"-"]
[null,null,"いわゆる五省協定等に係るもの",null,null,null,null,null,null,null,null,null,null,null,null,null,null,null,null,null,null,null,null,null,null,null,855948,null,null,null,null,820497,null,null,null,null,760146,null,null,null,null,3.5,null,null,null,null,"充当可能\n財源等",null,null,null,null,"充当可能基金 ",null,null,null,null,null,null,null,null,null,null,null,null,null,null,null,null,16296140,null,null,null,null,18175044,null,null,null,null,17020996,null,null,null,null,79.3,null,null,null,null,"企業債等\n繰入見込額",null,null,null,null,"下水道事業会計",null,null,null,null,null,null,null,null,null,null,null,null,null,null,null,null,1084843,null,null,null,null,1549964,null,null,null,null,1114881,null,null,null,null,5.2]
[null,null,"国営土地改良事業・森林総合研究所等が行う事業に係るもの",null,null,null,null,null,null,null,null,null,null,null,null,null,null,null,null,null,null,null,null,null,null,null,9397,null,null,null,null,9397,null,null,null,null,9397,null,null,null,null,0,null,null,null,null,null,null,null,null,null,"充当可能特定歳入 ",null,null,null,null,null,null,null,null,null,null,null,null,null,null,null,null,5917007,null,null,null,null,5501247,null,null,null,null,5794273,null,null,null,null,27,null,null,null,null,null,null,null,null,null,"水道事業会計",null,null,null,null,null,null,null,null,null,null,null,null,null,null,null,null,182586,null,null,null,null,141216,null,null,null,null,146669,null,null,null,null,0.7]
[null,null,"地方公務員等共済組合に係るもの",null,null,null,null,null,null,null,null,null,null,null,null,null,null,null,null,null,null,null,null,null,null,null,"-",null,null,null,null,"-",null,null,null,null,"-",null,null,null,null,"-",null,null,null,null,null,null,null,null,null,"基準財政需要額算入見込額 ",null,null,null,null,null,null,null,null,null,null,null,null,null,null,null,null,13393083,null,null,null,null,12337602,null,null,null,null,11487717,null,null,null,null,53.5]
[null,null,"社会福祉法人の施設建設費に係るもの",null,null,null,null,null,null,null,null,null,null,null,null,null,null,null,null,null,null,null,null,null,null,null,"-",null,null,null,null,"-",null,null,null,null,"-",null,null,null,null,"-",null,null,null,null,null,null,null,null,null,"合計",null,null,null,null,null,null,null,null,null,null,null,null,null,null,"(Ｆ)",null,35606230,null,null,null,null,36013893,null,null,null,null,34302986]
[null,null,"損失補償・債務保証の履行に係るもの",null,null,null,null,null,null,null,null,null,null,null,null,null,null,null,null,null,null,null,null,null,null,null,"-",null,null,null,null,"-",null,null,null,null,"-",null,null,null,null,"-",null,null,null,null,"将来負担比率（(Ｅ)－(Ｆ)）／（(Ｃ)－(Ｄ)）×１００",null,null,null,null,null,null,null,null,null,null,null,null,null,null,null,null,null,null,null,null,null,"-",null,null,null,null,"-",null,null,null,null,"-",null,null,null,null,null,null,null,null,null,null,null,null,null,null,"その他の会計",null,null,null,null,null,null,null,null,null,null,null,null,null,null,null,null,"-",null,null,null,null,"-",null,null,null,null,"-",null,null,null,null,"-"]
[null,null,"引き受けた債務の履行に係るもの",null,null,null,null,null,null,null,null,null,null,null,null,null,null,null,null,null,null,null,null,null,null,null,"-",null,null,null,null,"-",null,null,null,null,"-",null,null,null,null,"-",null,null,null,null,null,null,null,null,null,null,null,null,null,null,null,null,null,null,null,null,null,null,null,null,null,null,null,null,null,null,null,null,null,null,null,null,null,null,null,null,null,null,null,null,null,null,"公社・\n三セク等",null,null,null,null,"地方道路公社に係る将来負担額",null,null,null,null,null,null,null,null,null,null,null,null,null,null,null,null,"-",null,null,null,null,"-",null,null,null,null,"-",null,null,null,null,"-"]
[null,null,"その他上記に準ずるもの",null,null,null,null,null,null,null,null,null,null,null,null,null,null,null,null,null,null,null,null,null,null,null,"-",null,null,null,null,"-",null,null,null,null,"-",null,null,null,null,"-",null,null,null,null,null,null,null,null,null,null,null,null,null,null,null,null,null,null,null,null,null,null,null,null,null,null,null,null,null,null,null,null,null,null,null,null,null,null,null,null,null,null,null,null,null,null,null,null,null,null,null,"土地開発公社に係る将来負担額",null,null,null,null,null,null,null,null,null,null,null,null,null,null,null,null,"-",null,null,null,null,"-",null,null,null,null,"-",null,null,null,null,"-"]
[null,null,"利子補給に係るもの",null,null,null,null,null,null,null,null,null,null,null,null,null,null,null,null,null,null,null,null,null,null,null,17,null,null,null,null,12,null,null,null,null,"-",null,null,null,null,"-",null,null,null,null,null,null,null,"健全化判断比率",null,null,null,null,null,null,null,"令和2年度",null,null,null,null,null,null,"早期健全化基準",null,null,null,null,null,null,"財政再生基準",null,null,null,null,null,null,null,null,null,null,null,null,null,null,null,null,null,null,null,null,null,"地方独立行政法人に係る将来負担額",null,null,null,null,null,null,null,null,null,null,null,null,null,null,null,null,"-",null,null,null,null,"-",null,null,null,null,"-",null,null,null,null,"-"]
["特定財源の額",null,null,null,null,null,null,null,null,null,null,null,null,null,null,null,null,null,null,null,null,null,"(Ｂ)",null,null,null,1379209,null,null,null,null,1438136,null,null,null,null,1368148,null,null,null,null,null,null,null,null,null,null,null,null,"実質赤字比率",null,null,null,null,null,null,null,"-",null,null,null,null,null,null,12.24,null,null,null,null,null,null,20,null,null,null,null,null,null,null,null,null,null,null,null,null,null,null,null,null,null,null,null,null,"その他第三セクター等に係る将来負担額",null,null,null,null,null,null,null,null,null,null,null,null,null,null,null,null,"-",null,null,null,null,"-",null,null,null,null,"-",null,null,null,null,"-"]
["標準財政規模",null,null,null,null,null,null,null,null,null,null,null,null,null,null,null,null,null,null,null,null,null,"(Ｃ)",null,null,null,22113543,null,null,null,null,21219643,null,null,null,null,22907364,null,null,null,null,null,null,null,null,null,null,null,null,"連結実質赤字比率",null,null,null,null,null,null,null,"-",null,null,null,null,null,null,17.239999999999998,null,null,null,null,null,null,30]
["算入公債費等の額",null,null,null,null,null,null,null,null,null,null,null,null,null,null,null,null,null,null,null,null,null,"(Ｄ)",null,null,null,1622083,null,null,null,null,1508631,null,null,null,null,1432756,null,null,null,null,null,null,null,null,null,null,null,null,"実質公債費比率",null,null,null,null,null,null,null,0.1,null,null,null,null,null,null,25,null,null,null,null,null,null,35]
[null,null,null,null,null,null,null,null,null,null,null,null,null,null,null,null,null,null,null,null,null,null,"(Ｃ)－(Ｄ)",null,null,null,20491460,null,null,null,null,19711012,null,null,null,null,21474608,null,null,null,null,null,null,null,null,null,null,null,null,"将来負担比率",null,null,null,null,null,null,null,"-",null,null,null,null,null,null,350]
["実質公債費比率\n（(Ａ)－((Ｂ)＋(Ｄ))）／（(Ｃ)－(Ｄ)）×１００",null,null,null,null,null,null,null,null,null,null,null,null,null,null,null,null,null,null,null,null,"(単年度)",null,null,null,null,0.922408652,null,null,null,null,3.6852495999999998E-2,null,null,null,null,-0.372612157]
[null,null,null,null,null,null,null,null,null,null,null,null,null,null,null,null,null,null,null,null,null,"(3ヵ年平均)",null,null,null,null,1.8,null,null,null,null,0.7,null,null,null,null,0.1]

{"sheet":"財政比較分析表","index":3,"n_rows":97,"n_cols":120,"rows_kept":97,"cut":false,"hidden":false,"merged":[]}
[]
[]
[]
[]
[]
[]
[]
[]
[]
[]
[]
[]
[]
[]
[]
[]
[]
[]
[]
[]
[]
[]
[]
[]
[]
[]
[]
[]
[]
[]
[]
[]
[]
[]
[]
[]
[]
[]
[]
[]
[]
[]
[]
[]
[]
[]
[]
[]
[]
[]
[]
[]
[]
[]
[]
[]
[]
[]
[]
[]
[]
[]
[]
[]
[]
[]
[]
[]
[]
[]
[]
[]
[]
[]
[]
[]
[]
[]
[]
[]
[]
[]
[]
[]
[]
[]
[]
[]
[]
[]
[]
[]
[]
[]
[]
[]
[null,null,null,null,null,null,null,null,null,null,null,null,null,null,null,null,null,null,null,null,null,null,null,null,null,null,null,null,null,null,null,null,null,null,null,null,null,null,null,null,null,null,null,null,null,null,null,null,null,null,null,null,null,null,null,null,null,null,null,null,null,null,null,null,null,null,null,null,null,null,null,null,null,null,null,null,null,null,null,null,null,null,null,null,null,null,null,null,null,null,null,null,null,null,null,null,null,null,null,null,null,null,null,null,null,null,null,null,null,null,null,null,null,null,null,null,null,null,null," "]

{"sheet":"経常経費分析表（経常収支比率の分析）","index":4,"n_rows":0,"n_cols":0,"rows_kept":0,"cut":false,"hidden":false,"merged":[]}

{"sheet":"経常経費分析表（人件費・公債費・普通建設事業費の分析）","index":5,"n_rows":62,"n_cols":44,"rows_kept":62,"cut":false,"hidden":false,"merged":[[37,36,37,39],[38,36,38,39],[39,36,39,39],[40,36,40,39],[48,38,49,38],[48,39,48,43],[36,36,36,39],[13,36,13,39],[14,36,14,39],[15,36,15,39],[20,36,20,39],[21,36,21,39],[31,36,31,39],[32,36,32,39],[33,36,33,39],[34,36,34,39],[35,36,35,39],[29,40,30,40],[6,40,7,40],[8,36,8,39],[9,36,9,39],[10,36,10,39],[11,36,11,39],[12,36,12,39]]}
[]
[]
[]
[]
["人件費及び人件費に準ずる費用の分析"]
[null,null,null,null,null,null,null,null,null,null,null,null,null,null,null,null,null,null,null,null,null,null,null,null,null,null,null,null,null,null,null,null,null,null,null,null,"人件費及び人件費に準ずる費用"]
[null,null,null,null,null,null,null,null,null,null,null,null,null,null,null,null,null,null,null,null,null,null,null,null,null,null,null,null,null,null,null,null,null,null,null,null,null,null,null,null,"当該団体決算額\n（千円）",null,"人口1人当たり決算額"]
[null,null,null,null,null,null,null,null,null,null,null,null,null,null,null,null,null,null,null,null,null,null,null,null,null,null,null,null,null,null,null,null,null,null,null,null,null,null,null,null,null,"当該団体（円）","類似団体平均（円）","対比（％）"]
[null,null,null,null,null,null,null,null,null,null,null,null,null,null,null,null,null,null,null,null,null,null,null,null,null,null,null,null,null,null,null,null,null,null,null,null,"人件費",null,null,null,6163712,58274,61284,-4.9000000000000004]
[null,null,null,null,null,null,null,null,null,null,null,null,null,null,null,null,null,null,null,null,null,null,null,null,null,null,null,null,null,null,null,null,null,null,null,null,"一部事務組合負担金（補助費等）",null,null,null,1458512,13789,4056,240]
[null,null,null,null,null,null,null,null,null,null,null,null,null,null,null,null,null,null,null,null,null,null,null,null,null,null,null,null,null,null,null,null,null,null,null,null,"公営企業（法適）等に対する繰出し（補助費等）",null,null,null,38376,363,604,-39.9]
[null,null,null,null,null,null,null,null,null,null,null,null,null,null,null,null,null,null,null,null,null,null,null,null,null,null,null,null,null,null,null,null,null,null,null,null,"公営企業（法適）等に対する繰出し（投資及び出資金・貸付金）",null,null,null,"-","-",21,"-"]
[null,null,null,null,null,null,null,null,null,null,null,null,null,null,null,null,null,null,null,null,null,null,null,null,null,null,null,null,null,null,null,null,null,null,null,null,"公営企業（法非適）等に対する繰出し（繰出金）",null,null,null,214608,2029,2509,-19.100000000000001]
[null,null,null,null,null,null,null,null,null,null,null,null,null,null,null,null,null,null,null,null,null,null,null,null,null,null,null,null,null,null,null,null,null,null,null,null,"事業費支弁に係る職員の人件費（投資的経費）",null,null,null,157710,1491,1157,28.9]
[null,null,null,null,null,null,null,null,null,null,null,null,null,null,null,null,null,null,null,null,null,null,null,null,null,null,null,null,null,null,null,null,null,null,null,null,"▲退職金",null,null,null,-143031,-1352,-4228,-68]
[null,null,null,null,null,null,null,null,null,null,null,null,null,null,null,null,null,null,null,null,null,null,null,null,null,null,null,null,null,null,null,null,null,null,null,null,"合計",null,null,null,7889887,74593,65402,14.1]
[]
[]
[null,null,null,null,null,null,null,null,null,null,null,null,null,null,null,null,null,null,null,null,null,null,null,null,null,null,null,null,null,null,null,null,null,null,null,null,"参考"]
[null,null,null,null,null,null,null,null,null,null,null,null,null,null,null,null,null,null,null,null,null,null,null,null,null,null,null,null,null,null,null,null,null,null,null,null,null,null,null,null,"当該団体","類似団体平均","対比（差引）"]
[null,null,null,null,null,null,null,null,null,null,null,null,null,null,null,null,null,null,null,null,null,null,null,null,null,null,null,null,null,null,null,null,null,null,null,null,"人口1,000人当たり職員数（人）",null,null,null,6.01,6.06,-0.05]
[null,null,null,null,null,null,null,null,null,null,null,null,null,null,null,null,null,null,null,null,null,null,null,null,null,null,null,null,null,null,null,null,null,null,null,null,"ラスパイレス指数",null,null,null,99.6,99.2,0.4]
[]
[]
[]
["（注）人口については、各調査対象年度の1月1日現在の住民基本台帳に登載されている人口に基づいている。"]
[]
["公債費及び公債費に準ずる費用の分析"]
[null,null,null,null,null,null,null,null,null,null,null,null,null,null,null,null,null,null,null,null,null,null,null,null,null,null,null,null,null,null,null,null,null,null,null,null,"公債費及び公債費に準ずる費用（実質公債費比率の構成要素）"]
[null,null,null,null,null,null,null,null,null,null,null,null,null,null,null,null,null,null,null,null,null,null,null,null,null,null,null,null,null,null,null,null,null,null,null,null,null,null,null,null,"当該団体決算額\n（千円）",null,"人口1人当たり決算額"]
[null,null,null,null,null,null,null,null,null,null,null,null,null,null,null,null,null,null,null,null,null,null,null,null,null,null,null,null,null,null,null,null,null,null,null,null,null,null,null,null,null,"当該団体（円）","類似団体平均（円）","対比（％）"]
[null,null,null,null,null,null,null,null,null,null,null,null,null,null,null,null,null,null,null,null,null,null,null,null,null,null,null,null,null,null,null,null,null,null,null,null,"元利償還金の額\n（繰上償還額等を除く）",null,null,null,1594727,15077,32044,-52.9]
[null,null,null,null,null,null,null,null,null,null,null,null,null,null,null,null,null,null,null,null,null,null,null,null,null,null,null,null,null,null,null,null,null,null,null,null,"積立不足額を考慮して算定した額",null,null,null,"-","-",6,"-"]
[null,null,null,null,null,null,null,null,null,null,null,null,null,null,null,null,null,null,null,null,null,null,null,null,null,null,null,null,null,null,null,null,null,null,null,null,"満期一括償還地方債の一年当たりの元金償還金に相当するもの\n（年度割相当額）",null,null,null,"-","-",29,"-"]
[null,null,null,null,null,null,null,null,null,null,null,null,null,null,null,null,null,null,null,null,null,null,null,null,null,null,null,null,null,null,null,null,null,null,null,null,"公営企業に要する経費の財源とする地方債の償還の財源に\n充てたと認められる繰入金",null,null,null,56382,533,6008,-91.1]
[null,null,null,null,null,null,null,null,null,null,null,null,null,null,null,null,null,null,null,null,null,null,null,null,null,null,null,null,null,null,null,null,null,null,null,null,"一部事務組合等の起こした地方債に充てたと認められる\n補助金又は負担金",null,null,null,300235,2839,1138,149.5]
[null,null,null,null,null,null,null,null,null,null,null,null,null,null,null,null,null,null,null,null,null,null,null,null,null,null,null,null,null,null,null,null,null,null,null,null,"公債費に準ずる債務負担行為に係るもの",null,null,null,769543,7275,852,753.9]
[null,null,null,null,null,null,null,null,null,null,null,null,null,null,null,null,null,null,null,null,null,null,null,null,null,null,null,null,null,null,null,null,null,null,null,null,"一時借入金利子\n（同一団体における会計間の現金運用に係る利子は除く）",null,null,null,"-","-",2,"-"]
[null,null,null,null,null,null,null,null,null,null,null,null,null,null,null,null,null,null,null,null,null,null,null,null,null,null,null,null,null,null,null,null,null,null,null,null,"▲特定財源の額",null,null,null,-1368148,-12935,-6316,104.8]
[null,null,null,null,null,null,null,null,null,null,null,null,null,null,null,null,null,null,null,null,null,null,null,null,null,null,null,null,null,null,null,null,null,null,null,null,"▲地方債に係る元利償還金及び準元利償還金に要する経費として\n普通交付税の額の算定に用いる基準財政需要額に算入された額",null,null,null,-1432756,-13546,-26078,-48.1]
[null,null,null,null,null,null,null,null,null,null,null,null,null,null,null,null,null,null,null,null,null,null,null,null,null,null,null,null,null,null,null,null,null,null,null,null,"合計",null,null,null,-80017,-757,7686,-109.8]
[null,null,null,null,null,null,null,null,null,null,null,null,null,null,null,null,null,null,null,null,null,null,null,null,null,null,null,null,null,null,null,null,null,null,null,null,"※令和3年度中に市町村合併した団体で、合併前の団体ごとの決算に基づく実質公債費比率を算出していない団体については、グラフを表記しない。"]
[]
[]
[]
[]
["（参考）　普通建設事業費の分析"]
[null,null,null,null,null,null,null,null,null,null,null,null,null,null,null,null,null,null,null,null,null,null,null,null,null,null,null,null,null,null,null,null,null,null,null,null,"普通建設事業費"]
[null,null,null,null,null,null,null,null,null,null,null,null,null,null,null,null,null,null,null,null,null,null,null,null,null,null,null,null,null,null,null,null,null,null,null,null,null,null,"当該団体決算額\n（千円）","人口１人当たり決算額"]
[null,null,null,null,null,null,null,null,null,null,null,null,null,null,null,null,null,null,null,null,null,null,null,null,null,null,null,null,null,null,null,null,null,null,null,null,null,null,null,"当該団体(円)","増減率(%)(A)","類似団体平均(円)","増減率(%)(B)","(A)-(B)"]
[null,null,null,null,null,null,null,null,null,null,null,null,null,null,null,null,null,null,null,null,null,null,null,null,null,null,null,null,null,null,null,null,null,null,null,null," H28",null,7064229,72630,25.4,44504,-51.8,77.2]
[null,null,null,null,null,null,null,null,null,null,null,null,null,null,null,null,null,null,null,null,null,null,null,null,null,null,null,null,null,null,null,null,null,null,null,null,null,"うち単独分",6380488,65600,55.2,25876,-30.4,85.6]
[null,null,null,null,null,null,null,null,null,null,null,null,null,null,null,null,null,null,null,null,null,null,null,null,null,null,null,null,null,null,null,null,null,null,null,null," H29",null,4324409,43555,-40,47820,7.5,-47.5]
[null,null,null,null,null,null,null,null,null,null,null,null,null,null,null,null,null,null,null,null,null,null,null,null,null,null,null,null,null,null,null,null,null,null,null,null,null,"うち単独分",2900067,29209,-55.5,25855,-0.1,-55.4]
[null,null,null,null,null,null,null,null,null,null,null,null,null,null,null,null,null,null,null,null,null,null,null,null,null,null,null,null,null,null,null,null,null,null,null,null," H30",null,4443127,43862,0.7,41934,-12.3,13]
[null,null,null,null,null,null,null,null,null,null,null,null,null,null,null,null,null,null,null,null,null,null,null,null,null,null,null,null,null,null,null,null,null,null,null,null,null,"うち単独分",3289421,32472,11.2,23352,-9.6999999999999993,20.9]
[null,null,null,null,null,null,null,null,null,null,null,null,null,null,null,null,null,null,null,null,null,null,null,null,null,null,null,null,null,null,null,null,null,null,null,null," R01",null,4210009,40671,-7.3,45588,8.6999999999999993,-16]
[null,null,null,null,null,null,null,null,null,null,null,null,null,null,null,null,null,null,null,null,null,null,null,null,null,null,null,null,null,null,null,null,null,null,null,null,null,"うち単独分",3103601,29983,-7.7,24150,3.4,-11.1]
[null,null,null,null,null,null,null,null,null,null,null,null,null,null,null,null,null,null,null,null,null,null,null,null,null,null,null,null,null,null,null,null,null,null,null,null," R02",null,5257326,49704,22.2,44161,-3.1,25.3]
[null,null,null,null,null,null,null,null,null,null,null,null,null,null,null,null,null,null,null,null,null,null,null,null,null,null,null,null,null,null,null,null,null,null,null,null,null,"うち単独分",4199780,39706,32.4,23644,-2.1,34.5]
[null,null,null,null,null,null,null,null,null,null,null,null,null,null,null,null,null,null,null,null,null,null,null,null,null,null,null,null,null,null,null,null,null,null,null,null," 過去５年間平均",null,5059820,50084,0.2,44801,-10.199999999999999,10.4]
[null,null,null,null,null,null,null,null,null,null,null,null,null,null,null,null,null,null,null,null,null,null,null,null,null,null,null,null,null,null,null,null,null,null,null,null,null,"うち単独分",3974671,39394,7.1,24575,-7.8,14.9]

{"sheet":"性質別歳出決算分析表（住民一人当たりのコスト）","index":6,"n_rows":116,"n_cols":125,"rows_kept":116,"cut":false,"hidden":false,"merged":[]}
[]
[]
[]
[]
[]
[]
[]
[]
[]
[]
[]
[]
[]
[]
[]
[]
[]
[]
[]
[]
[]
[]
[]
[]
[]
[]
[]
[]
[]
[]
[]
[]
[]
[]
[]
[]
[]
[]
[]
[]
[]
[]
[]
[]
[]
[]
[]
[]
[]
[]
[]
[]
[]
[]
[]
[]
[]
[]
[]
[]
[]
[]
[]
[]
[]
[]
[]
[]
[]
[]
[]
[]
[]
[]
[]
[]
[]
[]
[]
[]
[]
[]
[]
[]
[]
[]
[]
[]
[]
[]
[]
[]
[]
[]
[]
[]
[]
[]
[]
[]
[]
[]
[]
[]
[]
[]
[]
[]
[]
[]
[]
[]
[]
[]
[]
[null,null,null,null,null,null,null,null,null,null,null,null,null,null,null,null,null,null,null,null,null,null,null,null,null,null,null,null,null,null,null,null,null,null,null,null,null,null,null,null,null,null,null,null,null,null,null,null,null,null,null,null,null,null,null,null,null,null,null,null,null,null,null,null,null,null,null,null,null,null,null,null,null,null,null,null,null,null,null,null,null,null,null,null,null,null,null,null,null,null,null,null,null,null,null,null,null,null,null,null,null,null,null,null,null,null,null,null,null,null,null,null,null,null,null,null,null,null,null,null,null,null,null,null," "]

{"sheet":"目的別歳出決算分析表（住民一人当たりのコスト）","index":7,"n_rows":116,"n_cols":125,"rows_kept":116,"cut":false,"hidden":false,"merged":[]}
[]
[]
[]
[]
[]
[]
[]
[]
[]
[]
[]
[]
[]
[]
[]
[]
[]
[]
[]
[]
[]
[]
[]
[]
[]
[]
[]
[]
[]
[]
[]
[]
[]
[]
[]
[]
[]
[]
[]
[]
[]
[]
[]
[]
[]
[]
[]
[]
[]
[]
[]
[]
[]
[]
[]
[]
[]
[]
[]
[]
[]
[]
[]
[]
[]
[]
[]
[]
[]
[]
[]
[]
[]
[]
[]
[]
[]
[]
[]
[]
[]
[]
[]
[]
[]
[]
[]
[]
[]
[]
[]
[]
[]
[]
[]
[]
[]
[]
[]
[]
[]
[]
[]
[]
[]
[]
[]
[]
[]
[]
[]
[]
[]
[]
[]
[null,null,null,null,null,null,null,null,null,null,null,null,null,null,null,null,null,null,null,null,null,null,null,null,null,null,null,null,null,null,null,null,null,null,null,null,null,null,null,null,null,null,null,null,null,null,null,null,null,null,null,null,null,null,null,null,null,null,null,null,null,null,null,null,null,null,null,null,null,null,null,null,null,null,null,null,null,null,null,null,null,null,null,null,null,null,null,null,null,null,null,null,null,null,null,null,null,null,null,null,null,null,null,null,null,null,null,null,null,null,null,null,null,null,null,null,null,null,null,null,null,null,null,null," "]

{"sheet":"実質収支比率等に係る経年分析","index":8,"n_rows":49,"n_cols":10,"rows_kept":49,"cut":false,"hidden":false,"merged":[[46,2,46,4],[47,2,47,4],[48,2,48,4]]}
[]
[]
[]
[]
[]
[]
[]
[]
[]
[]
[]
[]
[]
[]
[]
[]
[]
[]
[]
[]
[]
[]
[]
[]
[]
[]
[]
[]
[]
[]
[]
[]
[]
[]
[]
[]
[]
[]
[]
[]
[]
[]
[]
[]
[null,null,null,null,null,null,null,null,null,"標準財政規模比（％）"]
[null,"区分",null,null,"年度","H28","H29","H30","R01","R02"]
[null,null,"財政調整基金残高",null,null,42.08,47.54,42.46,49.54,40.5]
[null,null,"実質収支額",null,null,9.5500000000000007,9.73,9.8800000000000008,8.65,13.09]
[null,null,"実質単年度収支",null,null,"▲ 0.56","▲ 0.93","▲ 6.24","▲ 1.53","▲ 0.32"]

{"sheet":"連結実質赤字比率に係る赤字・黒字の構成分析","index":9,"n_rows":44,"n_cols":10,"rows_kept":44,"cut":false,"hidden":false,"merged":[[39,2,39,4],[40,2,40,4],[41,2,41,4],[42,2,42,4],[33,2,33,4],[34,2,34,4],[35,2,35,4],[36,2,36,4],[37,2,37,4],[38,2,38,4]]}
[]
[]
[]
[]
[]
[]
[]
[]
[]
[]
[]
[]
[]
[]
[]
[]
[]
[]
[]
[]
[]
[]
[]
[]
[]
[]
[]
[]
[]
[]
[]
[null,null,null,null,null,null,null,null,null,"標準財政規模比（％）"]
[null,"会計",null,null,"年度","H28","H29","H30","R01","R02"]
[null,null,"一般会計",null,null,9.5399999999999991,9.7200000000000006,9.8800000000000008,8.65,13.08]
[null,null,"水道事業会計",null,null,8.1199999999999992,8.17,7.98,8.74,8.14]
[null,null,"下水道事業会計",null,null,0.54,0.56999999999999995,0.31,"▲ 0.08",5.94]
[null,null,"介護保険特別会計",null,null,1.01,1.37,1.1200000000000001,0.94,1.26]
[null,null,"国民健康保険特別会計",null,null,0.47,0.46,0.19,0.36,0.38]
[null,null,"後期高齢者医療特別会計",null,null,0.05,0.05,0.05,0.05,0.08]
[]
[]
[null,null,"その他会計（赤字）",null,null,"-","-","-","-","-"]
[null,null,"その他会計（黒字）",null,null,"-","-","-","-","-"]
[null,"※令和3年度中に市町村合併した団体で、合併前の団体ごとの決算に基づく連結実質赤字比率を算出していない団体については、グラフを表記しない。"]

{"sheet":"実質公債費比率（分子）の構造","index":10,"n_rows":60,"n_cols":15,"rows_kept":60,"cut":false,"hidden":false,"merged":[[51,1,51,2],[51,4,51,9],[52,1,52,2],[52,4,52,9],[56,1,57,2],[56,3,56,9],[57,3,57,9],[44,1,50,2],[44,4,44,9],[45,4,45,9],[46,4,46,9],[47,4,47,9],[48,4,48,9],[49,4,49,9],[50,4,50,9]]}
[]
[]
[]
[]
[]
[]
[]
[]
[]
[]
[]
[]
[]
[]
[]
[]
[]
[]
[]
[]
[]
[]
[]
[]
[]
[]
[]
[]
[]
[]
[]
[]
[]
[]
[]
[]
[]
[]
[]
[]
[]
[]
[null,null,null,null,null,null,null,null,null,null,null,null,null,null,"（百万円）"]
[null,"分子の構造",null,null,null,null,null,null,null,"年度","H28","H29","H30","R01","R02"]
[null,"元利償還金等(A)",null,null,"元利償還金",null,null,null,null,null,2390,2134,1928,1707,1595]
[null,null,null,null,"減債基金積立不足算定額※2",null,null,null,null,null,"-","-","-","-","-"]
[null,null,null,null,"満期一括償還地方債に係る年度割相当額",null,null,null,null,null,"-","-","-","-","-"]
[null,null,null,null,"公営企業債の元利償還金に対する繰入金",null,null,null,null,null,201,194,173,161,56]
[null,null,null,null,"組合等が起こした地方債の元利償還金に対する負担金等",null,null,null,null,null,269,233,223,256,300]
[null,null,null,null,"債務負担行為に基づく支出額",null,null,null,null,null,895,867,865,830,770]
[null,null,null,null,"一時借入金の利子",null,null,null,null,null,"-","-","-","-","-"]
[null,"算入公債費等(B)",null,null,"算入公債費等",null,null,null,null,null,3138,3157,3002,2946,2801]
[null,"(A)－(B)",null,null,"実質公債費比率の分子",null,null,null,null,null,617,271,187,8,-80]
[null,"※1 令和3年度中に市町村合併した団体で、合併前の団体ごとの決算に基づく実質公債費比率を算出していない団体については、グラフを表記しない。"]
[null,"（参考）",null,null,null,null,null,null,null,null,null,null,null,null,"（百万円）"]
[null,null,null,null,null,null,null,null,null,"年度","H27末","H28末","H29末","H30末","R01末"]
[null,"※2　減債基金\n　　積立状況等",null,"減債基金残高（注）",null,null,null,null,null,null,"-","-","-","-","-"]
[null,null,null,"減債基金積立相当額",null,null,null,null,null,null,"-","-","-","-","-"]
[null,null,null,"（注）減債基金残高のうち、実質公債費比率の算定に用いる満期一括償還地方債の償還の財源として積み立てた額に係るもののみを記入。"]
[null,null,null,"　　　減債基金積立金の年度を超えた一般会計又は特別会計への貸付額は控除して記入。"]

{"sheet":"将来負担比率（分子）の構造","index":11,"n_rows":54,"n_cols":13,"rows_kept":54,"cut":false,"hidden":false,"merged":[[49,1,51,2],[49,4,49,7],[50,4,50,7],[51,4,51,7],[52,1,52,2],[52,4,52,7],[40,1,48,2],[40,4,40,7],[41,4,41,7],[42,4,42,7],[43,4,43,7],[44,4,44,7],[45,4,45,7],[46,4,46,7],[47,4,47,7],[48,4,48,7]]}
[]
[]
[]
[]
[]
[]
[]
[]
[]
[]
[]
[]
[]
[]
[]
[]
[]
[]
[]
[]
[]
[]
[]
[]
[]
[]
[]
[]
[]
[]
[]
[]
[]
[]
[]
[]
[]
[]
[null,null,null,null,null,null,null,null,null,null,null,null,"（百万円）"]
[null,"分子の構造",null,null,null,null,null,"年度","H28","H29","H30","R01","R02"]
[null,"将来負担額(A)",null,null,"一般会計等に係る地方債の現在高",null,null,null,17629,16076,14547,13462,13368]
[null,null,null,null,"債務負担行為に基づく支出予定額",null,null,null,8358,7490,6624,5547,5175]
[null,null,null,null,"公営企業債等繰入見込額",null,null,null,1988,1852,1267,1691,1262]
[null,null,null,null,"組合等負担等見込額",null,null,null,1984,2442,2619,2127,2312]
[null,null,null,null,"退職手当負担見込額",null,null,null,2860,3093,3186,3277,3422]
[null,null,null,null,"設立法人等の負債額等負担見込額",null,null,null,"-","-","-","-","-"]
[null,null,null,null,"うち、健全化法施行規則附則第三条に係る負担見込額",null,null,null,"-","-","-","-","-"]
[null,null,null,null,"連結実質赤字額",null,null,null,"-","-","-","-","-"]
[null,null,null,null,"組合等連結実質赤字額負担見込額",null,null,null,"-","-","-","-","-"]
[null,"充当可能財源等(B)",null,null,"充当可能基金",null,null,null,13390,15146,16296,18175,17021]
[null,null,null,null,"充当可能特定歳入",null,null,null,5953,6230,5917,5501,5794]
[null,null,null,null,"基準財政需要額算入見込額",null,null,null,15835,14610,13393,12338,11488]
[null,"(A)－(B)",null,null,"将来負担比率の分子",null,null,null,-2359,-5034,-7362,-9909,-8764]
[null,"※令和3年度中に市町村合併した団体で、合併前の団体ごとの決算に基づく将来負担比率を算出していない団体については、グラフを表記しない。"]

{"sheet":"基金残高に係る経年分析","index":12,"n_rows":63,"n_cols":8,"rows_kept":63,"cut":false,"hidden":false,"merged":[[60,2,60,4],[61,2,61,4],[62,2,62,4],[54,2,54,4],[55,2,55,4],[56,2,56,4],[57,2,57,4],[58,2,58,4],[59,2,59,4]]}
[]
[]
[]
[]
[]
[]
[]
[]
[]
[]
[]
[]
[]
[]
[]
[]
[]
[]
[]
[]
[]
[]
[]
[]
[]
[]
[]
[]
[]
[]
[]
[]
[]
[]
[]
[]
[]
[]
[]
[]
[]
[]
[]
[]
[]
[]
[]
[]
[]
[]
[]
[]
[null,null,null,null,null,null,null,"（百万円）"]
[null,"区分",null,null,"年度","H30","R01","R02"]
[null,null,"財政調整基金",null,null,9388,10512,9278]
[null,null,"減債基金",null,null,135,120,104]
[null,null,"その他特定目的基金",null,null,6024,5741,6534]
[null,null,"公共施設整備基金",null,null,"-","-",5000]
[null,null,"教育振興基金",null,null,"-","-",545]
[null,null,"都市廃棄物空気輸送施設収束事業基金",null,null,515,511,506]
[null,null,"都市計画事業基金",null,null,147,147,147]
[null,null,"ふるさとづくり運営基金",null,null,157,144,128]
[null,null,"基金残高合計",null,null,15548,16373,15915]

{"sheet":"データシート","index":13,"n_rows":74,"n_cols":16,"rows_kept":74,"cut":false,"hidden":true,"merged":[]}
[]
[null,null,null,"当該団体(円)",null,"類似団体内平均(円)"]
[" H28",null,null,72630,null,44504]
[null,null,null,65600,null,25876]
[" H29",null,null,43555,null,47820]
[null,null,null,29209,null,25855]
[" H30",null,null,43862,null,41934]
[null,null,null,32472,null,23352]
[" R01",null,null,40671,null,45588]
[null,null,null,29983,null,24150]
[" R02",null,null,49704,null,44161]
[null,null,null,39706,null,23644]
[null,null,null,50084,null,44801]
[null,null,null,39394,null,24575]
[]
[]
["実質収支比率等に係る経年分析"]
[null,{"$f":"実質収支比率等に係る経年分析!F$46","v":"H28"},{"$f":"実質収支比率等に係る経年分析!G$46","v":"H29"},{"$f":"実質収支比率等に係る経年分析!H$46","v":"H30"},{"$f":"実質収支比率等に係る経年分析!I$46","v":"R01"},{"$f":"実質収支比率等に係る経年分析!J$46","v":"R02"}]
["実質収支額",{"$f":"ROUND(VALUE(SUBSTITUTE(実質収支比率等に係る経年分析!F$48,\"▲\",\"-\")),2)","v":9.5500000000000007},{"$f":"ROUND(VALUE(SUBSTITUTE(実質収支比率等に係る経年分析!G$48,\"▲\",\"-\")),2)","v":9.73},{"$f":"ROUND(VALUE(SUBSTITUTE(実質収支比率等に係る経年分析!H$48,\"▲\",\"-\")),2)","v":9.8800000000000008},{"$f":"ROUND(VALUE(SUBSTITUTE(実質収支比率等に係る経年分析!I$48,\"▲\",\"-\")),2)","v":8.65},{"$f":"ROUND(VALUE(SUBSTITUTE(実質収支比率等に係る経年分析!J$48,\"▲\",\"-\")),2)","v":13.09}]
["財政調整基金残高",{"$f":"ROUND(VALUE(SUBSTITUTE(実質収支比率等に係る経年分析!F$47,\"▲\",\"-\")),2)","v":42.08},{"$f":"ROUND(VALUE(SUBSTITUTE(実質収支比率等に係る経年分析!G$47,\"▲\",\"-\")),2)","v":47.54},{"$f":"ROUND(VALUE(SUBSTITUTE(実質収支比率等に係る経年分析!H$47,\"▲\",\"-\")),2)","v":42.46},{"$f":"ROUND(VALUE(SUBSTITUTE(実質収支比率等に係る経年分析!I$47,\"▲\",\"-\")),2)","v":49.54},{"$f":"ROUND(VALUE(SUBSTITUTE(実質収支比率等に係る経年分析!J$47,\"▲\",\"-\")),2)","v":40.5}]
["実質単年度収支",{"$f":"IF(ISNUMBER(VALUE(SUBSTITUTE(実質収支比率等に係る経年分析!F$49,\"▲\",\"-\"))),ROUND(VALUE(SUBSTITUTE(実質収支比率等に係る経年分析!F$49,\"▲\",\"-\")),2),NA())","v":-0.56000000000000005},{"$f":"IF(ISNUMBER(VALUE(SUBSTITUTE(実質収支比率等に係る経年分析!G$49,\"▲\",\"-\"))),ROUND(VALUE(SUBSTITUTE(実質収支比率等に係る経年分析!G$49,\"▲\",\"-\")),2),NA())","v":-0.93},{"$f":"IF(ISNUMBER(VALUE(SUBSTITUTE(実質収支比率等に係る経年分析!H$49,\"▲\",\"-\"))),ROUND(VALUE(SUBSTITUTE(実質収支比率等に係る経年分析!H$49,\"▲\",\"-\")),2),NA())","v":-6.24},{"$f":"IF(ISNUMBER(VALUE(SUBSTITUTE(実質収支比率等に係る経年分析!I$49,\"▲\",\"-\"))),ROUND(VALUE(SUBSTITUTE(実質収支比率等に係る経年分析!I$49,\"▲\",\"-\")),2),NA())","v":-1.53},{"$f":"IF(ISNUMBER(VALUE(SUBSTITUTE(実質収支比率等に係る経年分析!J$49,\"▲\",\"-\"))),ROUND(VALUE(SUBSTITUTE(実質収支比率等に係る経年分析!J$49,\"▲\",\"-\")),2),NA())","v":-0.32}]
[]
[]
["連結実質赤字比率に係る赤字・黒字の構成分析"]
[null,{"$f":"連結実質赤字比率に係る赤字・黒字の構成分析!F$33","v":"H28"},null,{"$f":"連結実質赤字比率に係る赤字・黒字の構成分析!G$33","v":"H29"},null,{"$f":"連結実質赤字比率に係る赤字・黒字の構成分析!H$33","v":"H30"},null,{"$f":"連結実質赤字比率に係る赤字・黒字の構成分析!I$33","v":"R01"},null,{"$f":"連結実質赤字比率に係る赤字・黒字の構成分析!J$33","v":"R02"}]
[null,"赤字額","黒字額","赤字額","黒字額","赤字額","黒字額","赤字額","黒字額","赤字額","黒字額"]
[{"$f":"IF(連結実質赤字比率に係る赤字・黒字の構成分析!C$43=\"\",NA(),連結実質赤字比率に係る赤字・黒字の構成分析!C$43)","v":"その他会計（黒字）"},{"$f":"IF(ROUND(VALUE(SUBSTITUTE(連結実質赤字比率に係る赤字・黒字の構成分析!F$43,\"▲\", \"-\")), 2) < 0, ABS(ROUND(VALUE(SUBSTITUTE(連結実質赤字比率に係る赤字・黒字の構成分析!F$43,\"▲\", \"-\")), 2)), NA())","v":{"$error":"#VALUE!"}},{"$f":"IF(ROUND(VALUE(SUBSTITUTE(連結実質赤字比率に係る赤字・黒字の構成分析!F$43,\"▲\", \"-\")), 2) >= 0, ABS(ROUND(VALUE(SUBSTITUTE(連結実質赤字比率に係る赤字・黒字の構成分析!F$43,\"▲\", \"-\")), 2)), NA())","v":{"$error":"#VALUE!"}},{"$f":"IF(ROUND(VALUE(SUBSTITUTE(連結実質赤字比率に係る赤字・黒字の構成分析!G$43,\"▲\", \"-\")), 2) < 0, ABS(ROUND(VALUE(SUBSTITUTE(連結実質赤字比率に係る赤字・黒字の構成分析!G$43,\"▲\", \"-\")), 2)), NA())","v":{"$error":"#VALUE!"}},{"$f":"IF(ROUND(VALUE(SUBSTITUTE(連結実質赤字比率に係る赤字・黒字の構成分析!G$43,\"▲\", \"-\")), 2) >= 0, ABS(ROUND(VALUE(SUBSTITUTE(連結実質赤字比率に係る赤字・黒字の構成分析!G$43,\"▲\", \"-\")), 2)), NA())","v":{"$error":"#VALUE!"}},{"$f":"IF(ROUND(VALUE(SUBSTITUTE(連結実質赤字比率に係る赤字・黒字の構成分析!H$43,\"▲\", \"-\")), 2) < 0, ABS(ROUND(VALUE(SUBSTITUTE(連結実質赤字比率に係る赤字・黒字の構成分析!H$43,\"▲\", \"-\")), 2)), NA())","v":{"$error":"#VALUE!"}},{"$f":"IF(ROUND(VALUE(SUBSTITUTE(連結実質赤字比率に係る赤字・黒字の構成分析!H$43,\"▲\", \"-\")), 2) >= 0, ABS(ROUND(VALUE(SUBSTITUTE(連結実質赤字比率に係る赤字・黒字の構成分析!H$43,\"▲\", \"-\")), 2)), NA())","v":{"$error":"#VALUE!"}},{"$f":"IF(ROUND(VALUE(SUBSTITUTE(連結実質赤字比率に係る赤字・黒字の構成分析!I$43,\"▲\", \"-\")), 2) < 0, ABS(ROUND(VALUE(SUBSTITUTE(連結実質赤字比率に係る赤字・黒字の構成分析!I$43,\"▲\", \"-\")), 2)), NA())","v":{"$error":"#VALUE!"}},{"$f":"IF(ROUND(VALUE(SUBSTITUTE(連結実質赤字比率に係る赤字・黒字の構成分析!I$43,\"▲\", \"-\")), 2) >= 0, ABS(ROUND(VALUE(SUBSTITUTE(連結実質赤字比率に係る赤字・黒字の構成分析!I$43,\"▲\", \"-\")), 2)), NA())","v":{"$error":"#VALUE!"}},{"$f":"IF(ROUND(VALUE(SUBSTITUTE(連結実質赤字比率に係る赤字・黒字の構成分析!J$43,\"▲\", \"-\")), 2) < 0, ABS(ROUND(VALUE(SUBSTITUTE(連結実質赤字比率に係る赤字・黒字の構成分析!J$43,\"▲\", \"-\")), 2)), NA())","v":{"$error":"#VALUE!"}},{"$f":"IF(ROUND(VALUE(SUBSTITUTE(連結実質赤字比率に係る赤字・黒字の構成分析!J$43,\"▲\", \"-\")), 2) >= 0, ABS(ROUND(VALUE(SUBSTITUTE(連結実質赤字比率に係る赤字・黒字の構成分析!J$43,\"▲\", \"-\")), 2)), NA())","v":{"$error":"#VALUE!"}}]
[{"$f":"IF(連結実質赤字比率に係る赤字・黒字の構成分析!C$42=\"\",NA(),連結実質赤字比率に係る赤字・黒字の構成分析!C$42)","v":"その他会計（赤字）"},{"$f":"IF(ROUND(VALUE(SUBSTITUTE(連結実質赤字比率に係る赤字・黒字の構成分析!F$42,\"▲\", \"-\")), 2) < 0, ABS(ROUND(VALUE(SUBSTITUTE(連結実質赤字比率に係る赤字・黒字の構成分析!F$42,\"▲\", \"-\")), 2)), NA())","v":{"$error":"#VALUE!"}},{"$f":"IF(ROUND(VALUE(SUBSTITUTE(連結実質赤字比率に係る赤字・黒字の構成分析!F$42,\"▲\", \"-\")), 2) >= 0, ABS(ROUND(VALUE(SUBSTITUTE(連結実質赤字比率に係る赤字・黒字の構成分析!F$42,\"▲\", \"-\")), 2)), NA())","v":{"$error":"#VALUE!"}},{"$f":"IF(ROUND(VALUE(SUBSTITUTE(連結実質赤字比率に係る赤字・黒字の構成分析!G$42,\"▲\", \"-\")), 2) < 0, ABS(ROUND(VALUE(SUBSTITUTE(連結実質赤字比率に係る赤字・黒字の構成分析!G$42,\"▲\", \"-\")), 2)), NA())","v":{"$error":"#VALUE!"}},{"$f":"IF(ROUND(VALUE(SUBSTITUTE(連結実質赤字比率に係る赤字・黒字の構成分析!G$42,\"▲\", \"-\")), 2) >= 0, ABS(ROUND(VALUE(SUBSTITUTE(連結実質赤字比率に係る赤字・黒字の構成分析!G$42,\"▲\", \"-\")), 2)), NA())","v":{"$error":"#VALUE!"}},{"$f":"IF(ROUND(VALUE(SUBSTITUTE(連結実質赤字比率に係る赤字・黒字の構成分析!H$42,\"▲\", \"-\")), 2) < 0, ABS(ROUND(VALUE(SUBSTITUTE(連結実質赤字比率に係る赤字・黒字の構成分析!H$42,\"▲\", \"-\")), 2)), NA())","v":{"$error":"#VALUE!"}},{"$f":"IF(ROUND(VALUE(SUBSTITUTE(連結実質赤字比率に係る赤字・黒字の構成分析!H$42,\"▲\", \"-\")), 2) >= 0, ABS(ROUND(VALUE(SUBSTITUTE(連結実質赤字比率に係る赤字・黒字の構成分析!H$42,\"▲\", \"-\")), 2)), NA())","v":{"$error":"#VALUE!"}},{"$f":"IF(ROUND(VALUE(SUBSTITUTE(連結実質赤字比率に係る赤字・黒字の構成分析!I$42,\"▲\", \"-\")), 2) < 0, ABS(ROUND(VALUE(SUBSTITUTE(連結実質赤字比率に係る赤字・黒字の構成分析!I$42,\"▲\", \"-\")), 2)), NA())","v":{"$error":"#VALUE!"}},{"$f":"IF(ROUND(VALUE(SUBSTITUTE(連結実質赤字比率に係る赤字・黒字の構成分析!I$42,\"▲\", \"-\")), 2) >= 0, ABS(ROUND(VALUE(SUBSTITUTE(連結実質赤字比率に係る赤字・黒字の構成分析!I$42,\"▲\", \"-\")), 2)), NA())","v":{"$error":"#VALUE!"}},{"$f":"IF(ROUND(VALUE(SUBSTITUTE(連結実質赤字比率に係る赤字・黒字の構成分析!J$42,\"▲\", \"-\")), 2) < 0, ABS(ROUND(VALUE(SUBSTITUTE(連結実質赤字比率に係る赤字・黒字の構成分析!J$42,\"▲\", \"-\")), 2)), NA())","v":{"$error":"#VALUE!"}},{"$f":"IF(ROUND(VALUE(SUBSTITUTE(連結実質赤字比率に係る赤字・黒字の構成分析!J$42,\"▲\", \"-\")), 2) >= 0, ABS(ROUND(VALUE(SUBSTITUTE(連結実質赤字比率に係る赤字・黒字の構成分析!J$42,\"▲\", \"-\")), 2)), NA())","v":{"$error":"#VALUE!"}}]
[{"$f":"IF(連結実質赤字比率に係る赤字・黒字の構成分析!C$41=\"\",NA(),連結実質赤字比率に係る赤字・黒字の構成分析!C$41)","v":{"$error":"#N/A"}},{"$f":"IF(ROUND(VALUE(SUBSTITUTE(連結実質赤字比率に係る赤字・黒字の構成分析!F$41,\"▲\", \"-\")), 2) < 0, ABS(ROUND(VALUE(SUBSTITUTE(連結実質赤字比率に係る赤字・黒字の構成分析!F$41,\"▲\", \"-\")), 2)), NA())","v":{"$error":"#VALUE!"}},{"$f":"IF(ROUND(VALUE(SUBSTITUTE(連結実質赤字比率に係る赤字・黒字の構成分析!F$41,\"▲\", \"-\")), 2) >= 0, ABS(ROUND(VALUE(SUBSTITUTE(連結実質赤字比率に係る赤字・黒字の構成分析!F$41,\"▲\", \"-\")), 2)), NA())","v":{"$error":"#VALUE!"}},{"$f":"IF(ROUND(VALUE(SUBSTITUTE(連結実質赤字比率に係る赤字・黒字の構成分析!G$41,\"▲\", \"-\")), 2) < 0, ABS(ROUND(VALUE(SUBSTITUTE(連結実質赤字比率に係る赤字・黒字の構成分析!G$41,\"▲\", \"-\")), 2)), NA())","v":{"$error":"#VALUE!"}},{"$f":"IF(ROUND(VALUE(SUBSTITUTE(連結実質赤字比率に係る赤字・黒字の構成分析!G$41,\"▲\", \"-\")), 2) >= 0, ABS(ROUND(VALUE(SUBSTITUTE(連結実質赤字比率に係る赤字・黒字の構成分析!G$41,\"▲\", \"-\")), 2)), NA())","v":{"$error":"#VALUE!"}},{"$f":"IF(ROUND(VALUE(SUBSTITUTE(連結実質赤字比率に係る赤字・黒字の構成分析!H$41,\"▲\", \"-\")), 2) < 0, ABS(ROUND(VALUE(SUBSTITUTE(連結実質赤字比率に係る赤字・黒字の構成分析!H$41,\"▲\", \"-\")), 2)), NA())","v":{"$error":"#VALUE!"}},{"$f":"IF(ROUND(VALUE(SUBSTITUTE(連結実質赤字比率に係る赤字・黒字の構成分析!H$41,\"▲\", \"-\")), 2) >= 0, ABS(ROUND(VALUE(SUBSTITUTE(連結実質赤字比率に係る赤字・黒字の構成分析!H$41,\"▲\", \"-\")), 2)), NA())","v":{"$error":"#VALUE!"}},{"$f":"IF(ROUND(VALUE(SUBSTITUTE(連結実質赤字比率に係る赤字・黒字の構成分析!I$41,\"▲\", \"-\")), 2) < 0, ABS(ROUND(VALUE(SUBSTITUTE(連結実質赤字比率に係る赤字・黒字の構成分析!I$41,\"▲\", \"-\")), 2)), NA())","v":{"$error":"#VALUE!"}},{"$f":"IF(ROUND(VALUE(SUBSTITUTE(連結実質赤字比率に係る赤字・黒字の構成分析!I$41,\"▲\", \"-\")), 2) >= 0, ABS(ROUND(VALUE(SUBSTITUTE(連結実質赤字比率に係る赤字・黒字の構成分析!I$41,\"▲\", \"-\")), 2)), NA())","v":{"$error":"#VALUE!"}},{"$f":"IF(ROUND(VALUE(SUBSTITUTE(連結実質赤字比率に係る赤字・黒字の構成分析!J$41,\"▲\", \"-\")), 2) < 0, ABS(ROUND(VALUE(SUBSTITUTE(連結実質赤字比率に係る赤字・黒字の構成分析!J$41,\"▲\", \"-\")), 2)), NA())","v":{"$error":"#VALUE!"}},{"$f":"IF(ROUND(VALUE(SUBSTITUTE(連結実質赤字比率に係る赤字・黒字の構成分析!J$41,\"▲\", \"-\")), 2) >= 0, ABS(ROUND(VALUE(SUBSTITUTE(連結実質赤字比率に係る赤字・黒字の構成分析!J$41,\"▲\", \"-\")), 2)), NA())","v":{"$error":"#VALUE!"}}]
[{"$f":"IF(連結実質赤字比率に係る赤字・黒字の構成分析!C$40=\"\",NA(),連結実質赤字比率に係る赤字・黒字の構成分析!C$40)","v":{"$error":"#N/A"}},{"$f":"IF(ROUND(VALUE(SUBSTITUTE(連結実質赤字比率に係る赤字・黒字の構成分析!F$40,\"▲\", \"-\")), 2) < 0, ABS(ROUND(VALUE(SUBSTITUTE(連結実質赤字比率に係る赤字・黒字の構成分析!F$40,\"▲\", \"-\")), 2)), NA())","v":{"$error":"#VALUE!"}},{"$f":"IF(ROUND(VALUE(SUBSTITUTE(連結実質赤字比率に係る赤字・黒字の構成分析!F$40,\"▲\", \"-\")), 2) >= 0, ABS(ROUND(VALUE(SUBSTITUTE(連結実質赤字比率に係る赤字・黒字の構成分析!F$40,\"▲\", \"-\")), 2)), NA())","v":{"$error":"#VALUE!"}},{"$f":"IF(ROUND(VALUE(SUBSTITUTE(連結実質赤字比率に係る赤字・黒字の構成分析!G$40,\"▲\", \"-\")), 2) < 0, ABS(ROUND(VALUE(SUBSTITUTE(連結実質赤字比率に係る赤字・黒字の構成分析!G$40,\"▲\", \"-\")), 2)), NA())","v":{"$error":"#VALUE!"}},{"$f":"IF(ROUND(VALUE(SUBSTITUTE(連結実質赤字比率に係る赤字・黒字の構成分析!G$40,\"▲\", \"-\")), 2) >= 0, ABS(ROUND(VALUE(SUBSTITUTE(連結実質赤字比率に係る赤字・黒字の構成分析!G$40,\"▲\", \"-\")), 2)), NA())","v":{"$error":"#VALUE!"}},{"$f":"IF(ROUND(VALUE(SUBSTITUTE(連結実質赤字比率に係る赤字・黒字の構成分析!H$40,\"▲\", \"-\")), 2) < 0, ABS(ROUND(VALUE(SUBSTITUTE(連結実質赤字比率に係る赤字・黒字の構成分析!H$40,\"▲\", \"-\")), 2)), NA())","v":{"$error":"#VALUE!"}},{"$f":"IF(ROUND(VALUE(SUBSTITUTE(連結実質赤字比率に係る赤字・黒字の構成分析!H$40,\"▲\", \"-\")), 2) >= 0, ABS(ROUND(VALUE(SUBSTITUTE(連結実質赤字比率に係る赤字・黒字の構成分析!H$40,\"▲\", \"-\")), 2)), NA())","v":{"$error":"#VALUE!"}},{"$f":"IF(ROUND(VALUE(SUBSTITUTE(連結実質赤字比率に係る赤字・黒字の構成分析!I$40,\"▲\", \"-\")), 2) < 0, ABS(ROUND(VALUE(SUBSTITUTE(連結実質赤字比率に係る赤字・黒字の構成分析!I$40,\"▲\", \"-\")), 2)), NA())","v":{"$error":"#VALUE!"}},{"$f":"IF(ROUND(VALUE(SUBSTITUTE(連結実質赤字比率に係る赤字・黒字の構成分析!I$40,\"▲\", \"-\")), 2) >= 0, ABS(ROUND(VALUE(SUBSTITUTE(連結実質赤字比率に係る赤字・黒字の構成分析!I$40,\"▲\", \"-\")), 2)), NA())","v":{"$error":"#VALUE!"}},{"$f":"IF(ROUND(VALUE(SUBSTITUTE(連結実質赤字比率に係る赤字・黒字の構成分析!J$40,\"▲\", \"-\")), 2) < 0, ABS(ROUND(VALUE(SUBSTITUTE(連結実質赤字比率に係る赤字・黒字の構成分析!J$40,\"▲\", \"-\")), 2)), NA())","v":{"$error":"#VALUE!"}},{"$f":"IF(ROUND(VALUE(SUBSTITUTE(連結実質赤字比率に係る赤字・黒字の構成分析!J$40,\"▲\", \"-\")), 2) >= 0, ABS(ROUND(VALUE(SUBSTITUTE(連結実質赤字比率に係る赤字・黒字の構成分析!J$40,\"▲\", \"-\")), 2)), NA())","v":{"$error":"#VALUE!"}}]
[{"$f":"IF(連結実質赤字比率に係る赤字・黒字の構成分析!C$39=\"\",NA(),連結実質赤字比率に係る赤字・黒字の構成分析!C$39)","v":"後期高齢者医療特別会計"},{"$f":"IF(ROUND(VALUE(SUBSTITUTE(連結実質赤字比率に係る赤字・黒字の構成分析!F$39,\"▲\", \"-\")), 2) < 0, ABS(ROUND(VALUE(SUBSTITUTE(連結実質赤字比率に係る赤字・黒字の構成分析!F$39,\"▲\", \"-\")), 2)), NA())","v":{"$error":"#N/A"}},{"$f":"IF(ROUND(VALUE(SUBSTITUTE(連結実質赤字比率に係る赤字・黒字の構成分析!F$39,\"▲\", \"-\")), 2) >= 0, ABS(ROUND(VALUE(SUBSTITUTE(連結実質赤字比率に係る赤字・黒字の構成分析!F$39,\"▲\", \"-\")), 2)), NA())","v":0.05},{"$f":"IF(ROUND(VALUE(SUBSTITUTE(連結実質赤字比率に係る赤字・黒字の構成分析!G$39,\"▲\", \"-\")), 2) < 0, ABS(ROUND(VALUE(SUBSTITUTE(連結実質赤字比率に係る赤字・黒字の構成分析!G$39,\"▲\", \"-\")), 2)), NA())","v":{"$error":"#N/A"}},{"$f":"IF(ROUND(VALUE(SUBSTITUTE(連結実質赤字比率に係る赤字・黒字の構成分析!G$39,\"▲\", \"-\")), 2) >= 0, ABS(ROUND(VALUE(SUBSTITUTE(連結実質赤字比率に係る赤字・黒字の構成分析!G$39,\"▲\", \"-\")), 2)), NA())","v":0.05},{"$f":"IF(ROUND(VALUE(SUBSTITUTE(連結実質赤字比率に係る赤字・黒字の構成分析!H$39,\"▲\", \"-\")), 2) < 0, ABS(ROUND(VALUE(SUBSTITUTE(連結実質赤字比率に係る赤字・黒字の構成分析!H$39,\"▲\", \"-\")), 2)), NA())","v":{"$error":"#N/A"}},{"$f":"IF(ROUND(VALUE(SUBSTITUTE(連結実質赤字比率に係る赤字・黒字の構成分析!H$39,\"▲\", \"-\")), 2) >= 0, ABS(ROUND(VALUE(SUBSTITUTE(連結実質赤字比率に係る赤字・黒字の構成分析!H$39,\"▲\", \"-\")), 2)), NA())","v":0.05},{"$f":"IF(ROUND(VALUE(SUBSTITUTE(連結実質赤字比率に係る赤字・黒字の構成分析!I$39,\"▲\", \"-\")), 2) < 0, ABS(ROUND(VALUE(SUBSTITUTE(連結実質赤字比率に係る赤字・黒字の構成分析!I$39,\"▲\", \"-\")), 2)), NA())","v":{"$error":"#N/A"}},{"$f":"IF(ROUND(VALUE(SUBSTITUTE(連結実質赤字比率に係る赤字・黒字の構成分析!I$39,\"▲\", \"-\")), 2) >= 0, ABS(ROUND(VALUE(SUBSTITUTE(連結実質赤字比率に係る赤字・黒字の構成分析!I$39,\"▲\", \"-\")), 2)), NA())","v":0.05},{"$f":"IF(ROUND(VALUE(SUBSTITUTE(連結実質赤字比率に係る赤字・黒字の構成分析!J$39,\"▲\", \"-\")), 2) < 0, ABS(ROUND(VALUE(SUBSTITUTE(連結実質赤字比率に係る赤字・黒字の構成分析!J$39,\"▲\", \"-\")), 2)), NA())","v":{"$error":"#N/A"}},{"$f":"IF(ROUND(VALUE(SUBSTITUTE(連結実質赤字比率に係る赤字・黒字の構成分析!J$39,\"▲\", \"-\")), 2) >= 0, ABS(ROUND(VALUE(SUBSTITUTE(連結実質赤字比率に係る赤字・黒字の構成分析!J$39,\"▲\", \"-\")), 2)), NA())","v":0.08}]
[{"$f":"IF(連結実質赤字比率に係る赤字・黒字の構成分析!C$38=\"\",NA(),連結実質赤字比率に係る赤字・黒字の構成分析!C$38)","v":"国民健康保険特別会計"},{"$f":"IF(ROUND(VALUE(SUBSTITUTE(連結実質赤字比率に係る赤字・黒字の構成分析!F$38,\"▲\", \"-\")), 2) < 0, ABS(ROUND(VALUE(SUBSTITUTE(連結実質赤字比率に係る赤字・黒字の構成分析!F$38,\"▲\", \"-\")), 2)), NA())","v":{"$error":"#N/A"}},{"$f":"IF(ROUND(VALUE(SUBSTITUTE(連結実質赤字比率に係る赤字・黒字の構成分析!F$38,\"▲\", \"-\")), 2) >= 0, ABS(ROUND(VALUE(SUBSTITUTE(連結実質赤字比率に係る赤字・黒字の構成分析!F$38,\"▲\", \"-\")), 2)), NA())","v":0.47},{"$f":"IF(ROUND(VALUE(SUBSTITUTE(連結実質赤字比率に係る赤字・黒字の構成分析!G$38,\"▲\", \"-\")), 2) < 0, ABS(ROUND(VALUE(SUBSTITUTE(連結実質赤字比率に係る赤字・黒字の構成分析!G$38,\"▲\", \"-\")), 2)), NA())","v":{"$error":"#N/A"}},{"$f":"IF(ROUND(VALUE(SUBSTITUTE(連結実質赤字比率に係る赤字・黒字の構成分析!G$38,\"▲\", \"-\")), 2) >= 0, ABS(ROUND(VALUE(SUBSTITUTE(連結実質赤字比率に係る赤字・黒字の構成分析!G$38,\"▲\", \"-\")), 2)), NA())","v":0.46},{"$f":"IF(ROUND(VALUE(SUBSTITUTE(連結実質赤字比率に係る赤字・黒字の構成分析!H$38,\"▲\", \"-\")), 2) < 0, ABS(ROUND(VALUE(SUBSTITUTE(連結実質赤字比率に係る赤字・黒字の構成分析!H$38,\"▲\", \"-\")), 2)), NA())","v":{"$error":"#N/A"}},{"$f":"IF(ROUND(VALUE(SUBSTITUTE(連結実質赤字比率に係る赤字・黒字の構成分析!H$38,\"▲\", \"-\")), 2) >= 0, ABS(ROUND(VALUE(SUBSTITUTE(連結実質赤字比率に係る赤字・黒字の構成分析!H$38,\"▲\", \"-\")), 2)), NA())","v":0.19},{"$f":"IF(ROUND(VALUE(SUBSTITUTE(連結実質赤字比率に係る赤字・黒字の構成分析!I$38,\"▲\", \"-\")), 2) < 0, ABS(ROUND(VALUE(SUBSTITUTE(連結実質赤字比率に係る赤字・黒字の構成分析!I$38,\"▲\", \"-\")), 2)), NA())","v":{"$error":"#N/A"}},{"$f":"IF(ROUND(VALUE(SUBSTITUTE(連結実質赤字比率に係る赤字・黒字の構成分析!I$38,\"▲\", \"-\")), 2) >= 0, ABS(ROUND(VALUE(SUBSTITUTE(連結実質赤字比率に係る赤字・黒字の構成分析!I$38,\"▲\", \"-\")), 2)), NA())","v":0.36},{"$f":"IF(ROUND(VALUE(SUBSTITUTE(連結実質赤字比率に係る赤字・黒字の構成分析!J$38,\"▲\", \"-\")), 2) < 0, ABS(ROUND(VALUE(SUBSTITUTE(連結実質赤字比率に係る赤字・黒字の構成分析!J$38,\"▲\", \"-\")), 2)), NA())","v":{"$error":"#N/A"}},{"$f":"IF(ROUND(VALUE(SUBSTITUTE(連結実質赤字比率に係る赤字・黒字の構成分析!J$38,\"▲\", \"-\")), 2) >= 0, ABS(ROUND(VALUE(SUBSTITUTE(連結実質赤字比率に係る赤字・黒字の構成分析!J$38,\"▲\", \"-\")), 2)), NA())","v":0.38}]
[{"$f":"IF(連結実質赤字比率に係る赤字・黒字の構成分析!C$37=\"\",NA(),連結実質赤字比率に係る赤字・黒字の構成分析!C$37)","v":"介護保険特別会計"},{"$f":"IF(ROUND(VALUE(SUBSTITUTE(連結実質赤字比率に係る赤字・黒字の構成分析!F$37,\"▲\", \"-\")), 2) < 0, ABS(ROUND(VALUE(SUBSTITUTE(連結実質赤字比率に係る赤字・黒字の構成分析!F$37,\"▲\", \"-\")), 2)), NA())","v":{"$error":"#N/A"}},{"$f":"IF(ROUND(VALUE(SUBSTITUTE(連結実質赤字比率に係る赤字・黒字の構成分析!F$37,\"▲\", \"-\")), 2) >= 0, ABS(ROUND(VALUE(SUBSTITUTE(連結実質赤字比率に係る赤字・黒字の構成分析!F$37,\"▲\", \"-\")), 2)), NA())","v":1.01},{"$f":"IF(ROUND(VALUE(SUBSTITUTE(連結実質赤字比率に係る赤字・黒字の構成分析!G$37,\"▲\", \"-\")), 2) < 0, ABS(ROUND(VALUE(SUBSTITUTE(連結実質赤字比率に係る赤字・黒字の構成分析!G$37,\"▲\", \"-\")), 2)), NA())","v":{"$error":"#N/A"}},{"$f":"IF(ROUND(VALUE(SUBSTITUTE(連結実質赤字比率に係る赤字・黒字の構成分析!G$37,\"▲\", \"-\")), 2) >= 0, ABS(ROUND(VALUE(SUBSTITUTE(連結実質赤字比率に係る赤字・黒字の構成分析!G$37,\"▲\", \"-\")), 2)), NA())","v":1.37},{"$f":"IF(ROUND(VALUE(SUBSTITUTE(連結実質赤字比率に係る赤字・黒字の構成分析!H$37,\"▲\", \"-\")), 2) < 0, ABS(ROUND(VALUE(SUBSTITUTE(連結実質赤字比率に係る赤字・黒字の構成分析!H$37,\"▲\", \"-\")), 2)), NA())","v":{"$error":"#N/A"}},{"$f":"IF(ROUND(VALUE(SUBSTITUTE(連結実質赤字比率に係る赤字・黒字の構成分析!H$37,\"▲\", \"-\")), 2) >= 0, ABS(ROUND(VALUE(SUBSTITUTE(連結実質赤字比率に係る赤字・黒字の構成分析!H$37,\"▲\", \"-\")), 2)), NA())","v":1.1200000000000001},{"$f":"IF(ROUND(VALUE(SUBSTITUTE(連結実質赤字比率に係る赤字・黒字の構成分析!I$37,\"▲\", \"-\")), 2) < 0, ABS(ROUND(VALUE(SUBSTITUTE(連結実質赤字比率に係る赤字・黒字の構成分析!I$37,\"▲\", \"-\")), 2)), NA())","v":{"$error":"#N/A"}},{"$f":"IF(ROUND(VALUE(SUBSTITUTE(連結実質赤字比率に係る赤字・黒字の構成分析!I$37,\"▲\", \"-\")), 2) >= 0, ABS(ROUND(VALUE(SUBSTITUTE(連結実質赤字比率に係る赤字・黒字の構成分析!I$37,\"▲\", \"-\")), 2)), NA())","v":0.94},{"$f":"IF(ROUND(VALUE(SUBSTITUTE(連結実質赤字比率に係る赤字・黒字の構成分析!J$37,\"▲\", \"-\")), 2) < 0, ABS(ROUND(VALUE(SUBSTITUTE(連結実質赤字比率に係る赤字・黒字の構成分析!J$37,\"▲\", \"-\")), 2)), NA())","v":{"$error":"#N/A"}},{"$f":"IF(ROUND(VALUE(SUBSTITUTE(連結実質赤字比率に係る赤字・黒字の構成分析!J$37,\"▲\", \"-\")), 2) >= 0, ABS(ROUND(VALUE(SUBSTITUTE(連結実質赤字比率に係る赤字・黒字の構成分析!J$37,\"▲\", \"-\")), 2)), NA())","v":1.26}]
[{"$f":"IF(連結実質赤字比率に係る赤字・黒字の構成分析!C$36=\"\",NA(),連結実質赤字比率に係る赤字・黒字の構成分析!C$36)","v":"下水道事業会計"},{"$f":"IF(ROUND(VALUE(SUBSTITUTE(連結実質赤字比率に係る赤字・黒字の構成分析!F$36,\"▲\", \"-\")), 2) < 0, ABS(ROUND(VALUE(SUBSTITUTE(連結実質赤字比率に係る赤字・黒字の構成分析!F$36,\"▲\", \"-\")), 2)), NA())","v":{"$error":"#N/A"}},{"$f":"IF(ROUND(VALUE(SUBSTITUTE(連結実質赤字比率に係る赤字・黒字の構成分析!F$36,\"▲\", \"-\")), 2) >= 0, ABS(ROUND(VALUE(SUBSTITUTE(連結実質赤字比率に係る赤字・黒字の構成分析!F$36,\"▲\", \"-\")), 2)), NA())","v":0.54},{"$f":"IF(ROUND(VALUE(SUBSTITUTE(連結実質赤字比率に係る赤字・黒字の構成分析!G$36,\"▲\", \"-\")), 2) < 0, ABS(ROUND(VALUE(SUBSTITUTE(連結実質赤字比率に係る赤字・黒字の構成分析!G$36,\"▲\", \"-\")), 2)), NA())","v":{"$error":"#N/A"}},{"$f":"IF(ROUND(VALUE(SUBSTITUTE(連結実質赤字比率に係る赤字・黒字の構成分析!G$36,\"▲\", \"-\")), 2) >= 0, ABS(ROUND(VALUE(SUBSTITUTE(連結実質赤字比率に係る赤字・黒字の構成分析!G$36,\"▲\", \"-\")), 2)), NA())","v":0.56999999999999995},{"$f":"IF(ROUND(VALUE(SUBSTITUTE(連結実質赤字比率に係る赤字・黒字の構成分析!H$36,\"▲\", \"-\")), 2) < 0, ABS(ROUND(VALUE(SUBSTITUTE(連結実質赤字比率に係る赤字・黒字の構成分析!H$36,\"▲\", \"-\")), 2)), NA())","v":{"$error":"#N/A"}},{"$f":"IF(ROUND(VALUE(SUBSTITUTE(連結実質赤字比率に係る赤字・黒字の構成分析!H$36,\"▲\", \"-\")), 2) >= 0, ABS(ROUND(VALUE(SUBSTITUTE(連結実質赤字比率に係る赤字・黒字の構成分析!H$36,\"▲\", \"-\")), 2)), NA())","v":0.31},{"$f":"IF(ROUND(VALUE(SUBSTITUTE(連結実質赤字比率に係る赤字・黒字の構成分析!I$36,\"▲\", \"-\")), 2) < 0, ABS(ROUND(VALUE(SUBSTITUTE(連結実質赤字比率に係る赤字・黒字の構成分析!I$36,\"▲\", \"-\")), 2)), NA())","v":0.08},{"$f":"IF(ROUND(VALUE(SUBSTITUTE(連結実質赤字比率に係る赤字・黒字の構成分析!I$36,\"▲\", \"-\")), 2) >= 0, ABS(ROUND(VALUE(SUBSTITUTE(連結実質赤字比率に係る赤字・黒字の構成分析!I$36,\"▲\", \"-\")), 2)), NA())","v":{"$error":"#N/A"}},{"$f":"IF(ROUND(VALUE(SUBSTITUTE(連結実質赤字比率に係る赤字・黒字の構成分析!J$36,\"▲\", \"-\")), 2) < 0, ABS(ROUND(VALUE(SUBSTITUTE(連結実質赤字比率に係る赤字・黒字の構成分析!J$36,\"▲\", \"-\")), 2)), NA())","v":{"$error":"#N/A"}},{"$f":"IF(ROUND(VALUE(SUBSTITUTE(連結実質赤字比率に係る赤字・黒字の構成分析!J$36,\"▲\", \"-\")), 2) >= 0, ABS(ROUND(VALUE(SUBSTITUTE(連結実質赤字比率に係る赤字・黒字の構成分析!J$36,\"▲\", \"-\")), 2)), NA())","v":5.94}]
[{"$f":"IF(連結実質赤字比率に係る赤字・黒字の構成分析!C$35=\"\",NA(),連結実質赤字比率に係る赤字・黒字の構成分析!C$35)","v":"水道事業会計"},{"$f":"IF(ROUND(VALUE(SUBSTITUTE(連結実質赤字比率に係る赤字・黒字の構成分析!F$35,\"▲\", \"-\")), 2) < 0, ABS(ROUND(VALUE(SUBSTITUTE(連結実質赤字比率に係る赤字・黒字の構成分析!F$35,\"▲\", \"-\")), 2)), NA())","v":{"$error":"#N/A"}},{"$f":"IF(ROUND(VALUE(SUBSTITUTE(連結実質赤字比率に係る赤字・黒字の構成分析!F$35,\"▲\", \"-\")), 2) >= 0, ABS(ROUND(VALUE(SUBSTITUTE(連結実質赤字比率に係る赤字・黒字の構成分析!F$35,\"▲\", \"-\")), 2)), NA())","v":8.1199999999999992},{"$f":"IF(ROUND(VALUE(SUBSTITUTE(連結実質赤字比率に係る赤字・黒字の構成分析!G$35,\"▲\", \"-\")), 2) < 0, ABS(ROUND(VALUE(SUBSTITUTE(連結実質赤字比率に係る赤字・黒字の構成分析!G$35,\"▲\", \"-\")), 2)), NA())","v":{"$error":"#N/A"}},{"$f":"IF(ROUND(VALUE(SUBSTITUTE(連結実質赤字比率に係る赤字・黒字の構成分析!G$35,\"▲\", \"-\")), 2) >= 0, ABS(ROUND(VALUE(SUBSTITUTE(連結実質赤字比率に係る赤字・黒字の構成分析!G$35,\"▲\", \"-\")), 2)), NA())","v":8.17},{"$f":"IF(ROUND(VALUE(SUBSTITUTE(連結実質赤字比率に係る赤字・黒字の構成分析!H$35,\"▲\", \"-\")), 2) < 0, ABS(ROUND(VALUE(SUBSTITUTE(連結実質赤字比率に係る赤字・黒字の構成分析!H$35,\"▲\", \"-\")), 2)), NA())","v":{"$error":"#N/A"}},{"$f":"IF(ROUND(VALUE(SUBSTITUTE(連結実質赤字比率に係る赤字・黒字の構成分析!H$35,\"▲\", \"-\")), 2) >= 0, ABS(ROUND(VALUE(SUBSTITUTE(連結実質赤字比率に係る赤字・黒字の構成分析!H$35,\"▲\", \"-\")), 2)), NA())","v":7.98},{"$f":"IF(ROUND(VALUE(SUBSTITUTE(連結実質赤字比率に係る赤字・黒字の構成分析!I$35,\"▲\", \"-\")), 2) < 0, ABS(ROUND(VALUE(SUBSTITUTE(連結実質赤字比率に係る赤字・黒字の構成分析!I$35,\"▲\", \"-\")), 2)), NA())","v":{"$error":"#N/A"}},{"$f":"IF(ROUND(VALUE(SUBSTITUTE(連結実質赤字比率に係る赤字・黒字の構成分析!I$35,\"▲\", \"-\")), 2) >= 0, ABS(ROUND(VALUE(SUBSTITUTE(連結実質赤字比率に係る赤字・黒字の構成分析!I$35,\"▲\", \"-\")), 2)), NA())","v":8.74},{"$f":"IF(ROUND(VALUE(SUBSTITUTE(連結実質赤字比率に係る赤字・黒字の構成分析!J$35,\"▲\", \"-\")), 2) < 0, ABS(ROUND(VALUE(SUBSTITUTE(連結実質赤字比率に係る赤字・黒字の構成分析!J$35,\"▲\", \"-\")), 2)), NA())","v":{"$error":"#N/A"}},{"$f":"IF(ROUND(VALUE(SUBSTITUTE(連結実質赤字比率に係る赤字・黒字の構成分析!J$35,\"▲\", \"-\")), 2) >= 0, ABS(ROUND(VALUE(SUBSTITUTE(連結実質赤字比率に係る赤字・黒字の構成分析!J$35,\"▲\", \"-\")), 2)), NA())","v":8.14}]
[{"$f":"IF(連結実質赤字比率に係る赤字・黒字の構成分析!C$34=\"\",NA(),連結実質赤字比率に係る赤字・黒字の構成分析!C$34)","v":"一般会計"},{"$f":"IF(ROUND(VALUE(SUBSTITUTE(連結実質赤字比率に係る赤字・黒字の構成分析!F$34,\"▲\", \"-\")), 2) < 0, ABS(ROUND(VALUE(SUBSTITUTE(連結実質赤字比率に係る赤字・黒字の構成分析!F$34,\"▲\", \"-\")), 2)), NA())","v":{"$error":"#N/A"}},{"$f":"IF(ROUND(VALUE(SUBSTITUTE(連結実質赤字比率に係る赤字・黒字の構成分析!F$34,\"▲\", \"-\")), 2) >= 0, ABS(ROUND(VALUE(SUBSTITUTE(連結実質赤字比率に係る赤字・黒字の構成分析!F$34,\"▲\", \"-\")), 2)), NA())","v":9.5399999999999991},{"$f":"IF(ROUND(VALUE(SUBSTITUTE(連結実質赤字比率に係る赤字・黒字の構成分析!G$34,\"▲\", \"-\")), 2) < 0, ABS(ROUND(VALUE(SUBSTITUTE(連結実質赤字比率に係る赤字・黒字の構成分析!G$34,\"▲\", \"-\")), 2)), NA())","v":{"$error":"#N/A"}},{"$f":"IF(ROUND(VALUE(SUBSTITUTE(連結実質赤字比率に係る赤字・黒字の構成分析!G$34,\"▲\", \"-\")), 2) >= 0, ABS(ROUND(VALUE(SUBSTITUTE(連結実質赤字比率に係る赤字・黒字の構成分析!G$34,\"▲\", \"-\")), 2)), NA())","v":9.7200000000000006},{"$f":"IF(ROUND(VALUE(SUBSTITUTE(連結実質赤字比率に係る赤字・黒字の構成分析!H$34,\"▲\", \"-\")), 2) < 0, ABS(ROUND(VALUE(SUBSTITUTE(連結実質赤字比率に係る赤字・黒字の構成分析!H$34,\"▲\", \"-\")), 2)), NA())","v":{"$error":"#N/A"}},{"$f":"IF(ROUND(VALUE(SUBSTITUTE(連結実質赤字比率に係る赤字・黒字の構成分析!H$34,\"▲\", \"-\")), 2) >= 0, ABS(ROUND(VALUE(SUBSTITUTE(連結実質赤字比率に係る赤字・黒字の構成分析!H$34,\"▲\", \"-\")), 2)), NA())","v":9.8800000000000008},{"$f":"IF(ROUND(VALUE(SUBSTITUTE(連結実質赤字比率に係る赤字・黒字の構成分析!I$34,\"▲\", \"-\")), 2) < 0, ABS(ROUND(VALUE(SUBSTITUTE(連結実質赤字比率に係る赤字・黒字の構成分析!I$34,\"▲\", \"-\")), 2)), NA())","v":{"$error":"#N/A"}},{"$f":"IF(ROUND(VALUE(SUBSTITUTE(連結実質赤字比率に係る赤字・黒字の構成分析!I$34,\"▲\", \"-\")), 2) >= 0, ABS(ROUND(VALUE(SUBSTITUTE(連結実質赤字比率に係る赤字・黒字の構成分析!I$34,\"▲\", \"-\")), 2)), NA())","v":8.65},{"$f":"IF(ROUND(VALUE(SUBSTITUTE(連結実質赤字比率に係る赤字・黒字の構成分析!J$34,\"▲\", \"-\")), 2) < 0, ABS(ROUND(VALUE(SUBSTITUTE(連結実質赤字比率に係る赤字・黒字の構成分析!J$34,\"▲\", \"-\")), 2)), NA())","v":{"$error":"#N/A"}},{"$f":"IF(ROUND(VALUE(SUBSTITUTE(連結実質赤字比率に係る赤字・黒字の構成分析!J$34,\"▲\", \"-\")), 2) >= 0, ABS(ROUND(VALUE(SUBSTITUTE(連結実質赤字比率に係る赤字・黒字の構成分析!J$34,\"▲\", \"-\")), 2)), NA())","v":13.08}]
[]
[]
["実質公債費比率（分子）の構造"]
[null,{"$f":"'実質公債費比率（分子）の構造'!K$44","v":"H28"},null,null,{"$f":"'実質公債費比率（分子）の構造'!L$44","v":"H29"},null,null,{"$f":"'実質公債費比率（分子）の構造'!M$44","v":"H30"},null,null,{"$f":"'実質公債費比率（分子）の構造'!N$44","v":"R01"},null,null,{"$f":"'実質公債費比率（分子）の構造'!O$44","v":"R02"}]
[null,"元利償還金等",null,"算入公債費等","元利償還金等",null,"算入公債費等","元利償還金等",null,"算入公債費等","元利償還金等",null,"算入公債費等","元利償還金等",null,"算入公債費等"]
["算入公債費等",null,null,{"$f":"'実質公債費比率（分子）の構造'!K$52","v":3138},null,null,{"$f":"'実質公債費比率（分子）の構造'!L$52","v":3157},null,null,{"$f":"'実質公債費比率（分子）の構造'!M$52","v":3002},null,null,{"$f":"'実質公債費比率（分子）の構造'!N$52","v":2946},null,null,{"$f":"'実質公債費比率（分子）の構造'!O$52","v":2801}]
["一時借入金の利子",{"$f":"'実質公債費比率（分子）の構造'!K$51","v":"-"},null,null,{"$f":"'実質公債費比率（分子）の構造'!L$51","v":"-"},null,null,{"$f":"'実質公債費比率（分子）の構造'!M$51","v":"-"},null,null,{"$f":"'実質公債費比率（分子）の構造'!N$51","v":"-"},null,null,{"$f":"'実質公債費比率（分子）の構造'!O$51","v":"-"}]
["債務負担行為に基づく支出額",{"$f":"'実質公債費比率（分子）の構造'!K$50","v":895},null,null,{"$f":"'実質公債費比率（分子）の構造'!L$50","v":867},null,null,{"$f":"'実質公債費比率（分子）の構造'!M$50","v":865},null,null,{"$f":"'実質公債費比率（分子）の構造'!N$50","v":830},null,null,{"$f":"'実質公債費比率（分子）の構造'!O$50","v":770}]
["組合等が起こした地方債の元利償還金に対する負担金等",{"$f":"'実質公債費比率（分子）の構造'!K$49","v":269},null,null,{"$f":"'実質公債費比率（分子）の構造'!L$49","v":233},null,null,{"$f":"'実質公債費比率（分子）の構造'!M$49","v":223},null,null,{"$f":"'実質公債費比率（分子）の構造'!N$49","v":256},null,null,{"$f":"'実質公債費比率（分子）の構造'!O$49","v":300}]
["公営企業債の元利償還金に対する繰入金",{"$f":"'実質公債費比率（分子）の構造'!K$48","v":201},null,null,{"$f":"'実質公債費比率（分子）の構造'!L$48","v":194},null,null,{"$f":"'実質公債費比率（分子）の構造'!M$48","v":173},null,null,{"$f":"'実質公債費比率（分子）の構造'!N$48","v":161},null,null,{"$f":"'実質公債費比率（分子）の構造'!O$48","v":56}]
["満期一括償還地方債に係る年度割相当額",{"$f":"'実質公債費比率（分子）の構造'!K$47","v":"-"},null,null,{"$f":"'実質公債費比率（分子）の構造'!L$47","v":"-"},null,null,{"$f":"'実質公債費比率（分子）の構造'!M$47","v":"-"},null,null,{"$f":"'実質公債費比率（分子）の構造'!N$47","v":"-"},null,null,{"$f":"'実質公債費比率（分子）の構造'!O$47","v":"-"}]
["減債基金積立不足算定額",{"$f":"'実質公債費比率（分子）の構造'!K$46","v":"-"},null,null,{"$f":"'実質公債費比率（分子）の構造'!L$46","v":"-"},null,null,{"$f":"'実質公債費比率（分子）の構造'!M$46","v":"-"},null,null,{"$f":"'実質公債費比率（分子）の構造'!N$46","v":"-"},null,null,{"$f":"'実質公債費比率（分子）の構造'!O$46","v":"-"}]
["元利償還金",{"$f":"'実質公債費比率（分子）の構造'!K$45","v":2390},null,null,{"$f":"'実質公債費比率（分子）の構造'!L$45","v":2134},null,null,{"$f":"'実質公債費比率（分子）の構造'!M$45","v":1928},null,null,{"$f":"'実質公債費比率（分子）の構造'!N$45","v":1707},null,null,{"$f":"'実質公債費比率（分子）の構造'!O$45","v":1595}]
["実質公債費比率の分子",{"$f":"NA()","v":{"$error":"#N/A"}},{"$f":"IF(ISNUMBER('実質公債費比率（分子）の構造'!K$53),'実質公債費比率（分子）の構造'!K$53,NA())","v":617},{"$f":"NA()","v":{"$error":"#N/A"}},{"$f":"NA()","v":{"$error":"#N/A"}},{"$f":"IF(ISNUMBER('実質公債費比率（分子）の構造'!L$53),'実質公債費比率（分子）の構造'!L$53,NA())","v":271},{"$f":"NA()","v":{"$error":"#N/A"}},{"$f":"NA()","v":{"$error":"#N/A"}},{"$f":"IF(ISNUMBER('実質公債費比率（分子）の構造'!M$53),'実質公債費比率（分子）の構造'!M$53,NA())","v":187},{"$f":"NA()","v":{"$error":"#N/A"}},{"$f":"NA()","v":{"$error":"#N/A"}},{"$f":"IF(ISNUMBER('実質公債費比率（分子）の構造'!N$53),'実質公債費比率（分子）の構造'!N$53,NA())","v":8},{"$f":"NA()","v":{"$error":"#N/A"}},{"$f":"NA()","v":{"$error":"#N/A"}},{"$f":"IF(ISNUMBER('実質公債費比率（分子）の構造'!O$53),'実質公債費比率（分子）の構造'!O$53,NA())","v":-80},{"$f":"NA()","v":{"$error":"#N/A"}}]
[]
[]
["将来負担比率（分子）の構造"]
[null,{"$f":"'将来負担比率（分子）の構造'!I$40","v":"H28"},null,null,{"$f":"'将来負担比率（分子）の構造'!J$40","v":"H29"},null,null,{"$f":"'将来負担比率（分子）の構造'!K$40","v":"H30"},null,null,{"$f":"'将来負担比率（分子）の構造'!L$40","v":"R01"},null,null,{"$f":"'将来負担比率（分子）の構造'!M$40","v":"R02"}]
[null,"将来負担額",null,"充当可能財源等","将来負担額",null,"充当可能財源等","将来負担額",null,"充当可能財源等","将来負担額",null,"充当可能財源等","将来負担額",null,"充当可能財源等"]
["基準財政需要額算入見込額",null,null,{"$f":"'将来負担比率（分子）の構造'!I$52","v":15835},null,null,{"$f":"'将来負担比率（分子）の構造'!J$52","v":14610},null,null,{"$f":"'将来負担比率（分子）の構造'!K$52","v":13393},null,null,{"$f":"'将来負担比率（分子）の構造'!L$52","v":12338},null,null,{"$f":"'将来負担比率（分子）の構造'!M$52","v":11488}]
["充当可能特定歳入",null,null,{"$f":"'将来負担比率（分子）の構造'!I$51","v":5953},null,null,{"$f":"'将来負担比率（分子）の構造'!J$51","v":6230},null,null,{"$f":"'将来負担比率（分子）の構造'!K$51","v":5917},null,null,{"$f":"'将来負担比率（分子）の構造'!L$51","v":5501},null,null,{"$f":"'将来負担比率（分子）の構造'!M$51","v":5794}]
["充当可能基金",null,null,{"$f":"'将来負担比率（分子）の構造'!I$50","v":13390},null,null,{"$f":"'将来負担比率（分子）の構造'!J$50","v":15146},null,null,{"$f":"'将来負担比率（分子）の構造'!K$50","v":16296},null,null,{"$f":"'将来負担比率（分子）の構造'!L$50","v":18175},null,null,{"$f":"'将来負担比率（分子）の構造'!M$50","v":17021}]
["組合等連結実質赤字額負担見込額",{"$f":"'将来負担比率（分子）の構造'!I$49","v":"-"},null,null,{"$f":"'将来負担比率（分子）の構造'!J$49","v":"-"},null,null,{"$f":"'将来負担比率（分子）の構造'!K$49","v":"-"},null,null,{"$f":"'将来負担比率（分子）の構造'!L$49","v":"-"},null,null,{"$f":"'将来負担比率（分子）の構造'!M$49","v":"-"}]
["連結実質赤字額",{"$f":"'将来負担比率（分子）の構造'!I$48","v":"-"},null,null,{"$f":"'将来負担比率（分子）の構造'!J$48","v":"-"},null,null,{"$f":"'将来負担比率（分子）の構造'!K$48","v":"-"},null,null,{"$f":"'将来負担比率（分子）の構造'!L$48","v":"-"},null,null,{"$f":"'将来負担比率（分子）の構造'!M$48","v":"-"}]
["設立法人等の負債額等負担見込額",{"$f":"'将来負担比率（分子）の構造'!I$46","v":"-"},null,null,{"$f":"'将来負担比率（分子）の構造'!J$46","v":"-"},null,null,{"$f":"'将来負担比率（分子）の構造'!K$46","v":"-"},null,null,{"$f":"'将来負担比率（分子）の構造'!L$46","v":"-"},null,null,{"$f":"'将来負担比率（分子）の構造'!M$46","v":"-"}]
["退職手当負担見込額",{"$f":"'将来負担比率（分子）の構造'!I$45","v":2860},null,null,{"$f":"'将来負担比率（分子）の構造'!J$45","v":3093},null,null,{"$f":"'将来負担比率（分子）の構造'!K$45","v":3186},null,null,{"$f":"'将来負担比率（分子）の構造'!L$45","v":3277},null,null,{"$f":"'将来負担比率（分子）の構造'!M$45","v":3422}]
["組合等負担等見込額",{"$f":"'将来負担比率（分子）の構造'!I$44","v":1984},null,null,{"$f":"'将来負担比率（分子）の構造'!J$44","v":2442},null,null,{"$f":"'将来負担比率（分子）の構造'!K$44","v":2619},null,null,{"$f":"'将来負担比率（分子）の構造'!L$44","v":2127},null,null,{"$f":"'将来負担比率（分子）の構造'!M$44","v":2312}]
["公営企業債等繰入見込額",{"$f":"'将来負担比率（分子）の構造'!I$43","v":1988},null,null,{"$f":"'将来負担比率（分子）の構造'!J$43","v":1852},null,null,{"$f":"'将来負担比率（分子）の構造'!K$43","v":1267},null,null,{"$f":"'将来負担比率（分子）の構造'!L$43","v":1691},null,null,{"$f":"'将来負担比率（分子）の構造'!M$43","v":1262}]
["債務負担行為に基づく支出予定額",{"$f":"'将来負担比率（分子）の構造'!I$42","v":8358},null,null,{"$f":"'将来負担比率（分子）の構造'!J$42","v":7490},null,null,{"$f":"'将来負担比率（分子）の構造'!K$42","v":6624},null,null,{"$f":"'将来負担比率（分子）の構造'!L$42","v":5547},null,null,{"$f":"'将来負担比率（分子）の構造'!M$42","v":5175}]
["一般会計等に係る地方債の現在高",{"$f":"'将来負担比率（分子）の構造'!I$41","v":17629},null,null,{"$f":"'将来負担比率（分子）の構造'!J$41","v":16076},null,null,{"$f":"'将来負担比率（分子）の構造'!K$41","v":14547},null,null,{"$f":"'将来負担比率（分子）の構造'!L$41","v":13462},null,null,{"$f":"'将来負担比率（分子）の構造'!M$41","v":13368}]
["将来負担比率の分子",{"$f":"NA()","v":{"$error":"#N/A"}},{"$f":"IF(ISNUMBER('将来負担比率（分子）の構造'!I$53), IF('将来負担比率（分子）の構造'!I$53 < 0, 0, '将来負担比率（分子）の構造'!I$53), NA())","v":0},{"$f":"NA()","v":{"$error":"#N/A"}},{"$f":"NA()","v":{"$error":"#N/A"}},{"$f":"IF(ISNUMBER('将来負担比率（分子）の構造'!J$53), IF('将来負担比率（分子）の構造'!J$53 < 0, 0, '将来負担比率（分子）の構造'!J$53), NA())","v":0},{"$f":"NA()","v":{"$error":"#N/A"}},{"$f":"NA()","v":{"$error":"#N/A"}},{"$f":"IF(ISNUMBER('将来負担比率（分子）の構造'!K$53), IF('将来負担比率（分子）の構造'!K$53 < 0, 0, '将来負担比率（分子）の構造'!K$53), NA())","v":0},{"$f":"NA()","v":{"$error":"#N/A"}},{"$f":"NA()","v":{"$error":"#N/A"}},{"$f":"IF(ISNUMBER('将来負担比率（分子）の構造'!L$53), IF('将来負担比率（分子）の構造'!L$53 < 0, 0, '将来負担比率（分子）の構造'!L$53), NA())","v":0},{"$f":"NA()","v":{"$error":"#N/A"}},{"$f":"NA()","v":{"$error":"#N/A"}},{"$f":"IF(ISNUMBER('将来負担比率（分子）の構造'!M$53), IF('将来負担比率（分子）の構造'!M$53 < 0, 0, '将来負担比率（分子）の構造'!M$53), NA())","v":0},{"$f":"NA()","v":{"$error":"#N/A"}}]
[]
[]
["基金残高に係る経年分析"]
[null,{"$f":"基金残高に係る経年分析!F54","v":"H30"},{"$f":"基金残高に係る経年分析!G54","v":"R01"},{"$f":"基金残高に係る経年分析!H54","v":"R02"}]
["財政調整基金",{"$f":"基金残高に係る経年分析!F55","v":9388},{"$f":"基金残高に係る経年分析!G55","v":10512},{"$f":"基金残高に係る経年分析!H55","v":9278}]
["減債基金",{"$f":"基金残高に係る経年分析!F56","v":135},{"$f":"基金残高に係る経年分析!G56","v":120},{"$f":"基金残高に係る経年分析!H56","v":104}]
["その他特定目的基金",{"$f":"基金残高に係る経年分析!F57","v":6024},{"$f":"基金残高に係る経年分析!G57","v":5741},{"$f":"基金残高に係る経年分析!H57","v":6534}]